Workbook

Sheet general (hidden)
A1: Num. | B1: CLAVE | C1: SUJETO
A2: 1 | B2: 01/01 | C2: Puebla
A3: 2 | B3: 07/01 | C3: San Martín Texmelucan
A4: 3 | B4: 07/02 | C4: Chiautzingo
A5: 4 | B5: 07/03 | C5: Huejotzingo
A6: 5 | B6: 07/04 | C6: San Felipe Teotlalcingo
A7: 6 | B7: 07/05 | C7: San Matías Tlalancaleca
A8: 7 | B8: 07/06 | C8: San Salvador el Verde
A9: 8 | B9: 07/07 | C9: Tlahuapan
A10: 9 | B10: 08/01 | C10: San Pedro Cholula
A11: 10 | B11: 08/02 | C11: Calpan
A12: 11 | B12: 08/03 | C12: Coronango
A13: 12 | B13: 08/04 | C13: Cuautlancingo
A14: 13 | B14: 08/05 | C14: Domingo Arenas
A15: 14 | B15: 08/06 | C15: Juan C. Bonilla
A16: 15 | B16: 08/07 | C16: San Gregorio Atzompa
A17: 16 | B17: 08/08 | C17: San Jerónimo Tecuanipan
A18: 17 | B18: 08/09 | C18: San Miguel Xoxtla
A19: 18 | B19: 08/10 | C19: Tlaltenango
A20: 19 | B20: 09/01 | C20: Atlixco
A21: 20 | B21: 09/02 | C21: Nealtican
A22: 21 | B22: 09/03 | C22: Ocoyucan
A23: 22 | B23: 09/04 | C23: San Andrés Cholula
A24: 23 | B24: 09/05 | C24: San Nicolás de los Ranchos
A25: 24 | B25: 09/06 | C25: Santa Isabel Cholula
A26: 25 | B26: 09/07 | C26: Tianguismanalco
A27: 26 | B27: 09/08 | C27: Tochimilco
A28: 27 | B28: 10/01 | C28: Izúcar de Matamoros
A29: 28 | B29: 10/02 | C29: Acteopan
A30: 29 | B30: 10/03 | C30: Ahuatlán
A31: 30 | B31: 10/04 | C31: Atzitzihuacan
A32: 31 | B32: 10/05 | C32: Coatzingo
A33: 32 | B33: 10/06 | C33: Cohuecan
A34: 33 | B34: 10/07 | C34: Epatlán
A35: 34 | B35: 10/08 | C35: Huaquechula
A36: 35 | B36: 10/09 | C36: San Diego la Mesa Tochimiltzingo
A37: 36 | B37: 10/10 | C37: San Martín Totoltepec
A38: 37 | B38: 10/11 | C38: Teopantlán
A39: 38 | B39: 10/12 | C39: Tepemaxalco
A40: 39 | B40: 10/13 | C40: Tepeojuma
A41: 40 | B41: 10/14 | C41: Tepexco
A42: 41 | B42: 10/15 | C42: Tilapa
A43: 42 | B43: 10/16 | C43: Tlapanalá
A44: 43 | B44: 10/17 | C44: Xochiltepec
A45: 44 | B45: 11/01 | C45: Chiautla
A46: 45 | B46: 11/02 | C46: Albino Zertuche
A47: 46 | B47: 11/03 | C47: Atzala
A48: 47 | B48: 11/04 | C48: Chietla
A49: 48 | B49: 11/05 | C49: Chila de la Sal
A50: 49 | B50: 11/06 | C50: Cohetzala
A51: 50 | B51: 11/07 | C51: Huehuetlán el Chico
A52: 51 | B52: 11/08 | C52: Ixcamilpa de Guerrero
A53: 52 | B53: 11/09 | C53: Jolalpan
A54: 53 | B54: 11/10 | C54: Teotlalco
A55: 54 | B55: 11/11 | C55: Tulcingo
A56: 55 | B56: 11/12 | C56: Xicotlán
A57: 56 | B57: 12/01 | C57: Acatlán
A58: 57 | B58: 12/02 | C58: Ahuehuetitla
A59: 58 | B59: 12/03 | C59: Axutla
A60: 59 | B60: 12/04 | C60: Chila
A61: 60 | B61: 12/05 | C61: Chinantla
A62: 61 | B62: 12/06 | C62: Guadalupe
A63: 62 | B63: 12/07 | C63: Petlalcingo
A64: 63 | B64: 12/08 | C64: Piaxtla
A65: 64 | B65: 12/09 | C65: San Jerónimo Xayacatlán
A66: 65 | B66: 12/10 | C66: San Miguel Ixitlán
A67: 66 | B67: 12/11 | C67: San Pablo Anicano
A68: 67 | B68: 12/12 | C68: San Pedro Yeloixtlahuaca
A69: 68 | B69: 12/13 | C69: Tecomatlán
A70: 69 | B70: 12/14 | C70: Tehuitzingo
A71: 70 | B71: 12/15 | C71: Totoltepec de Guerrero
A72: 71 | B72: 12/16 | C72: Xayacatlán de Bravo
A73: 72 | B73: 13/01 | C73: Tepexi de Rodríguez
A74: 73 | B74: 13/02 | C74: Atexcal
A75: 74 | B75: 13/03 | C75: Atoyatempan
A76: 75 | B76: 13/04 | C76: Coyotepec
A77: 76 | B77: 13/05 | C77: Cuayuca de Andrade
A78: 77 | B78: 13/06 | C78: Chigmecatitlán
A79: 78 | B79: 13/07 | C79: Huatlatlauca
A80: 79 | B80: 13/08 | C80: Huehuetlán el Grande
A81: 80 | B81: 13/09 | C81: Huitziltepec
A82: 81 | B82: 13/10 | C82: Ixcaquixtla
A83: 82 | B83: 13/11 | C83: Juan N. Méndez
A84: 83 | B84: 13/12 | C84: La Magdalena Tlatlauquitepec
A85: 84 | B85: 13/13 | C85: Molcaxac
A86: 85 | B86: 13/14 | C86: San Juan Atzompa
A87: 86 | B87: 13/15 | C87: Santa Catarina Tlaltempan
A88: 87 | B88: 13/16 | C88: Santa Inés Ahuatempan
A89: 88 | B89: 13/17 | C89: Tepeyahualco de Cuauhtémoc
A90: 89 | B90: 13/18 | C90: Zacapala
A91: 90 | B91: 14/01 | C91: Tehuacán
A92: 91 | B92: 14/02 | C92: Tepanco de López
A93: 92 | B93: 14/03 | C93: Chapulco
A94: 93 | B94: 14/04 | C94: Santiago Miahuatlán
A95: 94 | B95: 14/05 | C95: Nicolás Bravo
A96: 95 | B96: 15/01 | C96: Ajalpan
A97: 96 | B97: 15/02 | C97: Zapotitlán
A98: 97 | B98: 15/03 | C98: Caltepec
A99: 98 | B99: 15/04 | C99: San Gabriel Chilac
A100: 99 | B100: 15/05 | C100: San José Miahuatlán
A101: 100 | B101: 15/06 | C101: Altepexi
A102: 101 | B102: 15/07 | C102: Zinacatepec
A103: 102 | B103: 15/08 | C103: Coxcatlán
A104: 103 | B104: 15/09 | C104: San Antonio Cañada
A105: 104 | B105: 15/10 | C105: Vicente Guerrero
A106: 105 | B106: 15/11 | C106: Zoquitlán
A107: 106 | B107: 15/12 | C107: Coyomeapan
A108: 107 | B108: 15/13 | C108: San Sebastián Tlacotepec
A109: 108 | B109: 15/14 | C109: Eloxochitlán
A110: 109 | B110: 16/01 | C110: Tepeaca
A111: 110 | B111: 16/02 | C111: Acajete
A112: 111 | B112: 16/03 | C112: Amozoc
A113: 112 | B113: 16/04 | C113: Cuautinchán
A114: 113 | B114: 16/05 | C114: Mixtla
A115: 114 | B115: 16/06 | C115: Santo Tomás Hueyotlipan
A116: 115 | B116: 16/07 | C116: Tecali de Herrera
A117: 116 | B117: 16/08 | C117: Tepatlaxco de Hidalgo
A118: 117 | B118: 16/09 | C118: Tzicatlacoyan
A119: 118 | B119: 17/01 | C119: Tecamachalco
A120: 119 | B120: 17/02 | C120: Cuapiaxtla de Madero
A121: 120 | B121: 17/03 | C121: General Felipe Angeles
A122: 121 | B122: 17/04 | C122: Palmar de Bravo
A123: 122 | B123: 17/05 | C123: Quecholac
A124: 123 | B124: 17/06 | C124: Los Reyes de Juárez
A125: 124 | B125: 17/07 | C125: San Salvador Huixcolotla
A126: 125 | B126: 17/08 | C126: Tlacotepec de Benito Juárez
A127: 126 | B127: 17/09 | C127: Tlanepantla
A128: 127 | B128: 17/10 | C128: Tochtepec
A129: 128 | B129: 17/11 | C129: Xochitlán Todos Santos
A130: 129 | B130: 17/12 | C130: Yehualtepec
A131: 130 | B131: 18/01 | C131: Acatzingo
A132: 131 | B132: 18/02 | C132: Mazapiltepec de Juárez
A133: 132 | B133: 18/03 | C133: Nopalucan
A134: 133 | B134: 18/04 | C134: Rafael Lara Grajales
A135: 134 | B135: 18/05 | C135: San José Chiapa
A136: 135 | B136: 18/06 | C136: San Nicolás Buenos Aires
A137: 136 | B137: 18/07 | C137: San Salvador el Seco
A138: 137 | B138: 18/08 | C138: Soltepec
A139: 138 | B139: 19/01 | C139: Chalchicomula de Sesma
A140: 139 | B140: 19/02 | C140: Aljojuca
A141: 140 | B141: 19/03 | C141: Atzitzintla
A142: 141 | B142: 19/04 | C142: Cañada Morelos
A143: 142 | B143: 19/05 | C143: Chichiquila
A144: 143 | B144: 19/06 | C144: Chilchotla
A145: 144 | B145: 19/07 | C145: Esperanza
A146: 145 | B146: 19/08 | C146: Guadalupe Victoria
A147: 146 | B147: 19/09 | C147: Lafragua
A148: 147 | B148: 19/10 | C148: Quimixtlán
A149: 148 | B149: 19/11 | C149: San Juan Atenco
A150: 149 | B150: 19/12 | C150: Tlachichuca
A151: 150 | B151: 20/01 | C151: Tlatlauquitepec
A152: 151 | B152: 20/02 | C152: Atempan
A153: 152 | B153: 20/03 | C153: Hueyapan
A154: 153 | B154: 20/04 | C154: Libres
A155: 154 | B155: 20/05 | C155: Oriental
A156: 155 | B156: 20/06 | C156: Tepeyahualco
A157: 156 | B157: 20/07 | C157: Teteles de Ávila Castillo
A158: 157 | B158: 20/08 | C158: Yaonahuac
A159: 158 | B159: 20/09 | C159: Zaragoza
A160: 159 | B160: 21/01 | C160: Teziutlán
A161: 160 | B161: 21/02 | C161: Acateno
A162: 161 | B162: 21/03 | C162: Ayotoxco de Guerrero
A163: 162 | B163: 21/04 | C163: Chignautla
A164: 163 | B164: 21/05 | C164: Hueytamalco
A165: 164 | B165: 21/06 | C165: Tenampulco
A166: 165 | B166: 21/07 | C166: Xiutetelco
A167: 166 | B167: 22/01 | C167: Zacapoaxtla
A168: 167 | B168: 22/02 | C168: Cuetzalan del Progreso
A169: 168 | B169: 22/03 | C169: Cuyoaco
A170: 169 | B170: 22/04 | C170: Jonotla
A171: 170 | B171: 22/05 | C171: Nauzontla
A172: 171 | B172: 22/06 | C172: Ocotepec
A173: 172 | B173: 22/07 | C173: Tuzamapan de Galeana
A174: 173 | B174: 22/08 | C174: Xochitlán de Vicente Suárez
A175: 174 | B175: 22/09 | C175: Zautla
A176: 175 | B176: 22/10 | C176: Zoquiapan
A177: 176 | B177: 23/01 | C177: Tetela de Ocampo
A178: 177 | B178: 23/02 | C178: Aquixtla
A179: 178 | B179: 23/03 | C179: Cuautempan
A180: 179 | B180: 23/04 | C180: Chignahuapan
A181: 180 | B181: 23/05 | C181: Huitzilan de Serdán
A182: 181 | B182: 23/06 | C182: Ixtacamaxtitlan
A183: 182 | B183: 23/07 | C183: Xochiapulco
A184: 183 | B184: 23/08 | C184: Zapotitlán de Méndez
A185: 184 | B185: 23/09 | C185: Zongozotla
A186: 185 | B186: 24/01 | C186: Zacatlán
A187: 186 | B187: 24/02 | C187: Ahuacatlán
A188: 187 | B188: 24/03 | C188: Amixtlán
A189: 188 | B189: 24/04 | C189: Camocuautla
A190: 189 | B190: 24/05 | C190: Caxhuacan
A191: 190 | B191: 24/06 | C191: Coatepec
A192: 191 | B192: 24/07 | C192: Hermenegildo Galeana
A193: 192 | B193: 24/08 | C193: Huehuetla
A194: 193 | B194: 24/09 | C194: Hueytlalpan
A195: 194 | B195: 24/10 | C195: Atlequizayán
A196: 195 | B196: 24/11 | C196: Ixtepec
A197: 196 | B197: 24/12 | C197: Jopala
A198: 197 | B198: 24/13 | C198: Olintla
A199: 198 | B199: 24/14 | C199: San Felipe Tepatlán
A200: 199 | B200: 24/15 | C200: Tepango de Rodríguez
... 52 more rows

Sheet Instructivo de llenado-Formato (hidden)
C2: SUJETO DE REVISIÓN:
D3: AÑO:
A5: PROGRAMA PRESUPUESTARIO 2014
A7: Nombre del Programa
A8: Unidad(es) Responsable(s)
A9: Costo Total del Programa
A10: Programa del Sistema Contable en el que registró el recurso
A12: CLASIFICACIÓN FUNCIONAL DEL GASTO
A13: CLASIFICACIÓN | D13: DÍGITO | F13: CONCEPTO
A14: Finalidad | F14: =IF(D14="","",VLOOKUP(D14,A172:B175,2)) -> 
A15: Función | F15: =IF(C15="","",VLOOKUP(C15,#REF!,2)) -> 
A16: Subfunción | F16: =IF(C16="","",IF(EXACT(C15,MID(C16,1,3)),VLOOKUP(C16,#REF!,2),"VERIFIQUE QUE LA SUBFUNCIÓN CORRESPONDA AL CATÁLOGO DE FUNCIONES")) -> 
A17: Sub/Subfunción
A19: DATOS DE VINCULACIÓN AL PLAN ESTATAL DE DESARROLLO
A21: DATOS DE VINCULACIÓN AL PLAN MUNICIPAL DE DESARROLLO (EJES, ESTRATEGIAS U OBJETIVOS GENERALES)
A23: NIVEL INMEDIATO INFERIOR (OBJETIVO O LíNEA ESTRATÉGICA)
A26: RESUMEN NARRATIVO
A27: FIN
A30: INDICADOR (a nivel de Fin) (Nombre)
A32: FÓRMULA DE CALCULO | H32: TIPO DE FÓRMULA | Q32: DIMENSIÓN A MEDIR
A33: VARIABLES | C33: NOMBRE | D33: UNIDAD DE MEDIDA | E33: FRECUENCIA DE MEDICIÓN | F33: CALENDARIO - PROGRAMADO | U33: TOTAL | V33: PROCENTAJE PROGRAMADO EN EL AÑO
F34: PROGRAMADO | H34: ENE | I34: FEB | J34: MAR | K34: ABR | L34: MAY | M34: JUN | N34: JUL | O34: AGO | P34: SEP | Q34: OCT | R34: NOV | S34: DIC
A35: VARIABLE 1 | F35: PROGRAMADO VARIABLE 1 | U35: =SUM(H35:S35) -> 0 | V35: =IF(K32="",C$334,IF(OR(U35=0,U36=0,T36=0),C$335,IF(K32="PORCENTAJE",FIXED(U35/U36*100,2) & "%",IF(K32="PROMEDIO",U35/U36,IF(K32="VARIACIÓN PORCENTUAL",FIXED(((U35/U36)-1)*100,2) & "%"))))) -> Favor de indicar el tipo de fórmula
A36: VARIABLE 2 | F36: PROGRAMADO VARIABLE 2 | T36: =SUM(H36:S36) -> 0
A38: VARIABLES | C38: NOMBRE | D38: UNIDAD DE MEDIDA | E38: FRECUENCIA DE MEDICIÓN | F38: CALENDARIO - REALIZADO | U38: TOTAL | V38: PROCENTAJE REALIZADO EN EL AÑO
F39: REALIZADO | H39: ENE | I39: FEB | J39: MAR | K39: ABR | L39: MAY | M39: JUN | N39: JUL | O39: AGO | P39: SEP | Q39: OCT | R39: NOV | S39: DIC
A40: VARIABLE 1 | F40: REALIZADO VARIABLE 1 | U40: =SUM(H40:S40) -> 0 | V40: =IF(K32="",C$334,IF(OR(U40=0,U41=0,T41=0),C$335,IF(K32="PORCENTAJE",FIXED(U40/U41*100,2) & "%",IF(K32="PROMEDIO",U40/U41,IF(K32="VARIACIÓN PORCENTUAL",FIXED(((U40/U41)-1)*100,2) & "%"))))) -> Favor de indicar el tipo de fórmula
A41: VARIABLE 2 | F41: REALIZADO VARIABLE 2 | T41: =SUM(H41:S41) -> 0
A43: PROPÓSITO
A46: INDICADOR (a nivel de Propósito) (Nombre)
A48: FÓRMULA DE CALCULO | H48: TIPO DE FÓRMULA | Q48: DIMENSIÓN A MEDIR
A49: VARIABLES | C49: NOMBRE | D49: UNIDAD DE MEDIDA | E49: FRECUENCIA DE MEDICIÓN | F49: CALENDARIO - PROGRAMADO | U49: TOTAL | V49: PROCENTAJE PROGRAMADO EN EL AÑO
F50: PROGRAMADO | H50: ENE | I50: FEB | J50: MAR | K50: ABR | L50: MAY | M50: JUN | N50: JUL | O50: AGO | P50: SEP | Q50: OCT | R50: NOV | S50: DIC
A51: VARIABLE 1 | F51: PROGRAMADO VARIABLE 1 | U51: =SUM(H51:S51) -> 0 | V51: =IF(K48="",C$334,IF(OR(U51=0,U52=0,T52=0),C$335,IF(K48="PORCENTAJE",FIXED(U51/U52*100,2) & "%",IF(K48="PROMEDIO",U51/U52,IF(K48="VARIACIÓN PORCENTUAL",FIXED(((U51/U52)-1)*100,2) & "%"))))) -> Favor de indicar el tipo de fórmula
A52: VARIABLE 2 | F52: PROGRAMADO VARIABLE 2 | T52: =SUM(H52:S52) -> 0
A54: VARIABLES | C54: NOMBRE | D54: UNIDAD DE MEDIDA | E54: FRECUENCIA DE MEDICIÓN | F54: CALENDARIO - REALIZADO | U54: TOTAL | V54: PROCENTAJE REALIZADO EN EL AÑO
F55: REALIZADO | H55: ENE | I55: FEB | J55: MAR | K55: ABR | L55: MAY | M55: JUN | N55: JUL | O55: AGO | P55: SEP | Q55: OCT | R55: NOV | S55: DIC
A56: VARIABLE 1 | F56: REALIZADO VARIABLE 1 | U56: =SUM(H56:S56) -> 0 | V56: =IF(K48="",C$334,IF(OR(U56=0,U57=0,T57=0),C$335,IF(K48="PORCENTAJE",FIXED(U56/U57*100,2) & "%",IF(K48="PROMEDIO",U56/U57,IF(K48="VARIACIÓN PORCENTUAL",FIXED(((U56/U57)-1)*100,2) & "%"))))) -> Favor de indicar el tipo de fórmula
A57: VARIABLE 2 | F57: REALIZADO VARIABLE 2 | T57: =SUM(H57:S57) -> 0
A59: COMPONENTE 1 (bienes y/o servicios, dirigidos al beneficiario)
A61: INDICADOR (A nivel de componente) (Nombre)
A63: FÓRMULA DE CALCULO | H63: TIPO DE FÓRMULA | Q63: DIMENSIÓN A MEDIR
A64: VARIABLES | C64: NOMBRE | D64: UNIDAD DE MEDIDA | E64: FRECUENCIA DE MEDICIÓN | F64: CALENDARIO - PROGRAMADO | U64: TOTAL | V64: PROCENTAJE PROGRAMADO EN EL AÑO
F65: PROGRAMADO | H65: ENE | I65: FEB | J65: MAR | K65: ABR | L65: MAY | M65: JUN | N65: JUL | O65: AGO | P65: SEP | Q65: OCT | R65: NOV | S65: DIC
A66: VARIABLE 1 | F66: PROGRAMADO VARIABLE 1 | U66: =SUM(H66:S66) -> 0 | V66: =IF(K63="",C$334,IF(OR(U66=0,U67=0,T67=0),C$335,IF(K63="PORCENTAJE",FIXED(U66/U67*100,2) & "%",IF(K63="PROMEDIO",U66/U67,IF(K63="VARIACIÓN PORCENTUAL",FIXED(((U66/U67)-1)*100,2) & "%"))))) -> Favor de indicar el tipo de fórmula
A67: VARIABLE 2 | F67: PROGRAMADO VARIABLE 2 | T67: =SUM(H67:S67) -> 0
A69: VARIABLES | C69: NOMBRE | D69: UNIDAD DE MEDIDA | E69: FRECUENCIA DE MEDICIÓN | F69: CALENDARIO - REALIZADO | U69: TOTAL | V69: PROCENTAJE REALIZADO EN EL AÑO
F70: REALIZADO | H70: ENE | I70: FEB | J70: MAR | K70: ABR | L70: MAY | M70: JUN | N70: JUL | O70: AGO | P70: SEP | Q70: OCT | R70: NOV | S70: DIC
A71: VARIABLE 1 | F71: REALIZADO VARIABLE 1 | U71: =SUM(H71:S71) -> 0 | V71: =IF(K63="",C$334,IF(OR(U71=0,U72=0,T72=0),C$335,IF(K63="PORCENTAJE",FIXED(U71/U72*100,2) & "%",IF(K63="PROMEDIO",U71/U72,IF(K63="VARIACIÓN PORCENTUAL",FIXED(((U71/U72)-1)*100,2) & "%"))))) -> Favor de indicar el tipo de fórmula
A72: VARIABLE 2 | F72: REALIZADO VARIABLE 2 | T72: =SUM(H72:S72) -> 0
A75: ACTIVIDADES
A77: COMPONENTE | B77: DESCRIPCIÓN | E77: UNIDAD DE MEDIDA | F77: CALENDARIO | U77: TOTAL | V77: PORCENTAJE DE CUMPLIMIENTO DE LA ACTIVIDAD
F78: PROGRAMADO / REALIZADO | H78: ENE | I78: FEB | J78: MAR | K78: ABR | L78: MAY | M78: JUN | N78: JUL | O78: AGO | P78: SEP | Q78: OCT | R78: NOV | S78: DIC
A79: C1 | B79: 1 | F79: PROGRAMADO | U79: =SUM(H79:S79) -> 0 | V79: =IF(U79=0,"-",U80/U79) -> -
F80: REALIZADO | U80: 0
B81: 2 | F81: PROGRAMADO | U81: 0 | V81: =IF(U81=0,"-",U82/U81) -> -
F82: REALIZADO | U82: 0
B83: 3 | F83: PROGRAMADO | U83: 0 | V83: =IF(U83=0,"-",U84/U83) -> -
F84: REALIZADO | U84: 0
B85: 4 | F85: PROGRAMADO | U85: 0 | V85: =IF(U85=0,"-",U86/U85) -> -
F86: REALIZADO | U86: 0
B87: 5 | F87: PROGRAMADO | U87: 0 | V87: =IF(U87=0,"-",U88/U87) -> -
F88: REALIZADO | U88: 0
A91: Nombre, cargo y firma | F91: Nombre, cargo y firma | P91: Nombre, cargo y firma
B93: RESULTADOS
B95: No. | C95: COMPONENTE | E95: PORCENTAJE DE AVANCE DEL INDICADOR | K95: No. | L95: PORCENTAJE DE AVANCE DE LAS ACTIVIDADES
B96: 1 | C96: =IF(D59="","-",D59) -> - | E96: =IF(LEN(#REF!)>17,"-",#REF!) ->  | K96: 1 | L96: =$V$79 -> -
K97: 2 | L97: =$V$81 -> -
K98: 3 | L98: =$V$83 -> -
K99: 4 | L99: =$V$85 -> -
K100: 5 | L100: =$V$87 -> -
B101: 2 | C101: =IF(#REF!="","-",#REF!) ->  | E101: =IF(LEN(#REF!)>17,"-",#REF!) ->  | K101: 1 | L101: =#REF! -> 
K102: 2 | L102: =#REF! -> 
K103: 3 | L103: =#REF! -> 
K104: 4 | L104: =#REF! -> 
K105: 5 | L105: =#REF! -> 
B106: 3 | C106: =IF(#REF!="","-",#REF!) ->  | E106: =IF(LEN(#REF!)>17,"-",#REF!) ->  | K106: 1 | L106: =#REF! -> 
K107: 2 | L107: =#REF! -> 
K108: 3 | L108: =#REF! -> 
K109: 4 | L109: =#REF! -> 
K110: 5 | L110: =#REF! -> 
B111: 4 | C111: =IF(#REF!="","-",#REF!) ->  | E111: =IF(LEN(#REF!)>17,"-",#REF!) ->  | K111: 1 | L111: =#REF! -> 
K112: 2 | L112: =#REF! -> 
K113: 3 | L113: =#REF! -> 
K114: 4 | L114: =#REF! -> 
K115: 5 | L115: =#REF! -> 
B116: 5 | C116: =IF(#REF!="","-",#REF!) ->  | E116: =IF(LEN(#REF!)>17,"-",#REF!) ->  | K116: 1 | L116: =#REF! -> 
K117: 2 | L117: =#REF! -> 
K118: 3 | L118: =#REF! -> 
K119: 4 | L119: =#REF! -> 
K120: 5 | L120: =#REF! -> 
A165: 1 | B165: MAS EMPLEO Y MAYOR INVERSIÓN
A166: 2 | B166: IGUALDAD DE OPORTUNIDADES PARA TODOS
A167: 3 | B167: GOBIERNO HONESTO Y AL SERVICIO DE LA GENTE
A168: 4 | B168: POLÍTICA INTERNA Y SEGURIDAD
B171: FINALIDAD
A172: 1 | B172: GOBIERNO
A173: 2 | B173: DESARROLLO SOCIAL
A174: 3 | B174: DESARROLLO ECONÓMICO
A175: 4 | B175: OTRAS NO CLASIFICADAS EN FUNCIONES ANTERIORES
B178: FUNCIÒN
A179: 1.1 | B179: LEGISLACIÓN
A180: 1.2 | B180: JUSTICIA
A181: 1.3 | B181: COORDINACIÓN DE LA POLÍTICA DE GOBIERNO
A182: 1.4 | B182: RELACIONES EXTERIORES
A183: 1.5 | B183: ASUNTOS FINANCIEROS Y HACENDARIOS
A184: 1.6 | B184: SEGURIDAD NACIONAL
A185: 1.7 | B185: ASUNTOS DE ORDEN PÚBLICO Y DE SEGURIDAD INTERIOR
A186: 1.8 | B186: OTROS SERVICIOS GENERALES
A187: 2.1 | B187: PROTECCION AMBIENTAL
A188: 2.2 | B188: VIVIENDA Y SERVICIOS A LA COMUNIDAD
A189: 2.3 | B189: SALUD
A190: 2.4 | B190: RECREACIÓN, CULTURA Y OTRAS MANIFESTACIONES SOCIALES
A191: 2.5 | B191: EDUCACIÓN
A192: 2.6 | B192: PROTECCIÓN SOCIAL
A193: 2.7 | B193: OTROS ASUNTOS SOCIALES
A194: 3.1 | B194: ASUNTOS ECONÓMICOS, COMERCIALES Y LABORALES EN GENERAL
A195: 3.2 | B195: AGROPECUARIA, SILVICULTURA, PESCA Y CAZA
A196: 3.3 | B196: COMBUSTIBLES Y ENERGÍA
A197: 3.4 | B197: MINERÍA, MANUFACTURAS Y CONSTRUCCIÓN
A198: 3.5 | B198: TRANSPORTE
A199: 3.6 | B199: COMUNICACIONES
A200: 3.7 | B200: TURISMO
A201: 3.8 | B201: CIENCIA, TECNOLOGÍA E INNOVACIÓN
A202: 3.9 | B202: OTRAS INDUSTRIAS Y OTROS ASUNTOS ECONÓMICOS
A203: 4.1 | B203: TRANSACCIONES DE LA DEUDA PÚBLICA / COSTO FINANCIERO DE LA DEUDA
A204: 4.2 | B204: TRANSFERENCIAS, PARTICIPACIONES Y APORTACIONES ENTRE DIFERENTES NIVELES Y ÓRDENES DE GOBIERNO
A205: 4.3 | B205: SANEAMIENTO DEL SISTEMA FINANCIERO
A206: 4.4 | B206: ADEUDOS DE EJERCICIOS FISCALES ANTERIORES
B210: SUBFUNCIÓN
A211: 1.1.1 | B211: LEGISLACIÓN
A212: 1.1.2 | B212: FISCALIZACIÓN
A213: 1.2.1 | B213: IMPARTICIÓN DE JUSTICIA
A214: 1.2.2 | B214: PROCURACIÓN DE JUSTICIA
A215: 1.2.3 | B215: RECLUSIÓN Y READAPTACIÓN SOCIAL
A216: 1.2.4 | B216: DERECHOS HUMANOS
A217: 1.3.1 | B217: PRESIDENCIA / GUBERNATURA
A218: 1.3.2 | B218: POLÍTICA INTERIOR
A219: 1.3.3 | B219: PRESERVACIÓN Y CUIDADO DEL PATRIMONIO PÚBLICO
A220: 1.3.4 | B220: FUNCIÓN PÚBLICA
A221: 1.3.5 | B221: ASUNTOS JURÍDICOS
A222: 1.3.6 | B222: ORGANIZACIÓN DE PROCESOS ELECTORALES
A223: 1.3.7 | B223: POBLACIÓN
A224: 1.3.8 | B224: TERRITORIO
A225: 1.3.9 | B225: OTROS
A226: 1.4.1 | B226: RELACIONES EXTERIORES
A227: 1.5.1 | B227: ASUNTOS FINANCIEROS
A228: 1.5.2 | B228: ASUNTOS HACENDARIOS
A229: 1.6.1 | B229: DEFENSA
A230: 1.6.2 | B230: MARINA
A231: 1.6.3 | B231: INTELIGENCIA PARA LA PRESERVACIÓN DE LA SEGURIDAD NACIONAL
A232: 1.7.1 | B232: POLICÍA
A233: 1.7.2 | B233: PROTECCIÓN CIVIL
A234: 1.7.3 | B234: OTROS ASUNTOS DE ORDEN PÚBLICO Y SEGURIDAD
A235: 1.7.4 | B235: SISTEMA NACIONAL DE SEGURIDAD PÚBLICA
A236: 1.8.1 | B236: SERVICIOS REGISTRALES, ADMINISTRATIVOS Y PATRIMONIALES
A237: 1.8.2 | B237: SERVICIOS ESTADÍSTICOS
A238: 1.8.3 | B238: SERVICIOS DE COMUNICACIÓN Y MEDIOS
A239: 1.8.4 | B239: ACCESO A LA INFORMACIÓN PÚBLICA GUBERNAMENTAL
A240: 1.8.5 | B240: OTROS
A241: 2.1.1 | B241: ORDENACIÓN DE DESECHOS
A242: 2.1.2 | B242: ADMINISTRACIÓN DEL AGUA
A243: 2.1.3 | B243: ORDENACIÓN DE AGUAS RESIDUALES, DRENAJE Y ALCANTARILLADO
A244: 2.1.4 | B244: REDUCCIÓN DE LA CONTAMINACIÓN
A245: 2.1.5 | B245: PROTECCIÓN DE LA DIVERSIDAD BIOLÓGICA Y DEL PAISAJE
A246: 2.1.6 | B246: OTROS DE PROTECCIÓN AMBIENTAL
A247: 2.2.1 | B247: URBANIZACIÓN
A248: 2.2.2 | B248: DESARROLLO COMUNITARIO
A249: 2.2.3 | B249: ABASTECIMIENTO DE AGUA
A250: 2.2.4 | B250: ALUMBRADO PÚBLICO
A251: 2.2.5 | B251: VIVIENDA
A252: 2.2.6 | B252: SERVICIOS COMUNALES
A253: 2.2.7 | B253: DESARROLLO REGIONAL
A254: 2.3.1 | B254: PRESTACIÓN DE SERVICIOS DE SALUD A LA COMUNIDAD
A255: 2.3.2 | B255: PRESTACIÓN DE SERVICIOS DE SALUD A LA PERSONA
A256: 2.3.3 | B256: GENERACIÓN DE RECURSOS PARA LA SALUD
A257: 2.3.4 | B257: RECTORÍA DEL SISTEMA DE SALUD
A258: 2.3.5 | B258: PROTECCIÓN SOCIAL EN SALUD
A259: 2.4.1 | B259: DEPORTE Y RECREACIÓN
A260: 2.4.2 | B260: CULTURA
A261: 2.4.3 | B261: RADIO, TELEVISIÓN Y EDITORIALES
A262: 2.4.4 | B262: ASUNTOS RELIGIOSOS Y OTRAS MANIFESTACIONES SOCIALES
A263: 2.5.1 | B263: EDUCACIÓN BÁSICA
A264: 2.5.2 | B264: EDUCACIÓN MEDIA SUPERIOR
A265: 2.5.3 | B265: EDUCACIÓN SUPERIOR
A266: 2.5.4 | B266: POSGRADO
A267: 2.5.5 | B267: EDUCACIÓN PARA ADULTOS
A268: 2.5.6 | B268: OTROS SERVICIOS EDUCATIVOS Y ACTIVIDADES INHERENTES
A269: 2.6.1 | B269: ENFERMEDAD E INCAPACIDAD
A270: 2.6.2 | B270: EDAD AVANZADA
A271: 2.6.3 | B271: FAMILIA E HIJOS
A272: 2.6.4 | B272: DESEMPLEO
A273: 2.6.5 | B273: ALIMENTACIÓN Y NUTRICIÓN
A274: 2.6.6 | B274: APOYO SOCIAL PARA LA VIVIENDA
A275: 2.6.7 | B275: INDÍGENAS
A276: 2.6.8 | B276: OTROS GRUPOS VULNERABLES
A277: 2.6.9 | B277: OTROS DE SEGURIDAD SOCIAL Y ASISTENCIA SOCIAL
A278: 2.7.1 | B278: OTROS ASUNTOS SOCIALES
A279: 3.1.1 | B279: ASUNTOS ECONÓMICOS Y COMERCIALES EN GENERAL
A280: 3.1.2 | B280: ASUNTOS LABORALES GENERALES
... 48 more rows

Sheet Hoja1 (hidden)
B1: Sujeto | C1: Clave | D1: FINALIDAD | E1: FUNCIÓN | F1: SUBFUNCIÓN | G1: Ejes del Plan Estatal de Desarrollo
A2: 1 | B2: Puebla | C2: 01/01 | D2: 1. Gobierno | E2: 1.1. Legislación | F2: 1.1.1 Legislación | G2: 1. Seguridad Pública, Justicia y Estado de Derecho
A3: 2 | B3: San Martín Texmelucan | C3: 07/01 | D3: 2. Desarrollo social | E3: 1.2. Justicia | F3: 1.1.2 Fiscalización | G3: 2. Recuperación del Campo Poblano
A4: 3 | B4: Chiautzingo | C4: 07/02 | D4: 3. Desarrollo económico | E4: 1.3. Coordinación de la política de gobierno | F4: 1.2.1 Impartición de Justicia | G4: 3. Desarrollo Económico para Todas y Todos
A5: 4 | B5: Huejotzingo | C5: 07/03 | D5: 4. Otras no clasificadas en funciones anteriores | E5: 1.4. Relaciones exteriores | F5: 1.2.2 Procuración de Justicia | G5: 4. Disminución de las Desigualdades
A6: 5 | B6: San Felipe Teotlalcingo | C6: 07/04 | E6: 1.5. Asuntos financieros y hacendarios | F6: 1.2.3 Reclusión y Readaptación Social | G6: Especial. Gobierno Democrático, Innovador y Transparente
A7: 6 | B7: San Matías Tlalancaleca | C7: 07/05 | E7: 1.6. Seguridad nacional | F7: 1.2.4 Derechos Humanos | G7: Enfoque Transversal. Infraestructura
A8: 7 | B8: San Salvador el Verde | C8: 07/06 | E8: 1.7. Asuntos de orden público y de seguridad interior | F8: 1.3.1 Presidencia / Gubernatura | G8: Enfoque Transversal. Pueblos Originarios
A9: 8 | B9: Tlahuapan | C9: 07/07 | E9: 1.8. Otros servicios generales | F9: 1.3.2 Política Interior | G9: Enfoque Transversal. Igualdad Sustantiva
A10: 9 | B10: San Pedro Cholula | C10: 08/01 | E10: 2.1. Protección ambiental | F10: 1.3.3 Preservación y Cuidado del Patrimonio Público | G10: Enfoque Transversal. Cuidado Ambiental y Cambio Climático
A11: 10 | B11: Calpan | C11: 08/02 | E11: 2.2. Vivienda y servicios a la comunidad | F11: 1.3.4 Función Pública
A12: 11 | B12: Coronango | C12: 08/03 | E12: 2.3. Salud | F12: 1.3.5 Asuntos Jurídicos
A13: 12 | B13: Cuautlancingo | C13: 08/04 | E13: 2.4. Recreación, cultura y otras manifestaciones sociales | F13: 1.3.6 Organización de Procesos Electorales
A14: 13 | B14: Domingo Arenas | C14: 08/05 | E14: 2.5. Educación | F14: 1.3.7 Población
A15: 14 | B15: Juan C. Bonilla | C15: 08/06 | E15: 2.6. Protección social | F15: 1.3.8 Territorio
A16: 15 | B16: San Gregorio Atzompa | C16: 08/07 | E16: 2.7. Otros asuntos sociales | F16: 1.3.9 Otros
A17: 16 | B17: San Jerónimo Tecuanipan | C17: 08/08 | E17: 3.1. Asuntos económicos, comerciales y laborales en general | F17: 1.4.1 Relaciones Exteriores
A18: 17 | B18: San Miguel Xoxtla | C18: 08/09 | E18: 3.2. Agropecuaria, silvicultura, pesca y caza | F18: 1.5.1 Asuntos Financieros
A19: 18 | B19: Tlaltenango | C19: 08/10 | E19: 3.3. Combustibles y energía | F19: 1.5.2 Asuntos Hacendarios
A20: 19 | B20: Atlixco | C20: 09/01 | E20: 3.4. Minería, manufacturas y construcción | F20: 1.6.1 Defensa
A21: 20 | B21: Nealtican | C21: 09/02 | E21: 3.5. Transporte | F21: 1.6.2 Marina
A22: 21 | B22: Ocoyucan | C22: 09/03 | E22: 3.6. Comunicaciones | F22: 1.6.3 Inteligencia para la Preservación de la Seguridad Nacional
A23: 22 | B23: San Andrés Cholula | C23: 09/04 | E23: 3.7. Turismo | F23: 1.7.1 Policía
A24: 23 | B24: San Nicolás de los Ranchos | C24: 09/05 | E24: 3.8. Ciencia, tecnología e innovación | F24: 1.7.2 Protección Civil
A25: 24 | B25: Santa Isabel Cholula | C25: 09/06 | E25: 3.9. Otras industrias y otros asuntos económicos | F25: 1.7.3 Otros Asuntos de Orden Público y Seguridad
A26: 25 | B26: Tianguismanalco | C26: 09/07 | E26: 4.1. Transacciones de la deuda pública / costo financiero de la deuda | F26: 1.7.4 Sistema Nacional de Seguridad Pública
A27: 26 | B27: Tochimilco | C27: 09/08 | E27: 4.2. Transferencias, participaciones y aportaciones entre diferentes niveles y órdenes de gobierno | F27: 1.8.1 Servicios Registrales, Administrativos y Patrimoniales
A28: 27 | B28: Izúcar de Matamoros | C28: 10/01 | E28: 4.3. Saneamiento del sistema financiero | F28: 1.8.2 Servicios Estadísticos
A29: 28 | B29: Acteopan | C29: 10/02 | E29: 4.4. Adeudos de ejercicios fiscales anteriores | F29: 1.8.3 Servicios de Comunicación y Medios
A30: 29 | B30: Ahuatlán | C30: 10/03 | F30: 1.8.4 Acceso a la Información Pública Gubernamental
A31: 30 | B31: Atzitzihuacan | C31: 10/04 | F31: 1.8.5 Otros
A32: 31 | B32: Coatzingo | C32: 10/05 | F32: 2.1.1 Ordenación de Desechos
A33: 32 | B33: Cohuecan | C33: 10/06 | F33: 2.1.2 Administración del Agua
A34: 33 | B34: Epatlán | C34: 10/07 | F34: 2.1.3 Ordenación de Aguas Residuales, Drenaje y Alcantarillado
A35: 34 | B35: Huaquechula | C35: 10/08 | F35: 2.1.4 Reducción de la Contaminación
A36: 35 | B36: San Diego la Mesa Tochimiltzingo | C36: 10/09 | F36: 2.1.5 Protección de la Diversidad Biológica y del Paisaje
A37: 36 | B37: San Martín Totoltepec | C37: 10/10 | F37: 2.1.6 Otros de Protección Ambiental
A38: 37 | B38: Teopantlán | C38: 10/11 | F38: 2.2.1 Urbanización
A39: 38 | B39: Tepemaxalco | C39: 10/12 | F39: 2.2.2 Desarrollo Comunitario
A40: 39 | B40: Tepeojuma | C40: 10/13 | F40: 2.2.3 Abastecimiento de Agua
A41: 40 | B41: Tepexco | C41: 10/14 | F41: 2.2.4 Alumbrado Público
A42: 41 | B42: Tilapa | C42: 10/15 | F42: 2.2.5 Vivienda
A43: 42 | B43: Tlapanalá | C43: 10/16 | F43: 2.2.6 Servicios Comunales
A44: 43 | B44: Xochiltepec | C44: 10/17 | F44: 2.2.7 Desarrollo Regional
A45: 44 | B45: Chiautla | C45: 11/01 | F45: 2.3.1 Prestación de Servicios de Salud a la Comunidad
A46: 45 | B46: Albino Zertuche | C46: 11/02 | F46: 2.3.2 Prestación de Servicios de Salud a la Persona
A47: 46 | B47: Atzala | C47: 11/03 | F47: 2.3.3 Generación de Recursos para la Salud
A48: 47 | B48: Chietla | C48: 11/04 | F48: 2.3.4 Rectoría del Sistema de Salud
A49: 48 | B49: Chila de la Sal | C49: 11/05 | F49: 2.3.5 Protección Social en Salud
A50: 49 | B50: Cohetzala | C50: 11/06 | F50: 2.4.1 Deporte y Recreación
A51: 50 | B51: Huehuetlán el Chico | C51: 11/07 | F51: 2.4.2 Cultura
A52: 51 | B52: Ixcamilpa de Guerrero | C52: 11/08 | F52: 2.4.3 Radio, Televisión y Editoriales
A53: 52 | B53: Jolalpan | C53: 11/09 | F53: 2.4.4 Asuntos Religiosos y Otras Manifestaciones Sociales
A54: 53 | B54: Teotlalco | C54: 11/10 | F54: 2.5.1 Educación Básica
A55: 54 | B55: Tulcingo | C55: 11/11 | F55: 2.5.2 Educación Media Superior
A56: 55 | B56: Xicotlán | C56: 11/12 | F56: 2.5.3 Educación Superior
A57: 56 | B57: Acatlán | C57: 12/01 | F57: 2.5.4 Posgrado
A58: 57 | B58: Ahuehuetitla | C58: 12/02 | F58: 2.5.5 Educación para Adultos
A59: 58 | B59: Axutla | C59: 12/03 | F59: 2.5.6 Otros Servicios Educativos y Actividades Inherentes
A60: 59 | B60: Chila | C60: 12/04 | F60: 2.6.1 Enfermedad e Incapacidad
A61: 60 | B61: Chinantla | C61: 12/05 | F61: 2.6.2 Edad Avanzada
A62: 61 | B62: Guadalupe | C62: 12/06 | F62: 2.6.3 Familia e Hijos
A63: 62 | B63: Petlalcingo | C63: 12/07 | F63: 2.6.4 Desempleo
A64: 63 | B64: Piaxtla | C64: 12/08 | F64: 2.6.5 Alimentación y Nutrición
A65: 64 | B65: San Jerónimo Xayacatlán | C65: 12/09 | F65: 2.6.6 Apoyo Social para la Vivienda
A66: 65 | B66: San Miguel Ixitlán | C66: 12/10 | F66: 2.6.7 Indígenas
A67: 66 | B67: San Pablo Anicano | C67: 12/11 | F67: 2.6.8 Otros Grupos Vulnerables
A68: 67 | B68: San Pedro Yeloixtlahuaca | C68: 12/12 | F68: 2.6.9 Otros de Seguridad Social y Asistencia Social
A69: 68 | B69: Tecomatlán | C69: 12/13 | F69: 2.7.1 Otros Asuntos Sociales
A70: 69 | B70: Tehuitzingo | C70: 12/14 | F70: 3.1.1 Asuntos Económicos y Comerciales en General
A71: 70 | B71: Totoltepec de Guerrero | C71: 12/15 | F71: 3.1.2 Asuntos Laborales Generales
A72: 71 | B72: Xayacatlán de Bravo | C72: 12/16 | F72: 3.2.1 Agropecuaria
A73: 72 | B73: Tepexi de Rodríguez | C73: 13/01 | F73: 3.2.2 Silvicultura
A74: 73 | B74: Atexcal | C74: 13/02 | F74: 3.2.3 Acuacultura, Pesca y Caza
A75: 74 | B75: Atoyatempan | C75: 13/03 | F75: 3.2.4 Agroindustrial
A76: 75 | B76: Coyotepec | C76: 13/04 | F76: 3.2.5 Hidroagrícola
A77: 76 | B77: Cuayuca de Andrade | C77: 13/05 | F77: 3.2.6 Apoyo Financiero a la Banca y Seguro Agropecuario
A78: 77 | B78: Chigmecatitlán | C78: 13/06 | F78: 3.3.1 Carbón y Otros Combustibles Minerales Sólidos
A79: 78 | B79: Huatlatlauca | C79: 13/07 | F79: 3.3.2 Petróleo y Gas Natural (Hidrocarburos)
A80: 79 | B80: Huehuetlán el Grande | C80: 13/08 | F80: 3.3.3 Combustibles Nucleares
A81: 80 | B81: Huitziltepec | C81: 13/09 | F81: 3.3.4 Otros Combustibles
A82: 81 | B82: Ixcaquixtla | C82: 13/10 | F82: 3.3.5 Electricidad
A83: 82 | B83: Juan N. Méndez | C83: 13/11 | F83: 3.3.6 Energía no Eléctrica
A84: 83 | B84: La Magdalena Tlatlauquitepec | C84: 13/12 | F84: 3.4.1 Extracción de Recursos Minerales excepto los Combustibles Minerales
A85: 84 | B85: Molcaxac | C85: 13/13 | F85: 3.4.2 Manufacturas
A86: 85 | B86: San Juan Atzompa | C86: 13/14 | F86: 3.4.3 Construcción
A87: 86 | B87: Santa Catarina Tlaltempan | C87: 13/15 | F87: 3.5.1 Transporte por Carretera
A88: 87 | B88: Santa Inés Ahuatempan | C88: 13/16 | F88: 3.5.2 Transporte por Agua y Puertos
A89: 88 | B89: Tepeyahualco de Cuauhtémoc | C89: 13/17 | F89: 3.5.3 Transporte por Ferrocarril
A90: 89 | B90: Zacapala | C90: 13/18 | F90: 3.5.4 Transporte Aéreo
A91: 90 | B91: Tehuacán | C91: 14/01 | F91: 3.5.5 Transporte por Oleoductos y Gasoductos y Otros Sistemas de Transporte
A92: 91 | B92: Tepanco de López | C92: 14/02 | F92: 3.5.6 Otros Relacionados con Transporte
A93: 92 | B93: Chapulco | C93: 14/03 | F93: 3.6.1 Comunicaciones
A94: 93 | B94: Santiago Miahuatlán | C94: 14/04 | F94: 3.7.1 Turismo
A95: 94 | B95: Nicolás Bravo | C95: 14/05 | F95: 3.7.2 Hoteles y Restaurantes
A96: 95 | B96: Ajalpan | C96: 15/01 | F96: 3.8.1 Investigación Científica
A97: 96 | B97: Zapotitlán | C97: 15/02 | F97: 3.8.2 Desarrollo Tecnológico
A98: 97 | B98: Caltepec | C98: 15/03 | F98: 3.8.3 Servicios Científicos y Tecnológicos
A99: 98 | B99: San Gabriel Chilac | C99: 15/04 | F99: 3.8.4 Innovación
A100: 99 | B100: San José Miahuatlán | C100: 15/05 | F100: 3.9.1 Comercio, Distribución, Almacenamiento y Depósito
A101: 100 | B101: Altepexi | C101: 15/06 | F101: 3.9.2 Otras Industrias
A102: 101 | B102: Zinacatepec | C102: 15/07 | F102: 3.9.3 Otros Asuntos Económicos
A103: 102 | B103: Coxcatlán | C103: 15/08 | F103: 4.1.1 Deuda Pública Interna
A104: 103 | B104: San Antonio Cañada | C104: 15/09 | F104: 4.1.2 Deuda Pública Externa
A105: 104 | B105: Vicente Guerrero | C105: 15/10 | F105: 4.2.1 Transferencias entre Diferentes Niveles y Ordenes de Gobierno
A106: 105 | B106: Zoquitlán | C106: 15/11 | F106: 4.2.2 Participaciones entre Diferentes Niveles y Ordenes de Gobierno
A107: 106 | B107: Coyomeapan | C107: 15/12 | F107: 4.2.3 Aportaciones entre Diferentes Niveles y Ordenes de Gobierno
A108: 107 | B108: San Sebastián Tlacotepec | C108: 15/13 | F108: 4.3.1 Saneamiento del Sistema Financiero
A109: 108 | B109: Eloxochitlán | C109: 15/14 | F109: 4.3.2 Apoyos IPAB
A110: 109 | B110: Tepeaca | C110: 16/01 | F110: 4.3.3 Banca de Desarrollo
A111: 110 | B111: Acajete | C111: 16/02 | F111: 4.3.4 Apoyo a los programas de reestructura en unidades de inversión (UDIS)
A112: 111 | B112: Amozoc | C112: 16/03 | F112: 4.4.1 Adeudos de Ejercicios Fiscales Anteriores
A113: 112 | B113: Cuautinchán | C113: 16/04
A114: 113 | B114: Mixtla | C114: 16/05
A115: 114 | B115: Santo Tomás Hueyotlipan | C115: 16/06
A116: 115 | B116: Tecali de Herrera | C116: 16/07
A117: 116 | B117: Tepatlaxco de Hidalgo | C117: 16/08
A118: 117 | B118: Tzicatlacoyan | C118: 16/09
A119: 118 | B119: Tecamachalco | C119: 17/01
A120: 119 | B120: Cuapiaxtla de Madero | C120: 17/02
A121: 120 | B121: General Felipe Ángeles | C121: 17/03
A122: 121 | B122: Palmar de Bravo | C122: 17/04
A123: 122 | B123: Quecholac | C123: 17/05
A124: 123 | B124: Los Reyes de Juárez | C124: 17/06
A125: 124 | B125: San Salvador Huixcolotla | C125: 17/07
A126: 125 | B126: Tlacotepec de Benito Juárez | C126: 17/08
A127: 126 | B127: Tlanepantla | C127: 17/09
A128: 127 | B128: Tochtepec | C128: 17/10
A129: 128 | B129: Xochitlán Todos Santos | C129: 17/11
A130: 129 | B130: Yehualtepec | C130: 17/12
A131: 130 | B131: Acatzingo | C131: 18/01
A132: 131 | B132: Mazapiltepec de Juárez | C132: 18/02
A133: 132 | B133: Nopalucan | C133: 18/03
A134: 133 | B134: Rafael Lara Grajales | C134: 18/04
A135: 134 | B135: San José Chiapa | C135: 18/05
A136: 135 | B136: San Nicolás Buenos Aires | C136: 18/06
A137: 136 | B137: San Salvador el Seco | C137: 18/07
A138: 137 | B138: Soltepec | C138: 18/08
A139: 138 | B139: Chalchicomula de Sesma | C139: 19/01
A140: 139 | B140: Aljojuca | C140: 19/02
A141: 140 | B141: Atzitzintla | C141: 19/03
A142: 141 | B142: Cañada Morelos | C142: 19/04
A143: 142 | B143: Chichiquila | C143: 19/05
A144: 143 | B144: Chilchotla | C144: 19/06
A145: 144 | B145: Esperanza | C145: 19/07
A146: 145 | B146: Guadalupe Victoria | C146: 19/08
A147: 146 | B147: Lafragua | C147: 19/09
A148: 147 | B148: Quimixtlán | C148: 19/10
A149: 148 | B149: San Juan Atenco | C149: 19/11
A150: 149 | B150: Tlachichuca | C150: 19/12
A151: 150 | B151: Tlatlauquitepec | C151: 20/01
A152: 151 | B152: Atempan | C152: 20/02
A153: 152 | B153: Hueyapan | C153: 20/03
A154: 153 | B154: Libres | C154: 20/04
A155: 154 | B155: Oriental | C155: 20/05
A156: 155 | B156: Tepeyahualco | C156: 20/06
A157: 156 | B157: Teteles de Ávila Castillo | C157: 20/07
A158: 157 | B158: Yaonahuac | C158: 20/08
A159: 158 | B159: Zaragoza | C159: 20/09
A160: 159 | B160: Teziutlán | C160: 21/01
A161: 160 | B161: Acateno | C161: 21/02
A162: 161 | B162: Ayotoxco de Guerrero | C162: 21/03
A163: 162 | B163: Chignautla | C163: 21/04
A164: 163 | B164: Hueytamalco | C164: 21/05
A165: 164 | B165: Tenampulco | C165: 21/06
A166: 165 | B166: Xiutetelco | C166: 21/07
A167: 166 | B167: Zacapoaxtla | C167: 22/01
A168: 167 | B168: Cuetzalan del Progreso | C168: 22/02
A169: 168 | B169: Cuyoaco | C169: 22/03
A170: 169 | B170: Jonotla | C170: 22/04
A171: 170 | B171: Nauzontla | C171: 22/05
A172: 171 | B172: Ocotepec | C172: 22/06
A173: 172 | B173: Tuzamapan de Galeana | C173: 22/07
A174: 173 | B174: Xochitlán de Vicente Suárez | C174: 22/08
A175: 174 | B175: Zautla | C175: 22/09
A176: 175 | B176: Zoquiapan | C176: 22/10
A177: 176 | B177: Tetela de Ocampo | C177: 23/01
A178: 177 | B178: Aquixtla | C178: 23/02
A179: 178 | B179: Cuautempan | C179: 23/03
A180: 179 | B180: Chignahuapan | C180: 23/04
A181: 180 | B181: Huitzilan de Serdán | C181: 23/05
A182: 181 | B182: Ixtacamaxtitlan | C182: 23/06
A183: 182 | B183: Xochiapulco | C183: 23/07
A184: 183 | B184: Zapotitlán de Méndez | C184: 23/08
A185: 184 | B185: Zongozotla | C185: 23/09
A186: 185 | B186: Zacatlán | C186: 24/01
A187: 186 | B187: Ahuacatlán | C187: 24/02
A188: 187 | B188: Amixtlán | C188: 24/03
A189: 188 | B189: Camocuautla | C189: 24/04
A190: 189 | B190: Caxhuacan | C190: 24/05
A191: 190 | B191: Coatepec | C191: 24/06
A192: 191 | B192: Hermenegildo Galeana | C192: 24/07
A193: 192 | B193: Huehuetla | C193: 24/08
A194: 193 | B194: Hueytlalpan | C194: 24/09
A195: 194 | B195: Atlequizayán | C195: 24/10
A196: 195 | B196: Ixtepec | C196: 24/11
A197: 196 | B197: Jopala | C197: 24/12
A198: 197 | B198: Olintla | C198: 24/13
A199: 198 | B199: San Felipe Tepatlán | C199: 24/14
A200: 199 | B200: Tepango de Rodríguez | C200: 24/15
... 53 more rows

Sheet Nota de Conocimiento
A1: Los presentes formatos son el instrumento para la elaboración de los Programas Presupuestario 2022 de las Entidades Fiscalizadas (Ayuntamientos, EOAPAS y Entidades Paramunicipales). SE HACE DE SU CONOCIMIENTO QUE LOS FORMATOS NO PODRÁN SER ALTERADOS EN SU FORMA Y CONTENIDO, ya que los elementos que lo conforman son parte obligatoria de cada Programa Presupuestario, de acuerdo a la capacitación y asesorías otorgadas por parte de la Auditoría Superior del Estado.

Sheet Hoja3 (hidden)
A1: 1. Poner fin a la pobreza en todas sus formas en todo el mundo.
A2: 2. Poner fin al hambre, lograr la seguridad alimentaria y la mejora de la nutrición y promover la agricultura sostenible.
A3: 3. Garantizar una vida sana y promover el bienestar para todos en todas las edades.
A4: 4. Garantizar una educación inclusiva, equitativa y de calidad y promover oportunidades de aprendizaje durante toda la vida para todos.
A5: 5. Lograr la igualdad entre los géneros y el empoderamiento de todas las mujeres y niñas
A6: 6. Garantizar la disponibilidad de agua y su ordenación sostenible y el saneamiento para todos.
A7: 7. Garantizar el acceso a una energía asequible, segura, sostenible y moderna para todos.
A8: 8. Promover el crecimiento económico sostenido, inclusivo y sostenible, el empleo pleno y productivo y el trabajo decente para todos.
A9: 9. Construir infraestructura resiliente, promover la industrialización inclusiva y sostenible y fomentar la innovación.
A10: 10. Reducir la desigualdad en y entre los países.
A11: 11. Lograr que las ciudades y los asentamientos humanos sean inclusivos, seguros, resilientes y sostenibles.
A12: 12.Garantizar modalidades de consumo y producción sostenibles.
A13: 13. Adoptar medidas urgentes para combatir el cambio climático y sus efectos (tomando nota de los acuerdos celebrados en el foro de la Convención Marco de las Naciones Unidas sobre el Cambio Climático).
A14: 14. Conservar y utilizar en forma sostenible los océanos, los mares y los recursos marinos para el desarrollo sostenible.
A15: 15. Proteger, restablecer y promover el uso sostenible de los ecosistemas terrestres, efectuar una ordenación sostenible de los bosques, luchar contra la desertificación, detener y revertir la degradación de las tierras y poner freno a la pérdida de la diversidad biológica.
A16: 16. Promover sociedades pacíficas e inclusivas para el desarrollo sostenible, facilitar el acceso a la justicia para todos y crear instituciones eficaces, responsables e inclusivas a todos los niveles.
A17: 17. Fortalecer los medios de ejecución y revitalizar la alianza mundial para el desarrollo sostenible.

Sheet Programa 1
C2: CLAVE: | F2: 11/04
C3: ENTIDAD FISCALIZADA: | F3: =IF(ISERROR(VLOOKUP(F2,general!$B:$C,2,FALSE))=TRUE,"",(VLOOKUP(F2,general!$B:$C,2,FALSE))) -> Chietla
D4: AÑO: | F4: 2025
A6: PROGRAMA PRESUPUESTARIO
A8: Nombre del Programa | D8: Gobierno Administración Pública
A9: Unidad(es) Responsable(s) | D9: 01 Presidencia - 02 Tesorería, - 03 Recursos Humanos, - 04 Secretaria General, - 06 Regidurias, - 09 Juntas Auxiliares, - 10 Contraloría, - 11 Registro Civil, - 13 Contabilidad, - 14 Colonias e Inspectorías, - 17 Direcciones de la Presidencia Municipal, - 18 Adjudicaciones
A10: Costo Total del Programa
A11: Fuente de Financiamiento | D11: RECURSOS FISCALES | G11: PARTICIPACIONES | L11: FISM | P11: FORTAMUN | T11: OTROS
A12: Monto Específco | D12: $41,296,029.17
A14: CLASIFICACIÓN FUNCIONAL DEL GASTO
A15: CLASIFICACIÓN | D15: CONCEPTO
A16: Finalidad | D16: 1. Gobierno
A17: Función | D17: 1.5. Asuntos financieros y hacendarios
A18: Subfunción | D18: 1.5.2 Asuntos Hacendarios
A19: Sub/Subfunción | D19: 1.5.2.1 Asuntos Hacendarios
A21: GASTO POR CATEGORÍA PROGRAMÁTICA
A22: CATEGORÍA | D22: Administrativos y de apoyo
A23: PROGRAMA | D23: Apoyo al proceso presupuestario y para mejorar la eficiencia
A25: DATOS DE VINCULACIÓN AL PLAN ESTATAL DE DESARROLLO
A26: Eje 5 Tranpsarencia, Participación Ciudadana y Combate a la Corrupción
A27: DATOS DE VINCULACIÓN AL PLAN MUNICIPAL DE DESARROLLO (EJES, ESTRATEGIAS U OBJETIVOS GENERALES)
A28: EJE 3 GOBERNANZA MUNICIPAL INTEGRAL
A29: NIVEL INMEDIATO INFERIOR (OBJETIVO O LíNEA ESTRATÉGICA)
A30: Objetivo 1 Proporcionar a la población en general el derecho de acceso a la información pública, y la transparencia gubernamental. Objetivo 3 Mejorar la prestación de los servicios públicos municipales en beneficio de la población
A31: DATOS DE VINCULACIÓN A OBJETIVOS DE DESARROLLO SOSTENIBLE
A32: 16. Promover sociedades pacíficas e inclusivas para el desarrollo sostenible, facilitar el acceso a la justicia para todos y crear instituciones eficaces, responsables e inclusivas a todos los niveles.
A33: FIN
A35: RESUMEN NARRATIVO | C35: Contribuir a que el gobierno municipal de Chietla mejore la administración pública de forma eficiente, mediante la implementación de mejoras administrativas
A37: Indicador
A39: NOMBRE | C39: Porcentaje de programas de mejora administrativas operadas en 2025
A41: DIMENSIÓN A MEDIR | C41: Eficacia | E41: FRECUENCIA DE MEDICIÓN | G41: Anual | M41: MÉTODO DE CALCULO | Q41: (v1/v2)*100
A43: TIPO DE INDICADOR | C43: Estratégico | E43: TIPO DE FÓRMULA | G43: Porcentaje | M43: COMPORTAMIENTO DEL INDICADOR HACIA LA META | Q43: Regular
C45: LINEA BASE | O45: META DEL INDICADOR
C46: 173 | E46: 2024 | O46: 174
C47: VALOR | E47: AÑO
A49: PROGRAMADO
A50: VARIABLES | C50: NOMBRE | E50: UNIDAD DE MEDIDA | F50: CALENDARIO - PROGRAMADO | V50: TOTAL | W50: META PROGRAMADA EN EL AÑO
F51: PROGRAMADO | I51: ENE | J51: FEB | K51: MAR | L51: ABR | M51: MAY | N51: JUN | O51: JUL | P51: AGO | Q51: SEP | R51: OCT | S51: NOV | T51: DIC
A52: VARIABLE 1 | C52: Numero de programas de mejora administrativa implementados en 2025 | E52: programa | F52: PROGRAMADO VARIABLE 1 | I52: 15 | J52: 13 | K52: 16 | L52: 13 | M52: 14 | N52: 16 | O52: 13 | P52: 13 | Q52: 17 | R52: 13 | S52: 13 | T52: 18 | V52: =IF(SUM(I52:T52)=0,"",SUM(I52:T52)) -> 174 | W52: =IF($G$43="porcentaje",FIXED(V52/V53*100,2)&"%",IF($G$43="Promedio",V52/V53,IF($G$43="variación porcentual",FIXED(((V52/V53)-1)*100,2)&"%",IF($G$43="OTRAS","CAPTURAR EL RESULTADO DEL INDICADOR")))) -> 100.00%
A53: VARIABLE 2 | C53: Total de programas administrativos desarrollados | E53: programa | F53: PROGRAMADO VARIABLE 2 | I53: 15 | J53: 13 | K53: 16 | L53: 13 | M53: 14 | N53: 16 | O53: 13 | P53: 13 | Q53: 17 | R53: 13 | S53: 13 | T53: 18 | U53: =SUM(I53:T53) -> 174 | V53: =IF(SUM(I53:T53)=0,"",SUM(I53:T53)) -> 174
A54: REALIZADO
A55: VARIABLES | C55: NOMBRE | E55: UNIDAD DE MEDIDA | F55: CALENDARIO - PROGRAMADO | V55: TOTAL | W55: RESULTADO ALCANZADO EN EL AÑO
F56: REALIZADO | I56: ENE | J56: FEB | K56: MAR | L56: ABR | M56: MAY | N56: JUN | O56: JUL | P56: AGO | Q56: SEP | R56: OCT | S56: NOV | T56: DIC
A57: VARIABLE 1 | C57: =IF(C52=0,"",C52) -> Numero de programas de mejora administrativa implementados en 2025 | E57: =IF(E52=0,"",E52) -> programa | F57: REALIZADO VARIABLE 1 | V57: =IF(SUM(I57:T57)=0,"",SUM(I57:T57)) ->  | W57: =IF($G$43="porcentaje",FIXED(V57/V58*100,2)&"%",IF($G$43="Promedio",V57/V58,IF($G$43="variación porcentual",FIXED(((V57/V58)-1)*100,2)&"%",IF($G$43="OTRAS","CAPTURAR EL RESULTADO DEL INDICADOR")))) -> 
A58: VARIABLE 2 | C58: =IF(C53=0,"",C53) -> Total de programas administrativos desarrollados | E58: =IF(E53=0,"",E53) -> programa | F58: REALIZADO VARIABLE 2 | U58: =SUM(I58:T58) -> 0 | V58: =IF(SUM(I58:T58)=0,"",SUM(I58:T58)) -> 
A60: CUMPLIMIENTO FINAL | W60: =IF(ISERROR(W57/W52)=TRUE,"",(W57/W52)) -> 
A62: Explicaciones y causas de las variaciones al cumplimiento de la programación, ¿ Por qué no se cumplio o por que se supero considerablemente lo programado?
A64: PROPÓSITO
A66: RESUMEN NARRATIVO | C66: El Municipio de Chietla cuenta con mecanismos eficientes en materia de rendición de cuentas en favor de la particiáción equitativa de hombres y mujeres
A68: Indicador
A70: NOMBRE | C70: Porcentaje de población beneficiada con mecanismos eficients en materia de rendición de cuentas en favor de la participación equitativa de hombres y mujeres
A72: DIMENSIÓN A MEDIR | C72: Eficiencia | E72: FRECUENCIA DE MEDICIÓN | G72: Anual | M72: MÉTODO DE CALCULO | Q72: (v1/v2)*100
A74: TIPO DE INDICADOR | C74: Estratégico | E74: TIPO DE FÓRMULA | G74: Porcentaje | M74: COMPORTAMIENTO DEL INDICADOR HACIA LA META | Q74: Regular
C76: LINEA BASE | O76: META DEL INDICADOR
C77: 27773 | E77: 2024 | O77: 27773.0
C78: VALOR | E78: AÑO
A80: PROGRAMADO
A81: VARIABLES | C81: NOMBRE | E81: UNIDAD DE MEDIDA | F81: CALENDARIO - PROGRAMADO | V81: TOTAL | W81: META PROGRAMADA EN EL AÑO
F82: PROGRAMADO | I82: ENE | J82: FEB | K82: MAR | L82: ABR | M82: MAY | N82: JUN | O82: JUL | P82: AGO | Q82: SEP | R82: OCT | S82: NOV | T82: DIC
A83: VARIABLE 1 | C83: Numero de habitantes beneficiados con los mecanismos en materia de rendición de cuentas en favor de la participación equitativa de hombres y mujeres | E83: habitantes | F83: PROGRAMADO VARIABLE 1 | T83: 27773 | V83: =IF(SUM(I83:T83)=0,"",SUM(I83:T83)) -> 27773 | W83: =IF($G$74="porcentaje",FIXED(V83/V84*100,2)&"%",IF($G$74="Promedio",V83/V84,IF($G$74="variación porcentual",FIXED(((V83/V84)-1)*100,2)&"%",IF($G$74="OTRAS","CAPTURAR EL RESULTADO DEL INDICADOR")))) -> 100.00%
A84: VARIABLE 2 | C84: Total de población del municipio | E84: habitantes | F84: PROGRAMADO VARIABLE 2 | T84: 27773 | U84: =SUM(I84:T84) -> 27773 | V84: =IF(SUM(I84:T84)=0,"",SUM(I84:T84)) -> 27773
A85: REALIZADO
A86: VARIABLES | C86: NOMBRE | E86: UNIDAD DE MEDIDA | F86: CALENDARIO - PROGRAMADO | V86: TOTAL | W86: RESULTADO ALCANZADO EN EL AÑO
F87: REALIZADO | I87: ENE | J87: FEB | K87: MAR | L87: ABR | M87: MAY | N87: JUN | O87: JUL | P87: AGO | Q87: SEP | R87: OCT | S87: NOV | T87: DIC
A88: VARIABLE 1 | C88: =IF(C83=0,"",C83) -> Numero de habitantes beneficiados con los mecanismos en materia de rendición de cuentas en favor de la participación equitativa de hombres y mujeres | E88: =IF(E83=0,"",E83) -> habitantes | F88: REALIZADO VARIABLE 1 | V88: =IF(SUM(I88:T88)=0,"",SUM(I88:T88)) ->  | W88: =IF($G$74="porcentaje",FIXED(V88/V89*100,2)&"%",IF($G$74="Promedio",V88/V89,IF($G$74="variación porcentual",FIXED(((V88/V89)-1)*100,2)&"%",IF($G$74="OTRAS","CAPTURAR EL RESULTADO DEL INDICADOR")))) -> 
A89: VARIABLE 2 | C89: =IF(C84=0,"",C84) -> Total de población del municipio | E89: =IF(E84=0,"",E84) -> habitantes | F89: REALIZADO VARIABLE 2 | U89: =SUM(I89:T89) -> 0 | V89: =IF(SUM(I89:T89)=0,"",SUM(I89:T89)) -> 
A91: CUMPLIMIENTO FINAL | W91: =IF(ISERROR(W88/W83)=TRUE,"",(W88/W83)) -> 
A93: Explicaciones y causas de las variaciones al cumplimiento de la programación, ¿ Por qué no se cumplio o por que se supero considerablemente lo programado?
A95: COMPONENTES
A97: COMPONENTE 1 RESUMEN NARRATIVO | C97: Recaudación incrementada
A99: Indicador
A101: NOMBRE | C101: Porcentaje de incremento en la recaudación
A103: DIMENSIÓN A MEDIR | C103: Eficacia | E103: FRECUENCIA DE MEDICIÓN | G103: Semestral | M103: MÉTODO DE CALCULO | Q103: (v1/v2)*100
A105: TIPO DE INDICADOR | C105: Estratégico | E105: TIPO DE FÓRMULA | G105: Porcentaje | M105: COMPORTAMIENTO DEL INDICADOR HACIA LA META | Q105: Ascendente
C107: LINEA BASE | O107: META DEL INDICADOR
C108: no disponible | E108: 2024 | O108: mayor de 15%
C109: VALOR | E109: AÑO
A111: PROGRAMADO
A112: VARIABLES | C112: NOMBRE | E112: UNIDAD DE MEDIDA | F112: CALENDARIO - PROGRAMADO | V112: TOTAL | W112: META PROGRAMADA EN EL AÑO
F113: PROGRAMADO | I113: ENE | J113: FEB | K113: MAR | L113: ABR | M113: MAY | N113: JUN | O113: JUL | P113: AGO | Q113: SEP | R113: OCT | S113: NOV | T113: DIC
A114: VARIABLE 1 | C114: Recaudación 2025 | E114: pesos | F114: PROGRAMADO VARIABLE 1 | N114: 115 | T114: 120 | V114: =IF(SUM(I114:T114)=0,"",SUM(I114:T114)) -> 235 | W114: =IF($G$105="porcentaje",FIXED(V114/V115*100,2)&"%",IF($G$105="Promedio",V114/V115,IF($G$105="variación porcentual",FIXED(((V114/V115)-1)*100,2)&"%",IF($G$105="OTRAS","CAPTURAR EL RESULTADO DEL INDICADOR")))) -> 117.50%
A115: VARIABLE 2 | C115: Recaudación 2024 | E115: pesos | F115: PROGRAMADO VARIABLE 2 | N115: 100 | T115: 100 | U115: =SUM(I115:T115) -> 200 | V115: =IF(SUM(I115:T115)=0,"",SUM(I115:T115)) -> 200
A116: REALIZADO
A117: VARIABLES | C117: NOMBRE | E117: UNIDAD DE MEDIDA | F117: CALENDARIO - PROGRAMADO | V117: TOTAL | W117: RESULTADO ALCANZADO EN EL AÑO
F118: REALIZADO | I118: ENE | J118: FEB | K118: MAR | L118: ABR | M118: MAY | N118: JUN | O118: JUL | P118: AGO | Q118: SEP | R118: OCT | S118: NOV | T118: DIC
A119: VARIABLE 1 | C119: =IF(C114=0,"",C114) -> Recaudación 2025 | E119: =IF(E114=0,"",E114) -> pesos | F119: REALIZADO VARIABLE 1 | V119: =IF(SUM(I119:T119)=0,"",SUM(I119:T119)) ->  | W119: =IF($G$105="porcentaje",FIXED(V119/V120*100,2)&"%",IF($G$105="Promedio",V119/V120,IF($G$105="variación porcentual",FIXED(((V119/V120)-1)*100,2)&"%",IF($G$105="OTRAS","CAPTURAR EL RESULTADO DEL INDICADOR")))) -> 
A120: VARIABLE 2 | C120: =IF(C115=0,"",C115) -> Recaudación 2024 | E120: =IF(E115=0,"",E115) -> pesos | F120: REALIZADO VARIABLE 2 | U120: =SUM(I120:T120) -> 0 | V120: =IF(SUM(I120:T120)=0,"",SUM(I120:T120)) -> 
A122: CUMPLIMIENTO FINAL | W122: =IF(ISERROR(W119/W114)=TRUE,"",(W119/W114)) -> 
A124: Explicaciones y causas de las variaciones al cumplimiento de la programación, ¿ Por qué no se cumplio o por que se supero considerablemente lo programado?
A126: COMPONENTE 2 RESUMEN NARRATIVO | C126: Fortalecimiento en la administración de los recursos humanos
A128: Indicador
A130: NOMBRE | C130: Porcentaje de acciones enfocadas a la administración de recursos humanos
A132: DIMENSIÓN A MEDIR | C132: Eficiencia | E132: FRECUENCIA DE MEDICIÓN | G132: Trimestral | M132: MÉTODO DE CALCULO | Q132: (v1/v2)*100
A134: TIPO DE INDICADOR | C134: Gestión | E134: TIPO DE FÓRMULA | G134: Porcentaje | M134: COMPORTAMIENTO DEL INDICADOR HACIA LA META | Q134: Regular
C136: LINEA BASE | O136: META DEL INDICADOR
C137: 24 | E137: 2024 | O137: 50
C138: VALOR | E138: AÑO
A140: PROGRAMADO
A141: VARIABLES | C141: NOMBRE | E141: UNIDAD DE MEDIDA | F141: CALENDARIO - PROGRAMADO | V141: TOTAL | W141: META PROGRAMADA EN EL AÑO
F142: PROGRAMADO | I142: ENE | J142: FEB | K142: MAR | L142: ABR | M142: MAY | N142: JUN | O142: JUL | P142: AGO | Q142: SEP | R142: OCT | S142: NOV | T142: DIC
A143: VARIABLE 1 | C143: Acciones enfocadas a la administración de los recursos humanos | E143: acciones | F143: PROGRAMADO VARIABLE 1 | I143: 4.16 | J143: 4.16 | K143: 4.16 | L143: 4.16 | M143: 4.16 | N143: 4.16 | O143: 4.16 | P143: 4.16 | Q143: 4.16 | R143: 4.16 | S143: 4.16 | T143: 4.16 | V143: =IF(SUM(I143:T143)=0,"",SUM(I143:T143)) -> 50 | W143: =IF($G$134="porcentaje",FIXED(V143/V144*100,2)&"%",IF($G$134="Promedio",V143/V144,IF($G$134="variación porcentual",FIXED(((V143/V144)-1)*100,2)&"%",IF($G$134="OTRAS","CAPTURAR EL RESULTADO DEL INDICADOR")))) -> 100.00%
A144: VARIABLE 2 | C144: Total de acciones enfocadas a la administración de los recursos humanos | E144: acciones | F144: PROGRAMADO VARIABLE 2 | I144: 4.16 | J144: 4.16 | K144: 4.16 | L144: 4.16 | M144: 4.16 | N144: 4.16 | O144: 4.16 | P144: 4.16 | Q144: 4.16 | R144: 4.16 | S144: 4.16 | T144: 4.16 | U144: =SUM(I144:T144) -> 49.92 | V144: =IF(SUM(I144:T144)=0,"",SUM(I144:T144)) -> 50
A145: REALIZADO
A146: VARIABLES | C146: NOMBRE | E146: UNIDAD DE MEDIDA | F146: CALENDARIO - PROGRAMADO | V146: TOTAL | W146: RESULTADO ALCANZADO EN EL AÑO
F147: REALIZADO | I147: ENE | J147: FEB | K147: MAR | L147: ABR | M147: MAY | N147: JUN | O147: JUL | P147: AGO | Q147: SEP | R147: OCT | S147: NOV | T147: DIC
A148: VARIABLE 1 | C148: =IF(C143=0,"",C143) -> Acciones enfocadas a la administración de los recursos humanos | E148: =IF(E143=0,"",E143) -> acciones | F148: REALIZADO VARIABLE 1 | V148: =IF(SUM(I148:T148)=0,"",SUM(I148:T148)) ->  | W148: =IF($G$134="porcentaje",FIXED(V148/V149*100,2)&"%",IF($G$134="Promedio",V148/V149,IF($G$134="variación porcentual",FIXED(((V148/V149)-1)*100,2)&"%",IF($G$134="OTRAS","CAPTURAR EL RESULTADO DEL INDICADOR")))) -> 
A149: VARIABLE 2 | C149: =IF(C144=0,"",C144) -> Total de acciones enfocadas a la administración de los recursos humanos | E149: =IF(E144=0,"",E144) -> acciones | F149: REALIZADO VARIABLE 2 | U149: =SUM(I149:T149) -> 0 | V149: =IF(SUM(I149:T149)=0,"",SUM(I149:T149)) -> 
A151: CUMPLIMIENTO FINAL | W151: =IF(ISERROR(W148/W143)=TRUE,"",(W148/W143)) -> 
A153: Explicaciones y causas de las variaciones al cumplimiento de la programación, ¿ Por qué no se cumplio o por que se supero considerablemente lo programado?
A155: COMPONENTE 3 RESUMEN NARRATIVO | C155: Recursos materiales optimizados para el desarrollo de actividades
A157: Indicador
A159: NOMBRE | C159: Porcentaje de acciones de optimización de recursos materiales para el desarrollo de actividades
A161: DIMENSIÓN A MEDIR | C161: Economía | E161: FRECUENCIA DE MEDICIÓN | G161: Trimestral | M161: MÉTODO DE CALCULO | Q161: (v1/v2)*100
A163: TIPO DE INDICADOR | C163: Gestión | E163: TIPO DE FÓRMULA | G163: Porcentaje | M163: COMPORTAMIENTO DEL INDICADOR HACIA LA META | Q163: Regular
C165: LINEA BASE | O165: META DEL INDICADOR
C166: 48 | E166: 2024 | O166: 39
C167: VALOR | E167: AÑO
A169: PROGRAMADO
A170: VARIABLES | C170: NOMBRE | E170: UNIDAD DE MEDIDA | F170: CALENDARIO - PROGRAMADO | V170: TOTAL | W170: META PROGRAMADA EN EL AÑO
F171: PROGRAMADO | I171: ENE | J171: FEB | K171: MAR | L171: ABR | M171: MAY | N171: JUN | O171: JUL | P171: AGO | Q171: SEP | R171: OCT | S171: NOV | T171: DIC
A172: VARIABLE 1 | C172: Acciones de optimización de recursos materiales para el desarrollo de actividades | E172: Acciones | F172: PROGRAMADO VARIABLE 1 | I172: 4 | J172: 3 | K172: 3 | L172: 3 | M172: 4 | N172: 3 | O172: 3 | P172: 3 | Q172: 4 | R172: 3 | S172: 3 | T172: 3 | V172: =IF(SUM(I172:T172)=0,"",SUM(I172:T172)) -> 39 | W172: =IF($G$163="porcentaje",FIXED(V172/V173*100,2)&"%",IF($G$163="Promedio",V172/V173,IF($G$163="variación porcentual",FIXED(((V172/V173)-1)*100,2)&"%",IF($G$163="OTRAS","CAPTURAR EL RESULTADO DEL INDICADOR")))) -> 100.00%
A173: VARIABLE 2 | C173: Total de acciones de optimización de recursos materiales | E173: Acciones | F173: PROGRAMADO VARIABLE 2 | I173: 4 | J173: 3 | K173: 3 | L173: 3 | M173: 4 | N173: 3 | O173: 3 | P173: 3 | Q173: 4 | R173: 3 | S173: 3 | T173: 3 | U173: =SUM(I173:T173) -> 39 | V173: =IF(SUM(I173:T173)=0,"",SUM(I173:T173)) -> 39
A174: REALIZADO
A175: VARIABLES | C175: NOMBRE | E175: UNIDAD DE MEDIDA | F175: CALENDARIO - PROGRAMADO | V175: TOTAL | W175: RESULTADO ALCANZADO EN EL AÑO
F176: REALIZADO | I176: ENE | J176: FEB | K176: MAR | L176: ABR | M176: MAY | N176: JUN | O176: JUL | P176: AGO | Q176: SEP | R176: OCT | S176: NOV | T176: DIC
A177: VARIABLE 1 | C177: =IF(C172=0,"",C172) -> Acciones de optimización de recursos materiales para el desarrollo de actividades | E177: =IF(E172=0,"",E172) -> Acciones | F177: REALIZADO VARIABLE 1 | V177: =IF(SUM(I177:T177)=0,"",SUM(I177:T177)) ->  | W177: =IF($G$163="porcentaje",FIXED(V177/V178*100,2)&"%",IF($G$163="Promedio",V177/V178,IF($G$163="variación porcentual",FIXED(((V177/V178)-1)*100,2)&"%",IF($G$163="OTRAS","CAPTURAR EL RESULTADO DEL INDICADOR")))) -> 
A178: VARIABLE 2 | C178: =IF(C173=0,"",C173) -> Total de acciones de optimización de recursos materiales | E178: =IF(E173=0,"",E173) -> Acciones | F178: REALIZADO VARIABLE 2 | U178: =SUM(I178:T178) -> 0 | V178: =IF(SUM(I178:T178)=0,"",SUM(I178:T178)) -> 
A180: CUMPLIMIENTO FINAL | W180: =IF(ISERROR(W177/W172)=TRUE,"",(W177/W172)) -> 
A182: Explicaciones y causas de las variaciones al cumplimiento de la programación, ¿ Por qué no se cumplio o por que se supero considerablemente lo programado?
A184: COMPONENTE 4 RESUMEN NARRATIVO | C184: Mejoramiento de las acciones administrativas y de control
A186: Indicador
A188: NOMBRE | C188: Porcentaje de acciones de mejora administrativas implementadas en 2025
A190: DIMENSIÓN A MEDIR | C190: Eficiencia | E190: FRECUENCIA DE MEDICIÓN | G190: Trimestral | M190: MÉTODO DE CALCULO | Q190: (v1/V2)*100
A192: TIPO DE INDICADOR | C192: Gestión | E192: TIPO DE FÓRMULA | G192: Porcentaje | M192: COMPORTAMIENTO DEL INDICADOR HACIA LA META | Q192: Regular
C194: LINEA BASE | O194: META DEL INDICADOR
C195: 65 | E195: 2024 | O195: 21
C196: VALOR | E196: AÑO
A198: PROGRAMADO
A199: VARIABLES | C199: NOMBRE | E199: UNIDAD DE MEDIDA | F199: CALENDARIO - PROGRAMADO | V199: TOTAL | W199: META PROGRAMADA EN EL AÑO
F200: PROGRAMADO | I200: ENE | J200: FEB | K200: MAR | L200: ABR | M200: MAY | N200: JUN | O200: JUL | P200: AGO | Q200: SEP | R200: OCT | S200: NOV | T200: DIC
A201: VARIABLE 1 | C201: Numero de acciones de mejora administrativa implementadas | E201: acciones | F201: PROGRAMADO VARIABLE 1 | I201: 2 | J201: 1 | K201: 3 | L201: 1 | M201: 1 | N201: 3 | O201: 1 | P201: 1 | Q201: 3 | R201: 1 | S201: 1 | T201: 3 | V201: =IF(SUM(I201:T201)=0,"",SUM(I201:T201)) -> 21 | W201: =IF($G$192="porcentaje",FIXED(V201/V202*100,2)&"%",IF($G$192="Promedio",V201/V202,IF($G$192="variación porcentual",FIXED(((V201/V202)-1)*100,2)&"%",IF($G$192="OTRAS","CAPTURAR EL RESULTADO DEL INDICADOR")))) -> 100.00%
A202: VARIABLE 2 | C202: Total de acciones de mejora adminimistrativas | E202: acciones | F202: PROGRAMADO VARIABLE 2 | I202: 2 | J202: 1 | K202: 3 | L202: 1 | M202: 1 | N202: 3 | O202: 1 | P202: 1 | Q202: 3 | R202: 1 | S202: 1 | T202: 3 | U202: =SUM(I202:T202) -> 21 | V202: =IF(SUM(I202:T202)=0,"",SUM(I202:T202)) -> 21
A203: REALIZADO
A204: VARIABLES | C204: NOMBRE | E204: UNIDAD DE MEDIDA | F204: CALENDARIO - PROGRAMADO | V204: TOTAL | W204: PROCENTAJE PROGRAMADO EN EL AÑO
F205: REALIZADO | I205: ENE | J205: FEB | K205: MAR | L205: ABR | M205: MAY | N205: JUN | O205: JUL | P205: AGO | Q205: SEP | R205: OCT | S205: NOV | T205: DIC
A206: VARIABLE 1 | C206: =IF(C201=0,"",C201) -> Numero de acciones de mejora administrativa implementadas | E206: =IF(E201=0,"",E201) -> acciones | F206: REALIZADO VARIABLE 1 | V206: =IF(SUM(I206:T206)=0,"",SUM(I206:T206)) ->  | W206: =IF($G$192="porcentaje",FIXED(V206/V207*100,2)&"%",IF($G$192="Promedio",V206/V207,IF($G$192="variación porcentual",FIXED(((V206/V207)-1)*100,2)&"%",IF($G$192="OTRAS","CAPTURAR EL RESULTADO DEL INDICADOR")))) -> 
A207: VARIABLE 2 | C207: =IF(C202=0,"",C202) -> Total de acciones de mejora adminimistrativas | E207: =IF(E202=0,"",E202) -> acciones | F207: REALIZADO VARIABLE 2 | U207: =SUM(I207:T207) -> 0 | V207: =IF(SUM(I207:T207)=0,"",SUM(I207:T207)) -> 
A209: CUMPLIMIENTO FINAL | W209: =IF(ISERROR(W206/W201)=TRUE,"",(W206/W201)) -> 
A211: Explicaciones y causas de las variaciones al cumplimiento de la programación, ¿ Por qué no se cumplio o por que se supero considerablemente lo programado?
A213: COMPONENTE 5 RESUMEN NARRATIVO | C213: Mejoramiento de actividades para la adquisición de bienes muebles en 2025
A215: Indicador
A217: NOMBRE | C217: Porcentaje de actividades para la adquisición de bienes muebles
A219: DIMENSIÓN A MEDIR | C219: Eficiencia | E219: FRECUENCIA DE MEDICIÓN | G219: Trimestral | M219: MÉTODO DE CALCULO | Q219: (v1/v2)*100
A221: TIPO DE INDICADOR | C221: Gestión | E221: TIPO DE FÓRMULA | G221: Porcentaje | M221: COMPORTAMIENTO DEL INDICADOR HACIA LA META | Q221: Regular
C223: LINEA BASE | O223: META DEL INDICADOR
C224: 12 | E224: 2024 | O224: 24
C225: VALOR | E225: AÑO
A227: PROGRAMADO
A228: VARIABLES | C228: NOMBRE | E228: UNIDAD DE MEDIDA | F228: CALENDARIO - PROGRAMADO | V228: TOTAL | W228: META PROGRAMADA EN EL AÑO
F229: PROGRAMADO | I229: ENE | J229: FEB | K229: MAR | L229: ABR | M229: MAY | N229: JUN | O229: JUL | P229: AGO | Q229: SEP | R229: OCT | S229: NOV | T229: DIC
A230: VARIABLE 1 | C230: Actividades para la adquisición de bienes muebles | E230: actividades | F230: PROGRAMADO VARIABLE 1 | I230: 2 | J230: 2 | K230: 2 | L230: 2 | M230: 2 | N230: 2 | O230: 2 | P230: 2 | Q230: 2 | R230: 2 | S230: 2 | T230: 2 | V230: =IF(SUM(I230:T230)=0,"",SUM(I230:T230)) -> 24 | W230: =IF($G$221="porcentaje",FIXED(V230/V231*100,2)&"%",IF($G$221="Promedio",V230/V231,IF($G$221="variación porcentual",FIXED(((V230/V231)-1)*100,2)&"%",IF($G$221="OTRAS","CAPTURAR EL RESULTADO DEL INDICADOR")))) -> 100.00%
A231: VARIABLE 2 | C231: Total de actividades para la adquisición de bienes muebles | E231: actividades | F231: PROGRAMADO VARIABLE 2 | I231: 2 | J231: 2 | K231: 2 | L231: 2 | M231: 2 | N231: 2 | O231: 2 | P231: 2 | Q231: 2 | R231: 2 | S231: 2 | T231: 2 | U231: =SUM(I231:T231) -> 24 | V231: =IF(SUM(I231:T231)=0,"",SUM(I231:T231)) -> 24
A232: REALIZADO
A233: VARIABLES | C233: NOMBRE | E233: UNIDAD DE MEDIDA | F233: CALENDARIO - PROGRAMADO | V233: TOTAL | W233: PROCENTAJE PROGRAMADO EN EL AÑO
F234: REALIZADO | I234: ENE | J234: FEB | K234: MAR | L234: ABR | M234: MAY | N234: JUN | O234: JUL | P234: AGO | Q234: SEP | R234: OCT | S234: NOV | T234: DIC
A235: VARIABLE 1 | C235: =IF(C230=0,"",C230) -> Actividades para la adquisición de bienes muebles | E235: =IF(E230=0,"",E230) -> actividades | F235: REALIZADO VARIABLE 1 | V235: =IF(SUM(I235:T235)=0,"",SUM(I235:T235)) ->  | W235: =IF($G$221="porcentaje",FIXED(V235/V236*100,2)&"%",IF($G$221="Promedio",V235/V236,IF($G$221="variación porcentual",FIXED(((V235/V236)-1)*100,2)&"%",IF($G$221="OTRAS","CAPTURAR EL RESULTADO DEL INDICADOR")))) -> 
A236: VARIABLE 2 | C236: =IF(C231=0,"",C231) -> Total de actividades para la adquisición de bienes muebles | E236: =IF(E231=0,"",E231) -> actividades | F236: REALIZADO VARIABLE 2 | U236: =SUM(I236:T236) -> 0 | V236: =IF(SUM(I236:T236)=0,"",SUM(I236:T236)) -> 
A238: CUMPLIMIENTO FINAL | W238: =IF(ISERROR(W235/W230)=TRUE,"",(W235/W230)) -> 
A240: Explicaciones y causas de las variaciones al cumplimiento de la programación, ¿ Por qué no se cumplio o por que se supero considerablemente lo programado?
A242: COMPONENTE 6 RESUMEN NARRATIVO | C242: Seguimiento en las acciones de la administración de juntas auxiliares
A244: Indicador
A246: NOMBRE | C246: Porcentaje de acciones de seguimiento de la administración en juntas auxiliares revisadas
A248: DIMENSIÓN A MEDIR | C248: Eficiencia | E248: FRECUENCIA DE MEDICIÓN | G248: trimestral | M248: MÉTODO DE CALCULO | Q248: (v1/v2)*100
A250: TIPO DE INDICADOR | C250: Gestión | E250: TIPO DE FÓRMULA | G250: Porcentaje | M250: COMPORTAMIENTO DEL INDICADOR HACIA LA META
C252: LINEA BASE | O252: META DEL INDICADOR
C253: 12 | E253: 2024 | O253: 24
C254: VALOR | E254: AÑO
A256: PROGRAMADO
A257: VARIABLES | C257: NOMBRE | E257: UNIDAD DE MEDIDA | F257: CALENDARIO - PROGRAMADO | V257: TOTAL | W257: META PROGRAMADA EN EL AÑO
F258: PROGRAMADO | I258: ENE | J258: FEB | K258: MAR | L258: ABR | M258: MAY | N258: JUN | O258: JUL | P258: AGO | Q258: SEP | R258: OCT | S258: NOV | T258: DIC
A259: VARIABLE 1 | C259: Numero de acciones de seguimiento de la administración de juntas auxiliares | E259: acciones | F259: PROGRAMADO VARIABLE 1 | I259: 2 | J259: 2 | K259: 2 | L259: 2 | M259: 2 | N259: 2 | O259: 2 | P259: 2 | Q259: 2 | R259: 2 | S259: 2 | T259: 2 | V259: =IF(SUM(I259:T259)=0,"",SUM(I259:T259)) -> 24 | W259: =IF($G$221="porcentaje",FIXED(V259/V260*100,2)&"%",IF($G$221="Promedio",V259/V260,IF($G$221="variación porcentual",FIXED(((V259/V260)-1)*100,2)&"%",IF($G$221="OTRAS","CAPTURAR EL RESULTADO DEL INDICADOR")))) -> 100.00%
A260: VARIABLE 2 | C260: Total de acciones de mejora de desarrollo administrativo | E260: acciones | F260: PROGRAMADO VARIABLE 2 | I260: 2 | J260: 2 | K260: 2 | L260: 2 | M260: 2 | N260: 2 | O260: 2 | P260: 2 | Q260: 2 | R260: 2 | S260: 2 | T260: 2 | U260: =SUM(I260:T260) -> 24 | V260: =IF(SUM(I260:T260)=0,"",SUM(I260:T260)) -> 24
A261: REALIZADO
A262: VARIABLES | C262: NOMBRE | E262: UNIDAD DE MEDIDA | F262: CALENDARIO - PROGRAMADO | V262: TOTAL | W262: PROCENTAJE PROGRAMADO EN EL AÑO
F263: REALIZADO | I263: ENE | J263: FEB | K263: MAR | L263: ABR | M263: MAY | N263: JUN | O263: JUL | P263: AGO | Q263: SEP | R263: OCT | S263: NOV | T263: DIC
A264: VARIABLE 1 | C264: =IF(C259=0,"",C259) -> Numero de acciones de seguimiento de la administración de juntas auxiliares | E264: =IF(E259=0,"",E259) -> acciones | F264: REALIZADO VARIABLE 1 | V264: =IF(SUM(I264:T264)=0,"",SUM(I264:T264)) ->  | W264: =IF($G$221="porcentaje",FIXED(V264/V265*100,2)&"%",IF($G$221="Promedio",V264/V265,IF($G$221="variación porcentual",FIXED(((V264/V265)-1)*100,2)&"%",IF($G$221="OTRAS","CAPTURAR EL RESULTADO DEL INDICADOR")))) -> 
A265: VARIABLE 2 | C265: =IF(C260=0,"",C260) -> Total de acciones de mejora de desarrollo administrativo | E265: =IF(E260=0,"",E260) -> acciones | F265: REALIZADO VARIABLE 2 | U265: =SUM(I265:T265) -> 0 | V265: =IF(SUM(I265:T265)=0,"",SUM(I265:T265)) -> 
A267: CUMPLIMIENTO FINAL | W267: =IF(ISERROR(W264/W259)=TRUE,"",(W264/W259)) -> 
A269: Explicaciones y causas de las variaciones al cumplimiento de la programación, ¿ Por qué no se cumplio o por que se supero considerablemente lo programado?
A272: ACTIVIDADES
A274: COMPONENTE | B274: DESCRIPCIÓN | E274: UNIDAD DE MEDIDA | F274: CALENDARIO | V274: TOTAL | W274: PORCENTAJE DE CUMPLIMIENTO DE LA ACTIVIDAD
F275: PROGRAMADO / REALIZADO | I275: ENE | J275: FEB | K275: MAR | L275: ABR | M275: MAY | N275: JUN | O275: JUL | P275: AGO | Q275: SEP | R275: OCT | S275: NOV | T275: DIC
A276: C1 | B276: 1 | C276: Realizar 12 seguimientos de recaudación por área recaudadora | E276: seguimiento | F276: PROGRAMADO | I276: 1 | J276: 1 | K276: 1 | L276: 1 | M276: 1 | N276: 1 | O276: 1 | P276: 1 | Q276: 1 | R276: 1 | S276: 1 | T276: 1 | V276: =SUM(I276:T276) -> 12 | W276: =IF(V276=0,"-",V277/V276) -> 0%
F277: REALIZADO | V277: 0
B278: 2 | C278: Realizar 4 actividades de recaudación en las comunidades lejanas | E278: actividad | F278: PROGRAMADO | K278: 1 | N278: 1 | Q278: 1 | T278: 1 | V278: 4 | W278: =IF(V278=0,"-",V279/V278) -> 0%
F279: REALIZADO | V279: 0
A280: C2 | B280: 1 | C280: Gestionar 25 pagos por concepto de sueldos | E280: pago | F280: PROGRAMADO | I280: 2 | J280: 2 | K280: 2 | L280: 2 | M280: 2 | N280: 2 | O280: 2 | P280: 2 | Q280: 2 | R280: 2 | S280: 2 | T280: 3 | V280: 25 | W280: =IF(V280=0,"-",V281/V280) -> 0%
F281: REALIZADO | V281: 0
B282: 2 | C282: Generar el timbrado de 25 nóminas por concepto de sueldos | E282: timbrado | F282: PROGRAMADO | I282: 2 | J282: 2 | K282: 2 | L282: 2 | M282: 2 | N282: 2 | O282: 2 | P282: 2 | Q282: 2 | R282: 2 | S282: 2 | T282: 3 | V282: 25 | W282: =IF(V282=0,"-",V283/V282) -> 0%
F283: REALIZADO | V283: 0
... 187 more rows

Sheet Programa 2
C2: CLAVE: | F2: 11/04
C3: ENTIDAD FISCALIZADA: | F3: =IF(ISERROR(VLOOKUP(F2,general!$B:$C,2,FALSE))=TRUE,"",(VLOOKUP(F2,general!$B:$C,2,FALSE))) -> Chietla
D4: AÑO: | F4: 2025
A6: PROGRAMA PRESUPUESTARIO
A8: Nombre del Programa | D8: Seguridad Pública y Protección Civil
A9: Unidad(es) Responsable(s) | D9: 05 Seguridad Pública - 19 Protección Civil
A10: Costo Total del Programa
A11: Fuente de Financiamiento | D11: RECURSOS FISCALES | G11: PARTICIPACIONES | L11: FISM | P11: FORTAMUN | T11: OTROS
A12: Monto Específco | D12: $8,160,790.19
A14: CLASIFICACIÓN FUNCIONAL DEL GASTO
A15: CLASIFICACIÓN | D15: CONCEPTO
A16: Finalidad | D16: 1. Gobierno
A17: Función | D17: 1.7. Asuntos de orden público y de seguridad interior
A18: Subfunción | D18: 1.7.3 Otros Asuntos de Orden Público y Seguridad
A19: Sub/Subfunción | D19: 1.7.3.1 Seguridad Púbica y Protección Civil
A21: GASTO POR CATEGORÍA PROGRAMÁTICA
A22: CATEGORÍA | D22: Específicos
A23: PROGRAMA | D23: R Específicos
A25: DATOS DE VINCULACIÓN AL PLAN ESTATAL DE DESARROLLO
A26: Eje 1 Justicia Social y Fortalecimiento del Estado de Derecho
A27: DATOS DE VINCULACIÓN AL PLAN MUNICIPAL DE DESARROLLO (EJES, ESTRATEGIAS U OBJETIVOS GENERALES)
A28: EJE 2 SEGURIDAD Y PROTECCIÓN PARA TODOS
A29: NIVEL INMEDIATO INFERIOR (OBJETIVO O LíNEA ESTRATÉGICA)
A30: Objetivo 1 Otorgar seguridad y protección a los habitantes con igualdad, respeto, legalidad, equidad para preservar la paz social dentro del municipio
A31: DATOS DE VINCULACIÓN A OBJETIVOS DE DESARROLLO SOSTENIBLE
A32: 11. Lograr que las ciudades y los asentamientos humanos sean inclusivos, seguros, resilientes y sostenibles.
A33: FIN
A35: RESUMEN NARRATIVO | C35: Contribuir a que el municipio de Chietla reduzca los índices de delincuencia y fortalezca la prevención y el auxilio a través de acciones para mejorar el cuerpo de Seguridad Pública y Protección Civil
A37: Indicador
A39: NOMBRE | C39: Porcentaje de acciones para fortalecer el cuerpo de Seguridad Pública y Protección Civil llevadas a cabo en 2025
A41: DIMENSIÓN A MEDIR | C41: Eficacia | E41: FRECUENCIA DE MEDICIÓN | G41: Anual | M41: MÉTODO DE CALCULO | Q41: (v1/v2)*100
A43: TIPO DE INDICADOR | C43: Estratégico | E43: TIPO DE FÓRMULA | G43: Porcentaje | M43: COMPORTAMIENTO DEL INDICADOR HACIA LA META | Q43: Ascendente
C45: LINEA BASE | O45: META DEL INDICADOR
C46: 100 | E46: 2024 | O46: 100
C47: VALOR | E47: AÑO
A49: PROGRAMADO
A50: VARIABLES | C50: NOMBRE | E50: UNIDAD DE MEDIDA | F50: CALENDARIO - PROGRAMADO | V50: TOTAL | W50: META PROGRAMADA EN EL AÑO
F51: PROGRAMADO | I51: ENE | J51: FEB | K51: MAR | L51: ABR | M51: MAY | N51: JUN | O51: JUL | P51: AGO | Q51: SEP | R51: OCT | S51: NOV | T51: DIC
A52: VARIABLE 1 | C52: Acciones aplicadas en materia de Seguridad Pública, Protección Civil llevadas a cabo en 2025 | E52: accioes | F52: PROGRAMADO VARIABLE 1 | I52: 8.333 | J52: 8.333 | K52: 8.333 | L52: 8.333 | M52: 8.333 | N52: 8.333 | O52: 8.333 | P52: 8.333 | Q52: 8.333 | R52: 8.333 | S52: 8.333 | T52: 8.333 | V52: =IF(SUM(I52:T52)=0,"",SUM(I52:T52)) -> 100 | W52: =IF($G$43="porcentaje",FIXED(V52/V53*100,2)&"%",IF($G$43="Promedio",V52/V53,IF($G$43="variación porcentual",FIXED(((V52/V53)-1)*100,2)&"%",IF($G$43="OTRAS","CAPTURAR EL RESULTADO DEL INDICADOR")))) -> 100.00%
A53: VARIABLE 2 | C53: Total de acciones programadas en materia de Seguridad Publica y Protección Civl en 2024 | E53: acciones | F53: PROGRAMADO VARIABLE 2 | I53: 8.333 | J53: 8.333 | K53: 8.333 | L53: 8.333 | M53: 8.333 | N53: 8.333 | O53: 8.333 | P53: 8.333 | Q53: 8.333 | R53: 8.333 | S53: 8.333 | T53: 8.333 | U53: =SUM(I53:T53) -> 99.996 | V53: =IF(SUM(I53:T53)=0,"",SUM(I53:T53)) -> 100
A54: REALIZADO
A55: VARIABLES | C55: NOMBRE | E55: UNIDAD DE MEDIDA | F55: CALENDARIO - PROGRAMADO | V55: TOTAL | W55: RESULTADO ALCANZADO EN EL AÑO
F56: REALIZADO | I56: ENE | J56: FEB | K56: MAR | L56: ABR | M56: MAY | N56: JUN | O56: JUL | P56: AGO | Q56: SEP | R56: OCT | S56: NOV | T56: DIC
A57: VARIABLE 1 | C57: =IF(C52=0,"",C52) -> Acciones aplicadas en materia de Seguridad Pública, Protección Civil llevadas a cabo en 2025 | E57: =IF(E52=0,"",E52) -> accioes | F57: REALIZADO VARIABLE 1 | V57: =IF(SUM(I57:T57)=0,"",SUM(I57:T57)) ->  | W57: =IF($G$43="porcentaje",FIXED(V57/V58*100,2)&"%",IF($G$43="Promedio",V57/V58,IF($G$43="variación porcentual",FIXED(((V57/V58)-1)*100,2)&"%",IF($G$43="OTRAS","CAPTURAR EL RESULTADO DEL INDICADOR")))) -> 
A58: VARIABLE 2 | C58: =IF(C53=0,"",C53) -> Total de acciones programadas en materia de Seguridad Publica y Protección Civl en 2024 | E58: =IF(E53=0,"",E53) -> acciones | F58: REALIZADO VARIABLE 2 | U58: =SUM(I58:T58) -> 0 | V58: =IF(SUM(I58:T58)=0,"",SUM(I58:T58)) -> 
A60: CUMPLIMIENTO FINAL | W60: =IF(ISERROR(W57/W52)=TRUE,"",(W57/W52)) -> 
A62: Explicaciones y causas de las variaciones al cumplimiento de la programación, ¿ Por qué no se cumplio o por que se supero considerablemente lo programado?
A64: PROPÓSITO
A66: RESUMEN NARRATIVO | C66: El Municipio de Chietla cuenta con un cuerpo de Seguridad Pública, Protección Civil, Vialidad y Reincersión Social confiable
A68: Indicador
A70: NOMBRE | C70: Porcentaje de personas bneficiadas con acciones en materia de Seguridad Pública, Protección Civil, Vialidad y Reincersión Social
A72: DIMENSIÓN A MEDIR | C72: Eficacia | E72: FRECUENCIA DE MEDICIÓN | G72: Anual | M72: MÉTODO DE CALCULO | Q72: (v1/v2)*100
A74: TIPO DE INDICADOR | C74: Estratégico | E74: TIPO DE FÓRMULA | G74: Porcentaje | M74: COMPORTAMIENTO DEL INDICADOR HACIA LA META | Q74: Regular
C76: LINEA BASE | O76: META DEL INDICADOR
C77: 27773 | E77: 2024 | O77: 37030.0
C78: VALOR
A80: PROGRAMADO
A81: VARIABLES | C81: NOMBRE | E81: UNIDAD DE MEDIDA | F81: CALENDARIO - PROGRAMADO | V81: TOTAL | W81: META PROGRAMADA EN EL AÑO
F82: PROGRAMADO | I82: ENE | J82: FEB | K82: MAR | L82: ABR | M82: MAY | N82: JUN | O82: JUL | P82: AGO | Q82: SEP | R82: OCT | S82: NOV | T82: DIC
A83: VARIABLE 1 | C83: Numero de personas beneficiadas con acciones de Seguridad Pública, Protección Civil, Vialidad y Reincersión Social 2025 | E83: habitantes | F83: PROGRAMADO VARIABLE 1 | T83: 37030 | V83: =IF(SUM(I83:T83)=0,"",SUM(I83:T83)) -> 37030 | W83: =IF($G$74="porcentaje",FIXED(V83/V84*100,2)&"%",IF($G$74="Promedio",V83/V84,IF($G$74="variación porcentual",FIXED(((V83/V84)-1)*100,2)&"%",IF($G$74="OTRAS","CAPTURAR EL RESULTADO DEL INDICADOR")))) -> 99.98%
A84: VARIABLE 2 | C84: Total de población del municipi | E84: habitantes | F84: PROGRAMADO VARIABLE 2 | T84: 37037 | U84: =SUM(I84:T84) -> 37037 | V84: =IF(SUM(I84:T84)=0,"",SUM(I84:T84)) -> 37037
A85: REALIZADO
A86: VARIABLES | C86: NOMBRE | E86: UNIDAD DE MEDIDA | F86: CALENDARIO - PROGRAMADO | V86: TOTAL | W86: RESULTADO ALCANZADO EN EL AÑO
F87: REALIZADO | I87: ENE | J87: FEB | K87: MAR | L87: ABR | M87: MAY | N87: JUN | O87: JUL | P87: AGO | Q87: SEP | R87: OCT | S87: NOV | T87: DIC
A88: VARIABLE 1 | C88: =IF(C83=0,"",C83) -> Numero de personas beneficiadas con acciones de Seguridad Pública, Protección Civil, Vialidad y Reincersión Social 2025 | E88: =IF(E83=0,"",E83) -> habitantes | F88: REALIZADO VARIABLE 1 | V88: =IF(SUM(I88:T88)=0,"",SUM(I88:T88)) ->  | W88: =IF($G$74="porcentaje",FIXED(V88/V89*100,2)&"%",IF($G$74="Promedio",V88/V89,IF($G$74="variación porcentual",FIXED(((V88/V89)-1)*100,2)&"%",IF($G$74="OTRAS","CAPTURAR EL RESULTADO DEL INDICADOR")))) -> 
A89: VARIABLE 2 | C89: =IF(C84=0,"",C84) -> Total de población del municipi | E89: =IF(E84=0,"",E84) -> habitantes | F89: REALIZADO VARIABLE 2 | U89: =SUM(I89:T89) -> 0 | V89: =IF(SUM(I89:T89)=0,"",SUM(I89:T89)) -> 
A91: CUMPLIMIENTO FINAL | W91: =IF(ISERROR(W88/W83)=TRUE,"",(W88/W83)) -> 
A93: Explicaciones y causas de las variaciones al cumplimiento de la programación, ¿ Por qué no se cumplio o por que se supero considerablemente lo programado?
A95: COMPONENTES
A97: COMPONENTE 1 RESUMEN NARRATIVO | C97: Acciones de informacion y prevencion en materia de prevención al delito, protección civil y vialidad
A99: Indicador
A101: NOMBRE | C101: Porcentaje de acciones de información, prevención en materia de prevención al delito, protección civil y vialidad
A103: DIMENSIÓN A MEDIR | C103: Eficiencia | E103: FRECUENCIA DE MEDICIÓN | G103: Trimestral | M103: MÉTODO DE CALCULO | Q103: (v1/v2)*100
A105: TIPO DE INDICADOR | C105: Gestión | E105: TIPO DE FÓRMULA | G105: Porcentaje | M105: COMPORTAMIENTO DEL INDICADOR HACIA LA META | Q105: Ascendente
C107: LINEA BASE | O107: META DEL INDICADOR
C108: 28 | E108: 2024 | O108: 9.00
C109: VALOR | E109: AÑO
A111: PROGRAMADO
A112: VARIABLES | C112: NOMBRE | E112: UNIDAD DE MEDIDA | F112: CALENDARIO - PROGRAMADO | V112: TOTAL | W112: META PROGRAMADA EN EL AÑO
F113: PROGRAMADO | I113: ENE | J113: FEB | K113: MAR | L113: ABR | M113: MAY | N113: JUN | O113: JUL | P113: AGO | Q113: SEP | R113: OCT | S113: NOV | T113: DIC
A114: VARIABLE 1 | C114: Número de acciones de información, prevención en materia de prevención al delito, protección civil y vialidad | E114: acciones | F114: PROGRAMADO VARIABLE 1 | I114: 0 | J114: 0 | K114: 1 | L114: 1 | M114: 1 | N114: 1 | O114: 0 | P114: 1 | Q114: 1 | R114: 0 | S114: 1 | T114: 2 | V114: =IF(SUM(I114:T114)=0,"",SUM(I114:T114)) -> 9 | W114: =IF($G$105="porcentaje",FIXED(V114/V115*100,2)&"%",IF($G$105="Promedio",V114/V115,IF($G$105="variación porcentual",FIXED(((V114/V115)-1)*100,2)&"%",IF($G$105="OTRAS","CAPTURAR EL RESULTADO DEL INDICADOR")))) -> 100.00%
A115: VARIABLE 2 | C115: Total de acciones de información, prevención en materia de prevención al delito, protección civil y vialidad | E115: acciones | F115: PROGRAMADO VARIABLE 2 | I115: 0 | J115: 0 | K115: 1 | L115: 1 | M115: 1 | N115: 1 | O115: 0 | P115: 1 | Q115: 1 | R115: 0 | S115: 1 | T115: 2 | U115: =SUM(I115:T115) -> 9 | V115: =IF(SUM(I115:T115)=0,"",SUM(I115:T115)) -> 9
A116: REALIZADO
A117: VARIABLES | C117: NOMBRE | E117: UNIDAD DE MEDIDA | F117: CALENDARIO - PROGRAMADO | V117: TOTAL | W117: RESULTADO ALCANZADO EN EL AÑO
F118: REALIZADO | I118: ENE | J118: FEB | K118: MAR | L118: ABR | M118: MAY | N118: JUN | O118: JUL | P118: AGO | Q118: SEP | R118: OCT | S118: NOV | T118: DIC
A119: VARIABLE 1 | C119: =IF(C114=0,"",C114) -> Número de acciones de información, prevención en materia de prevención al delito, protección civil y vialidad | E119: =IF(E114=0,"",E114) -> acciones | F119: REALIZADO VARIABLE 1 | V119: =IF(SUM(I119:T119)=0,"",SUM(I119:T119)) ->  | W119: =IF($G$105="porcentaje",FIXED(V119/V120*100,2)&"%",IF($G$105="Promedio",V119/V120,IF($G$105="variación porcentual",FIXED(((V119/V120)-1)*100,2)&"%",IF($G$105="OTRAS","CAPTURAR EL RESULTADO DEL INDICADOR")))) -> 
A120: VARIABLE 2 | C120: =IF(C115=0,"",C115) -> Total de acciones de información, prevención en materia de prevención al delito, protección civil y vialidad | E120: =IF(E115=0,"",E115) -> acciones | F120: REALIZADO VARIABLE 2 | U120: =SUM(I120:T120) -> 0 | V120: =IF(SUM(I120:T120)=0,"",SUM(I120:T120)) -> 
A122: CUMPLIMIENTO FINAL | W122: =IF(ISERROR(W119/W114)=TRUE,"",(W119/W114)) -> 
A124: Explicaciones y causas de las variaciones al cumplimiento de la programación, ¿ Por qué no se cumplio o por que se supero considerablemente lo programado?
A126: COMPONENTE 2 RESUMEN NARRATIVO | C126: Acciones para el fortalecimiento de capacidades y profesionalización en materia de Seguridad Pública, Protección Civil, Vialidad y Reicersión Social con perspectiva género
A128: Indicador
A130: NOMBRE | C130: Porcentaje de acciones de fortalecimiento de capacidades y profesionalización en materia de seguridad pública, protección civil, vialidad y reincersión social con perspectiva de género
A132: DIMENSIÓN A MEDIR | C132: Eficacia | E132: FRECUENCIA DE MEDICIÓN | G132: Trimestral | M132: MÉTODO DE CALCULO | Q132: (v1/v2)*100
A134: TIPO DE INDICADOR | C134: Gestión | E134: TIPO DE FÓRMULA | G134: Porcentaje | M134: COMPORTAMIENTO DEL INDICADOR HACIA LA META | Q134: Regular
C136: LINEA BASE | O136: META DEL INDICADOR
C137: 72 | E137: 2024 | O137: 12
C138: VALOR | E138: AÑO
A140: PROGRAMADO
A141: VARIABLES | C141: NOMBRE | E141: UNIDAD DE MEDIDA | F141: CALENDARIO - PROGRAMADO | V141: TOTAL | W141: META PROGRAMADA EN EL AÑO
F142: PROGRAMADO | I142: ENE | J142: FEB | K142: MAR | L142: ABR | M142: MAY | N142: JUN | O142: JUL | P142: AGO | Q142: SEP | R142: OCT | S142: NOV | T142: DIC
A143: VARIABLE 1 | C143: Número de acciones para la profesionalización y capacitación en materia de protección civil, seguridad pública, vialidad y reincersión social | E143: acciones | F143: PROGRAMADO VARIABLE 1 | I143: 0 | J143: 0 | K143: 4 | L143: 1 | M143: 0 | N143: 0 | O143: 1 | P143: 4 | Q143: 0 | R143: 0 | S143: 2 | T143: 0 | V143: =IF(SUM(I143:T143)=0,"",SUM(I143:T143)) -> 12 | W143: =IF($G$134="porcentaje",FIXED(V143/V144*100,2)&"%",IF($G$134="Promedio",V143/V144,IF($G$134="variación porcentual",FIXED(((V143/V144)-1)*100,2)&"%",IF($G$134="OTRAS","CAPTURAR EL RESULTADO DEL INDICADOR")))) -> 100.00%
A144: VARIABLE 2 | C144: Total de acciones para la profesionalización y capacitación en materia de protección civil, seguridad púbica, vialidad y reincersión social | E144: acciones | F144: PROGRAMADO VARIABLE 2 | I144: 0 | J144: 0 | K144: 4 | L144: 1 | M144: 0 | N144: 0 | O144: 1 | P144: 4 | Q144: 0 | R144: 0 | S144: 2 | T144: 0 | U144: =SUM(I144:T144) -> 12 | V144: =IF(SUM(I144:T144)=0,"",SUM(I144:T144)) -> 12
A145: REALIZADO
A146: VARIABLES | C146: NOMBRE | E146: UNIDAD DE MEDIDA | F146: CALENDARIO - PROGRAMADO | V146: TOTAL | W146: RESULTADO ALCANZADO EN EL AÑO
F147: REALIZADO | I147: ENE | J147: FEB | K147: MAR | L147: ABR | M147: MAY | N147: JUN | O147: JUL | P147: AGO | Q147: SEP | R147: OCT | S147: NOV | T147: DIC
A148: VARIABLE 1 | C148: =IF(C143=0,"",C143) -> Número de acciones para la profesionalización y capacitación en materia de protección civil, seguridad pública, vialidad y reincersión social | E148: =IF(E143=0,"",E143) -> acciones | F148: REALIZADO VARIABLE 1 | V148: =IF(SUM(I148:T148)=0,"",SUM(I148:T148)) ->  | W148: =IF($G$134="porcentaje",FIXED(V148/V149*100,2)&"%",IF($G$134="Promedio",V148/V149,IF($G$134="variación porcentual",FIXED(((V148/V149)-1)*100,2)&"%",IF($G$134="OTRAS","CAPTURAR EL RESULTADO DEL INDICADOR")))) -> 
A149: VARIABLE 2 | C149: =IF(C144=0,"",C144) -> Total de acciones para la profesionalización y capacitación en materia de protección civil, seguridad púbica, vialidad y reincersión social | E149: =IF(E144=0,"",E144) -> acciones | F149: REALIZADO VARIABLE 2 | U149: =SUM(I149:T149) -> 0 | V149: =IF(SUM(I149:T149)=0,"",SUM(I149:T149)) -> 
A151: CUMPLIMIENTO FINAL | W151: =IF(ISERROR(W148/W143)=TRUE,"",(W148/W143)) -> 
A153: Explicaciones y causas de las variaciones al cumplimiento de la programación, ¿ Por qué no se cumplio o por que se supero considerablemente lo programado?
A155: COMPONENTE 3 RESUMEN NARRATIVO
A157: Indicador
A159: NOMBRE
A161: DIMENSIÓN A MEDIR | E161: FRECUENCIA DE MEDICIÓN | M161: MÉTODO DE CALCULO
A163: TIPO DE INDICADOR | E163: TIPO DE FÓRMULA | M163: COMPORTAMIENTO DEL INDICADOR HACIA LA META
C165: LINEA BASE | O165: META DEL INDICADOR
C167: VALOR | E167: AÑO
A169: PROGRAMADO
A170: VARIABLES | C170: NOMBRE | E170: UNIDAD DE MEDIDA | F170: CALENDARIO - PROGRAMADO | V170: TOTAL | W170: META PROGRAMADA EN EL AÑO
F171: PROGRAMADO | I171: ENE | J171: FEB | K171: MAR | L171: ABR | M171: MAY | N171: JUN | O171: JUL | P171: AGO | Q171: SEP | R171: OCT | S171: NOV | T171: DIC
A172: VARIABLE 1 | F172: PROGRAMADO VARIABLE 1 | V172: =IF(SUM(I172:T172)=0,"",SUM(I172:T172)) ->  | W172: =IF($G$163="porcentaje",FIXED(V172/V173*100,2)&"%",IF($G$163="Promedio",V172/V173,IF($G$163="variación porcentual",FIXED(((V172/V173)-1)*100,2)&"%",IF($G$163="OTRAS","CAPTURAR EL RESULTADO DEL INDICADOR")))) -> FALSE
A173: VARIABLE 2 | F173: PROGRAMADO VARIABLE 2 | U173: =SUM(I173:T173) -> 0 | V173: =IF(SUM(I173:T173)=0,"",SUM(I173:T173)) -> 
A174: REALIZADO
A175: VARIABLES | C175: NOMBRE | E175: UNIDAD DE MEDIDA | F175: CALENDARIO - PROGRAMADO | V175: TOTAL | W175: RESULTADO ALCANZADO EN EL AÑO
F176: REALIZADO | I176: ENE | J176: FEB | K176: MAR | L176: ABR | M176: MAY | N176: JUN | O176: JUL | P176: AGO | Q176: SEP | R176: OCT | S176: NOV | T176: DIC
A177: VARIABLE 1 | C177: =IF(C172=0,"",C172) ->  | E177: =IF(E172=0,"",E172) ->  | F177: REALIZADO VARIABLE 1 | V177: =IF(SUM(I177:T177)=0,"",SUM(I177:T177)) ->  | W177: =IF($G$163="porcentaje",FIXED(V177/V178*100,2)&"%",IF($G$163="Promedio",V177/V178,IF($G$163="variación porcentual",FIXED(((V177/V178)-1)*100,2)&"%",IF($G$163="OTRAS","CAPTURAR EL RESULTADO DEL INDICADOR")))) -> FALSE
A178: VARIABLE 2 | C178: =IF(C173=0,"",C173) ->  | E178: =IF(E173=0,"",E173) ->  | F178: REALIZADO VARIABLE 2 | U178: =SUM(I178:T178) -> 0 | V178: =IF(SUM(I178:T178)=0,"",SUM(I178:T178)) -> 
A180: CUMPLIMIENTO FINAL | W180: =IF(ISERROR(W177/W172)=TRUE,"",(W177/W172)) -> 
A182: Explicaciones y causas de las variaciones al cumplimiento de la programación, ¿ Por qué no se cumplio o por que se supero considerablemente lo programado?
A184: COMPONENTE 4 RESUMEN NARRATIVO
A186: Indicador
A188: NOMBRE
A190: DIMENSIÓN A MEDIR | E190: FRECUENCIA DE MEDICIÓN | M190: MÉTODO DE CALCULO
A192: TIPO DE INDICADOR | E192: TIPO DE FÓRMULA | M192: COMPORTAMIENTO DEL INDICADOR HACIA LA META
C194: LINEA BASE | O194: META DEL INDICADOR
C196: VALOR | E196: AÑO
A198: PROGRAMADO
A199: VARIABLES | C199: NOMBRE | E199: UNIDAD DE MEDIDA | F199: CALENDARIO - PROGRAMADO | V199: TOTAL | W199: META PROGRAMADA EN EL AÑO
F200: PROGRAMADO | I200: ENE | J200: FEB | K200: MAR | L200: ABR | M200: MAY | N200: JUN | O200: JUL | P200: AGO | Q200: SEP | R200: OCT | S200: NOV | T200: DIC
A201: VARIABLE 1 | F201: PROGRAMADO VARIABLE 1 | V201: =IF(SUM(I201:T201)=0,"",SUM(I201:T201)) ->  | W201: =IF($G$192="porcentaje",FIXED(V201/V202*100,2)&"%",IF($G$192="Promedio",V201/V202,IF($G$192="variación porcentual",FIXED(((V201/V202)-1)*100,2)&"%",IF($G$192="OTRAS","CAPTURAR EL RESULTADO DEL INDICADOR")))) -> FALSE
A202: VARIABLE 2 | F202: PROGRAMADO VARIABLE 2 | U202: =SUM(I202:T202) -> 0 | V202: =IF(SUM(I202:T202)=0,"",SUM(I202:T202)) -> 
A203: REALIZADO
A204: VARIABLES | C204: NOMBRE | E204: UNIDAD DE MEDIDA | F204: CALENDARIO - PROGRAMADO | V204: TOTAL | W204: PROCENTAJE PROGRAMADO EN EL AÑO
F205: REALIZADO | I205: ENE | J205: FEB | K205: MAR | L205: ABR | M205: MAY | N205: JUN | O205: JUL | P205: AGO | Q205: SEP | R205: OCT | S205: NOV | T205: DIC
A206: VARIABLE 1 | C206: =IF(C201=0,"",C201) ->  | E206: =IF(E201=0,"",E201) ->  | F206: REALIZADO VARIABLE 1 | V206: =IF(SUM(I206:T206)=0,"",SUM(I206:T206)) ->  | W206: =IF($G$192="porcentaje",FIXED(V206/V207*100,2)&"%",IF($G$192="Promedio",V206/V207,IF($G$192="variación porcentual",FIXED(((V206/V207)-1)*100,2)&"%",IF($G$192="OTRAS","CAPTURAR EL RESULTADO DEL INDICADOR")))) -> FALSE
A207: VARIABLE 2 | C207: =IF(C202=0,"",C202) ->  | E207: =IF(E202=0,"",E202) ->  | F207: REALIZADO VARIABLE 2 | U207: =SUM(I207:T207) -> 0 | V207: =IF(SUM(I207:T207)=0,"",SUM(I207:T207)) -> 
A209: CUMPLIMIENTO FINAL | W209: =IF(ISERROR(W206/W201)=TRUE,"",(W206/W201)) -> 
A211: Explicaciones y causas de las variaciones al cumplimiento de la programación, ¿ Por qué no se cumplio o por que se supero considerablemente lo programado?
A213: COMPONENTE 5 RESUMEN NARRATIVO
A215: Indicador
A217: NOMBRE
A219: DIMENSIÓN A MEDIR | E219: FRECUENCIA DE MEDICIÓN | M219: MÉTODO DE CALCULO
A221: TIPO DE INDICADOR | E221: TIPO DE FÓRMULA | M221: COMPORTAMIENTO DEL INDICADOR HACIA LA META
C223: LINEA BASE | O223: META DEL INDICADOR
C225: VALOR | E225: AÑO
A227: PROGRAMADO
A228: VARIABLES | C228: NOMBRE | E228: UNIDAD DE MEDIDA | F228: CALENDARIO - PROGRAMADO | V228: TOTAL | W228: META PROGRAMADA EN EL AÑO
F229: PROGRAMADO | I229: ENE | J229: FEB | K229: MAR | L229: ABR | M229: MAY | N229: JUN | O229: JUL | P229: AGO | Q229: SEP | R229: OCT | S229: NOV | T229: DIC
A230: VARIABLE 1 | F230: PROGRAMADO VARIABLE 1 | V230: =IF(SUM(I230:T230)=0,"",SUM(I230:T230)) ->  | W230: =IF($G$221="porcentaje",FIXED(V230/V231*100,2)&"%",IF($G$221="Promedio",V230/V231,IF($G$221="variación porcentual",FIXED(((V230/V231)-1)*100,2)&"%",IF($G$221="OTRAS","CAPTURAR EL RESULTADO DEL INDICADOR")))) -> FALSE
A231: VARIABLE 2 | F231: PROGRAMADO VARIABLE 2 | U231: =SUM(I231:T231) -> 0 | V231: =IF(SUM(I231:T231)=0,"",SUM(I231:T231)) -> 
A232: REALIZADO
A233: VARIABLES | C233: NOMBRE | E233: UNIDAD DE MEDIDA | F233: CALENDARIO - PROGRAMADO | V233: TOTAL | W233: PROCENTAJE PROGRAMADO EN EL AÑO
F234: REALIZADO | I234: ENE | J234: FEB | K234: MAR | L234: ABR | M234: MAY | N234: JUN | O234: JUL | P234: AGO | Q234: SEP | R234: OCT | S234: NOV | T234: DIC
A235: VARIABLE 1 | C235: =IF(C230=0,"",C230) ->  | E235: =IF(E230=0,"",E230) ->  | F235: REALIZADO VARIABLE 1 | V235: =IF(SUM(I235:T235)=0,"",SUM(I235:T235)) ->  | W235: =IF($G$221="porcentaje",FIXED(V235/V236*100,2)&"%",IF($G$221="Promedio",V235/V236,IF($G$221="variación porcentual",FIXED(((V235/V236)-1)*100,2)&"%",IF($G$221="OTRAS","CAPTURAR EL RESULTADO DEL INDICADOR")))) -> FALSE
A236: VARIABLE 2 | C236: =IF(C231=0,"",C231) ->  | E236: =IF(E231=0,"",E231) ->  | F236: REALIZADO VARIABLE 2 | U236: =SUM(I236:T236) -> 0 | V236: =IF(SUM(I236:T236)=0,"",SUM(I236:T236)) -> 
A238: CUMPLIMIENTO FINAL | W238: =IF(ISERROR(W235/W230)=TRUE,"",(W235/W230)) -> 
A240: Explicaciones y causas de las variaciones al cumplimiento de la programación, ¿ Por qué no se cumplio o por que se supero considerablemente lo programado?
A242: COMPONENTE 6 RESUMEN NARRATIVO
A244: Indicador
A246: NOMBRE
A248: DIMENSIÓN A MEDIR | E248: FRECUENCIA DE MEDICIÓN | M248: MÉTODO DE CALCULO
A250: TIPO DE INDICADOR | E250: TIPO DE FÓRMULA | M250: COMPORTAMIENTO DEL INDICADOR HACIA LA META
C252: LINEA BASE | O252: META DEL INDICADOR
C254: VALOR | E254: AÑO
A256: PROGRAMADO
A257: VARIABLES | C257: NOMBRE | E257: UNIDAD DE MEDIDA | F257: CALENDARIO - PROGRAMADO | V257: TOTAL | W257: META PROGRAMADA EN EL AÑO
F258: PROGRAMADO | I258: ENE | J258: FEB | K258: MAR | L258: ABR | M258: MAY | N258: JUN | O258: JUL | P258: AGO | Q258: SEP | R258: OCT | S258: NOV | T258: DIC
A259: VARIABLE 1 | F259: PROGRAMADO VARIABLE 1 | V259: =IF(SUM(I259:T259)=0,"",SUM(I259:T259)) ->  | W259: =IF($G$221="porcentaje",FIXED(V259/V260*100,2)&"%",IF($G$221="Promedio",V259/V260,IF($G$221="variación porcentual",FIXED(((V259/V260)-1)*100,2)&"%",IF($G$221="OTRAS","CAPTURAR EL RESULTADO DEL INDICADOR")))) -> FALSE
A260: VARIABLE 2 | F260: PROGRAMADO VARIABLE 2 | U260: =SUM(I260:T260) -> 0 | V260: =IF(SUM(I260:T260)=0,"",SUM(I260:T260)) -> 
A261: REALIZADO
A262: VARIABLES | C262: NOMBRE | E262: UNIDAD DE MEDIDA | F262: CALENDARIO - PROGRAMADO | V262: TOTAL | W262: PROCENTAJE PROGRAMADO EN EL AÑO
F263: REALIZADO | I263: ENE | J263: FEB | K263: MAR | L263: ABR | M263: MAY | N263: JUN | O263: JUL | P263: AGO | Q263: SEP | R263: OCT | S263: NOV | T263: DIC
A264: VARIABLE 1 | C264: =IF(C259=0,"",C259) ->  | E264: =IF(E259=0,"",E259) ->  | F264: REALIZADO VARIABLE 1 | V264: =IF(SUM(I264:T264)=0,"",SUM(I264:T264)) ->  | W264: =IF($G$221="porcentaje",FIXED(V264/V265*100,2)&"%",IF($G$221="Promedio",V264/V265,IF($G$221="variación porcentual",FIXED(((V264/V265)-1)*100,2)&"%",IF($G$221="OTRAS","CAPTURAR EL RESULTADO DEL INDICADOR")))) -> FALSE
A265: VARIABLE 2 | C265: =IF(C260=0,"",C260) ->  | E265: =IF(E260=0,"",E260) ->  | F265: REALIZADO VARIABLE 2 | U265: =SUM(I265:T265) -> 0 | V265: =IF(SUM(I265:T265)=0,"",SUM(I265:T265)) -> 
A267: CUMPLIMIENTO FINAL | W267: =IF(ISERROR(W264/W259)=TRUE,"",(W264/W259)) -> 
A269: Explicaciones y causas de las variaciones al cumplimiento de la programación, ¿ Por qué no se cumplio o por que se supero considerablemente lo programado?
A272: ACTIVIDADES
A274: COMPONENTE | B274: DESCRIPCIÓN | E274: UNIDAD DE MEDIDA | F274: CALENDARIO | V274: TOTAL | W274: PORCENTAJE DE CUMPLIMIENTO DE LA ACTIVIDAD
F275: PROGRAMADO / REALIZADO | I275: ENE | J275: FEB | K275: MAR | L275: ABR | M275: MAY | N275: JUN | O275: JUL | P275: AGO | Q275: SEP | R275: OCT | S275: NOV | T275: DIC
A276: C1 | B276: 1 | C276: Realizar pláticas informativas en materia de prevención al delito a la población | E276: actividad | F276: PROGRAMADO | K276: 1 | N276: 1 | Q276: 1 | T276: 1 | V276: =SUM(I276:T276) -> 4 | W276: =IF(V276=0,"-",V277/V276) -> 0%
F277: REALIZADO | V277: 0
B278: 2 | C278: Realizar pláticas informativas sobre vialidad a la población en el municipio | E278: actividad | F278: PROGRAMADO | L278: 1 | P278: 1 | T278: 1 | V278: 3 | W278: =IF(V278=0,"-",V279/V278) -> 0%
F279: REALIZADO | V279: 0
B280: 3 | C280: Realzar pláticas informativas en materia de protección civil en el municipio | E280: actividad | F280: PROGRAMADO | M280: 1 | S280: 1 | V280: 2 | W280: =IF(V280=0,"-",V281/V280) -> 0%
F281: REALIZADO | V281: 0
B282: 4 | F282: PROGRAMADO | V282: 0 | W282: =IF(V282=0,"-",V283/V282) -> -
F283: REALIZADO | V283: 0
B284: 5 | F284: PROGRAMADO | V284: 0 | W284: =IF(V284=0,"-",V285/V284) -> -
F285: REALIZADO | V285: 0
A286: C2 | B286: 1 | C286: Realizar seguimiento de licencias de portación de armas | E286: actividad | F286: PROGRAMADO | K286: 1 | Q286: 1 | V286: 2 | W286: =IF(V286=0,"-",V287/V286) -> 0%
F287: REALIZADO | V287: =SUM(I287:T287) -> 0
... 215 more rows

Sheet Programa 3
C2: CLAVE: | F2: 11/04
C3: ENTIDAD FISCALIZADA: | F3: =IF(ISERROR(VLOOKUP(F2,general!$B:$C,2,FALSE))=TRUE,"",(VLOOKUP(F2,general!$B:$C,2,FALSE))) -> Chietla
D4: AÑO: | F4: 2025
A6: PROGRAMA PRESUPUESTARIO
A8: Nombre del Programa | D8: Fomento Económico
A9: Unidad(es) Responsable(s) | D9: Presidencia
A10: Costo Total del Programa
A11: Fuente de Financiamiento | D11: RECURSOS FISCALES | G11: PARTICIPACIONES | L11: FISM | P11: FORTAMUN | T11: OTROS
A12: Monto Específco | D12: $3,500,000.00
A14: CLASIFICACIÓN FUNCIONAL DEL GASTO
A15: CLASIFICACIÓN | D15: CONCEPTO
A16: Finalidad | D16: 3. Desarrollo económico
A17: Función | D17: 3.1. Asuntos económicos, comerciales y laborales en general
A18: Subfunción | D18: 3.1.1 Asuntos Económicos y Comerciales en General
A19: Sub/Subfunción | D19: 3.1.1.1 Fomento Económico y Turismo
A21: GASTO POR CATEGORÍA PROGRAMÁTICA
A22: CATEGORÍA | D22: Promoción y Fomento
A23: PROGRAMA | D23: F Promoción y Fomento
A25: DATOS DE VINCULACIÓN AL PLAN ESTATAL DE DESARROLLO
A26: Eje 3 Fortalecimeinto del campo e impulso a la economía justa y social
A27: DATOS DE VINCULACIÓN AL PLAN MUNICIPAL DE DESARROLLO (EJES, ESTRATEGIAS U OBJETIVOS GENERALES)
A28: Eje 1 Impulso y Mejora Municipal
A29: NIVEL INMEDIATO INFERIOR (OBJETIVO O LíNEA ESTRATÉGICA)
A30: Promover el desarrollo rural, integral y agropecuario en beneficio de los productores del municipio, por medio de la gestión deprogramas, capacitación y recursos en los niveles e instancias correspondientes, basada en la distribución equitativa, flexible que nos permita impulsar a todos aquellos productores dedicados a las actividades agrícola y ganadera
A31: DATOS DE VINCULACIÓN A OBJETIVOS DE DESARROLLO SOSTENIBLE
A32: 2. Poner fin al hambre, lograr la seguridad alimentaria y la mejora de la nutrición y promover la agricultura sostenible.
A33: FIN
A35: RESUMEN NARRATIVO | C35: Contribuir al desarrollo económico del municipio de Chietla, a través de acciones que impulsen las actividades económicas de mayor impacto y promuevan las de nueva creación.
A37: Indicador
A39: NOMBRE | C39: Porcentaje de acciones implementadas de desarrollo económico en el municipio
A41: DIMENSIÓN A MEDIR | C41: Eficiencia | E41: FRECUENCIA DE MEDICIÓN | G41: Anual | M41: MÉTODO DE CALCULO | Q41: (v1/v2)*100
A43: TIPO DE INDICADOR | C43: Estratégico | E43: TIPO DE FÓRMULA | G43: Porcentaje | M43: COMPORTAMIENTO DEL INDICADOR HACIA LA META | Q43: Ascendente
C45: LINEA BASE | O45: META DEL INDICADOR
C46: 24 | E46: 2024 | O46: 24
C47: VALOR | E47: AÑO
A49: PROGRAMADO
A50: VARIABLES | C50: NOMBRE | E50: UNIDAD DE MEDIDA | F50: CALENDARIO - PROGRAMADO | V50: TOTAL | W50: META PROGRAMADA EN EL AÑO
F51: PROGRAMADO | I51: ENE | J51: FEB | K51: MAR | L51: ABR | M51: MAY | N51: JUN | O51: JUL | P51: AGO | Q51: SEP | R51: OCT | S51: NOV | T51: DIC
A52: VARIABLE 1 | C52: Número de acciones implementadas de desarrollo económico | E52: acciones | F52: PROGRAMADO VARIABLE 1 | I52: 2 | J52: 2 | K52: 2 | L52: 2 | M52: 2 | N52: 2 | O52: 2 | P52: 2 | Q52: 2 | R52: 2 | S52: 2 | T52: 2 | V52: =IF(SUM(I52:T52)=0,"",SUM(I52:T52)) -> 24 | W52: =IF($G$43="porcentaje",FIXED(V52/V53*100,2)&"%",IF($G$43="Promedio",V52/V53,IF($G$43="variación porcentual",FIXED(((V52/V53)-1)*100,2)&"%",IF($G$43="OTRAS","CAPTURAR EL RESULTADO DEL INDICADOR")))) -> 100.00%
A53: VARIABLE 2 | C53: Número de acciones implementadas de desarrollo económico en el municipio | E53: acciones | F53: PROGRAMADO VARIABLE 2 | I53: 2 | J53: 2 | K53: 2 | L53: 2 | M53: 2 | N53: 2 | O53: 2 | P53: 2 | Q53: 2 | R53: 2 | S53: 2 | T53: 2 | U53: =SUM(I53:T53) -> 24 | V53: =IF(SUM(I53:T53)=0,"",SUM(I53:T53)) -> 24
A54: REALIZADO
A55: VARIABLES | C55: NOMBRE | E55: UNIDAD DE MEDIDA | F55: CALENDARIO - PROGRAMADO | V55: TOTAL | W55: RESULTADO ALCANZADO EN EL AÑO
F56: REALIZADO | I56: ENE | J56: FEB | K56: MAR | L56: ABR | M56: MAY | N56: JUN | O56: JUL | P56: AGO | Q56: SEP | R56: OCT | S56: NOV | T56: DIC
A57: VARIABLE 1 | C57: =IF(C52=0,"",C52) -> Número de acciones implementadas de desarrollo económico | E57: =IF(E52=0,"",E52) -> acciones | F57: REALIZADO VARIABLE 1 | V57: =IF(SUM(I57:T57)=0,"",SUM(I57:T57)) ->  | W57: =IF($G$43="porcentaje",FIXED(V57/V58*100,2)&"%",IF($G$43="Promedio",V57/V58,IF($G$43="variación porcentual",FIXED(((V57/V58)-1)*100,2)&"%",IF($G$43="OTRAS","CAPTURAR EL RESULTADO DEL INDICADOR")))) -> 
A58: VARIABLE 2 | C58: =IF(C53=0,"",C53) -> Número de acciones implementadas de desarrollo económico en el municipio | E58: =IF(E53=0,"",E53) -> acciones | F58: REALIZADO VARIABLE 2 | U58: =SUM(I58:T58) -> 0 | V58: =IF(SUM(I58:T58)=0,"",SUM(I58:T58)) -> 
A60: CUMPLIMIENTO FINAL | W60: =IF(ISERROR(W57/W52)=TRUE,"",(W57/W52)) -> 
A62: Explicaciones y causas de las variaciones al cumplimiento de la programación, ¿ Por qué no se cumplio o por que se supero considerablemente lo programado?
A64: PROPÓSITO
A66: RESUMEN NARRATIVO | C66: La población del Municipio de impulso a las actividades económicas de mayor impacto y promoción de nuevos emprendedores con perspectiva de género
A68: Indicador
A70: NOMBRE | C70: Porcentaje de población beneficaiada con acciones de impulsen las actividades ecoómicas de mayor impacto y promoción de nuevos emprendimientos con perspectiva de género
A72: DIMENSIÓN A MEDIR | C72: Eficacia | E72: FRECUENCIA DE MEDICIÓN | G72: Anual | M72: MÉTODO DE CALCULO | Q72: (v1/v2)*100
A74: TIPO DE INDICADOR | C74: Estratégico | E74: TIPO DE FÓRMULA | G74: Porcentaje | M74: COMPORTAMIENTO DEL INDICADOR HACIA LA META | Q74: Ascendente
C76: LINEA BASE | O76: META DEL INDICADOR
C77: 27773 | E77: 2024 | O77: 27773.0
C78: VALOR | E78: AÑO
A80: PROGRAMADO
A81: VARIABLES | C81: NOMBRE | E81: UNIDAD DE MEDIDA | F81: CALENDARIO - PROGRAMADO | V81: TOTAL | W81: META PROGRAMADA EN EL AÑO
F82: PROGRAMADO | I82: ENE | J82: FEB | K82: MAR | L82: ABR | M82: MAY | N82: JUN | O82: JUL | P82: AGO | Q82: SEP | R82: OCT | S82: NOV | T82: DIC
A83: VARIABLE 1 | C83: Población beneficiada con acciones que impulsan las actividades económicas y nuevos emprendicmientos con persectiva de género | E83: habitantes | F83: PROGRAMADO VARIABLE 1 | T83: 27773 | V83: =IF(SUM(I83:T83)=0,"",SUM(I83:T83)) -> 27773 | W83: =IF($G$74="porcentaje",FIXED(V83/V84*100,2)&"%",IF($G$74="Promedio",V83/V84,IF($G$74="variación porcentual",FIXED(((V83/V84)-1)*100,2)&"%",IF($G$74="OTRAS","CAPTURAR EL RESULTADO DEL INDICADOR")))) -> 100.00%
A84: VARIABLE 2 | C84: Población base | E84: habitantes | F84: PROGRAMADO VARIABLE 2 | T84: 27773 | U84: =SUM(I84:T84) -> 27773 | V84: =IF(SUM(I84:T84)=0,"",SUM(I84:T84)) -> 27773
A85: REALIZADO
A86: VARIABLES | C86: NOMBRE | E86: UNIDAD DE MEDIDA | F86: CALENDARIO - PROGRAMADO | V86: TOTAL | W86: RESULTADO ALCANZADO EN EL AÑO
F87: REALIZADO | I87: ENE | J87: FEB | K87: MAR | L87: ABR | M87: MAY | N87: JUN | O87: JUL | P87: AGO | Q87: SEP | R87: OCT | S87: NOV | T87: DIC
A88: VARIABLE 1 | C88: =IF(C83=0,"",C83) -> Población beneficiada con acciones que impulsan las actividades económicas y nuevos emprendicmientos con persectiva de género | E88: =IF(E83=0,"",E83) -> habitantes | F88: REALIZADO VARIABLE 1 | V88: =IF(SUM(I88:T88)=0,"",SUM(I88:T88)) ->  | W88: =IF($G$74="porcentaje",FIXED(V88/V89*100,2)&"%",IF($G$74="Promedio",V88/V89,IF($G$74="variación porcentual",FIXED(((V88/V89)-1)*100,2)&"%",IF($G$74="OTRAS","CAPTURAR EL RESULTADO DEL INDICADOR")))) -> 
A89: VARIABLE 2 | C89: =IF(C84=0,"",C84) -> Población base | E89: =IF(E84=0,"",E84) -> habitantes | F89: REALIZADO VARIABLE 2 | U89: =SUM(I89:T89) -> 0 | V89: =IF(SUM(I89:T89)=0,"",SUM(I89:T89)) -> 
A91: CUMPLIMIENTO FINAL | W91: =IF(ISERROR(W88/W83)=TRUE,"",(W88/W83)) -> 
A93: Explicaciones y causas de las variaciones al cumplimiento de la programación, ¿ Por qué no se cumplio o por que se supero considerablemente lo programado?
A95: COMPONENTES
A97: COMPONENTE 1 RESUMEN NARRATIVO | C97: Acciones enfocadas a actividades ganaderas y productores agropecuarios implementadas
A99: Indicador
A101: NOMBRE | C101: Porcentaje de acciones que impulsan al campo y productores con perspectiva de género
A103: DIMENSIÓN A MEDIR | C103: Eficacia | E103: FRECUENCIA DE MEDICIÓN | G103: Trimestral | M103: MÉTODO DE CALCULO | Q103: v1/v2)*100
A105: TIPO DE INDICADOR | C105: Gestión | E105: TIPO DE FÓRMULA | G105: Porcentaje | M105: COMPORTAMIENTO DEL INDICADOR HACIA LA META | Q105: Regular
C107: LINEA BASE | O107: META DEL INDICADOR
C108: 12 | E108: 2024 | O108: 12.00
C109: VALOR | E109: AÑO
A111: PROGRAMADO
A112: VARIABLES | C112: NOMBRE | E112: UNIDAD DE MEDIDA | F112: CALENDARIO - PROGRAMADO | V112: TOTAL | W112: META PROGRAMADA EN EL AÑO
F113: PROGRAMADO | I113: ENE | J113: FEB | K113: MAR | L113: ABR | M113: MAY | N113: JUN | O113: JUL | P113: AGO | Q113: SEP | R113: OCT | S113: NOV | T113: DIC
A114: VARIABLE 1 | C114: Numero de acciones para impulsar el campo y productores con perspectiva de género | E114: acciones | F114: PROGRAMADO VARIABLE 1 | J114: 1 | L114: 1 | M114: 2 | N114: 2 | P114: 1 | Q114: 1 | R114: 2 | T114: 2 | V114: =IF(SUM(I114:T114)=0,"",SUM(I114:T114)) -> 12 | W114: =IF($G$105="porcentaje",FIXED(V114/V115*100,2)&"%",IF($G$105="Promedio",V114/V115,IF($G$105="variación porcentual",FIXED(((V114/V115)-1)*100,2)&"%",IF($G$105="OTRAS","CAPTURAR EL RESULTADO DEL INDICADOR")))) -> 100.00%
A115: VARIABLE 2 | C115: Total de acciones de impulso al campo y productores | E115: acciones | F115: PROGRAMADO VARIABLE 2 | J115: 1 | L115: 1 | M115: 2 | N115: 2 | P115: 1 | Q115: 1 | R115: 2 | T115: 2 | U115: =SUM(I115:T115) -> 12 | V115: =IF(SUM(I115:T115)=0,"",SUM(I115:T115)) -> 12
A116: REALIZADO
A117: VARIABLES | C117: NOMBRE | E117: UNIDAD DE MEDIDA | F117: CALENDARIO - PROGRAMADO | V117: TOTAL | W117: RESULTADO ALCANZADO EN EL AÑO
F118: REALIZADO | I118: ENE | J118: FEB | K118: MAR | L118: ABR | M118: MAY | N118: JUN | O118: JUL | P118: AGO | Q118: SEP | R118: OCT | S118: NOV | T118: DIC
A119: VARIABLE 1 | C119: =IF(C114=0,"",C114) -> Numero de acciones para impulsar el campo y productores con perspectiva de género | E119: =IF(E114=0,"",E114) -> acciones | F119: REALIZADO VARIABLE 1 | V119: =IF(SUM(I119:T119)=0,"",SUM(I119:T119)) ->  | W119: =IF($G$105="porcentaje",FIXED(V119/V120*100,2)&"%",IF($G$105="Promedio",V119/V120,IF($G$105="variación porcentual",FIXED(((V119/V120)-1)*100,2)&"%",IF($G$105="OTRAS","CAPTURAR EL RESULTADO DEL INDICADOR")))) -> 
A120: VARIABLE 2 | C120: =IF(C115=0,"",C115) -> Total de acciones de impulso al campo y productores | E120: =IF(E115=0,"",E115) -> acciones | F120: REALIZADO VARIABLE 2 | U120: =SUM(I120:T120) -> 0 | V120: =IF(SUM(I120:T120)=0,"",SUM(I120:T120)) -> 
A122: CUMPLIMIENTO FINAL | W122: =IF(ISERROR(W119/W114)=TRUE,"",(W119/W114)) -> 
A124: Explicaciones y causas de las variaciones al cumplimiento de la programación, ¿ Por qué no se cumplio o por que se supero considerablemente lo programado?
A126: COMPONENTE 2 RESUMEN NARRATIVO
A128: Indicador
A130: NOMBRE | C130: Acciones que impulsan el desarrollo económico a través de la promoción turística y cultural, la preservación de tradiciones con enfoque de género
A132: DIMENSIÓN A MEDIR | C132: Eficacia | E132: FRECUENCIA DE MEDICIÓN | G132: trimestral | M132: MÉTODO DE CALCULO | Q132: (v1/v2)*100
A134: TIPO DE INDICADOR | C134: Gestión | E134: TIPO DE FÓRMULA | G134: Porcentaje | M134: COMPORTAMIENTO DEL INDICADOR HACIA LA META | Q134: Regular
C136: LINEA BASE | O136: META DEL INDICADOR
C137: 12 | E137: 2024 | O137: 8
C138: VALOR | E138: AÑO
A140: PROGRAMADO
A141: VARIABLES | C141: NOMBRE | E141: UNIDAD DE MEDIDA | F141: CALENDARIO - PROGRAMADO | V141: TOTAL | W141: META PROGRAMADA EN EL AÑO
F142: PROGRAMADO | I142: ENE | J142: FEB | K142: MAR | L142: ABR | M142: MAY | N142: JUN | O142: JUL | P142: AGO | Q142: SEP | R142: OCT | S142: NOV | T142: DIC
A143: VARIABLE 1 | C143: Número de aciones que impulsan el desarrollo económico, turístico y cultural, la preservación de tradiciones con enfoque de género | E143: acciones | F143: PROGRAMADO VARIABLE 1 | K143: 1 | L143: 1 | M143: 1 | N143: 1 | P143: 1 | Q143: 1 | T143: 2 | V143: =IF(SUM(I143:T143)=0,"",SUM(I143:T143)) -> 8 | W143: =IF($G$134="porcentaje",FIXED(V143/V144*100,2)&"%",IF($G$134="Promedio",V143/V144,IF($G$134="variación porcentual",FIXED(((V143/V144)-1)*100,2)&"%",IF($G$134="OTRAS","CAPTURAR EL RESULTADO DEL INDICADOR")))) -> 100.00%
A144: VARIABLE 2 | C144: Total de acciones | E144: acciones | F144: PROGRAMADO VARIABLE 2 | K144: 1 | L144: 1 | M144: 1 | N144: 1 | P144: 1 | Q144: 1 | T144: 2 | U144: =SUM(I144:T144) -> 8 | V144: =IF(SUM(I144:T144)=0,"",SUM(I144:T144)) -> 8
A145: REALIZADO
A146: VARIABLES | C146: NOMBRE | E146: UNIDAD DE MEDIDA | F146: CALENDARIO - PROGRAMADO | V146: TOTAL | W146: RESULTADO ALCANZADO EN EL AÑO
F147: REALIZADO | I147: ENE | J147: FEB | K147: MAR | L147: ABR | M147: MAY | N147: JUN | O147: JUL | P147: AGO | Q147: SEP | R147: OCT | S147: NOV | T147: DIC
A148: VARIABLE 1 | C148: =IF(C143=0,"",C143) -> Número de aciones que impulsan el desarrollo económico, turístico y cultural, la preservación de tradiciones con enfoque de género | E148: =IF(E143=0,"",E143) -> acciones | F148: REALIZADO VARIABLE 1 | V148: =IF(SUM(I148:T148)=0,"",SUM(I148:T148)) ->  | W148: =IF($G$134="porcentaje",FIXED(V148/V149*100,2)&"%",IF($G$134="Promedio",V148/V149,IF($G$134="variación porcentual",FIXED(((V148/V149)-1)*100,2)&"%",IF($G$134="OTRAS","CAPTURAR EL RESULTADO DEL INDICADOR")))) -> 
A149: VARIABLE 2 | C149: =IF(C144=0,"",C144) -> Total de acciones | E149: =IF(E144=0,"",E144) -> acciones | F149: REALIZADO VARIABLE 2 | U149: =SUM(I149:T149) -> 0 | V149: =IF(SUM(I149:T149)=0,"",SUM(I149:T149)) -> 
A151: CUMPLIMIENTO FINAL | W151: =IF(ISERROR(W148/W143)=TRUE,"",(W148/W143)) -> 
A153: Explicaciones y causas de las variaciones al cumplimiento de la programación, ¿ Por qué no se cumplio o por que se supero considerablemente lo programado?
A155: COMPONENTE 3 RESUMEN NARRATIVO
A157: Indicador
A159: NOMBRE
A161: DIMENSIÓN A MEDIR | E161: FRECUENCIA DE MEDICIÓN | M161: MÉTODO DE CALCULO
A163: TIPO DE INDICADOR | E163: TIPO DE FÓRMULA | M163: COMPORTAMIENTO DEL INDICADOR HACIA LA META
C165: LINEA BASE | O165: META DEL INDICADOR
C167: VALOR | E167: AÑO
A169: PROGRAMADO
A170: VARIABLES | C170: NOMBRE | E170: UNIDAD DE MEDIDA | F170: CALENDARIO - PROGRAMADO | V170: TOTAL | W170: META PROGRAMADA EN EL AÑO
F171: PROGRAMADO | I171: ENE | J171: FEB | K171: MAR | L171: ABR | M171: MAY | N171: JUN | O171: JUL | P171: AGO | Q171: SEP | R171: OCT | S171: NOV | T171: DIC
A172: VARIABLE 1 | F172: PROGRAMADO VARIABLE 1 | V172: =IF(SUM(I172:T172)=0,"",SUM(I172:T172)) ->  | W172: =IF($G$163="porcentaje",FIXED(V172/V173*100,2)&"%",IF($G$163="Promedio",V172/V173,IF($G$163="variación porcentual",FIXED(((V172/V173)-1)*100,2)&"%",IF($G$163="OTRAS","CAPTURAR EL RESULTADO DEL INDICADOR")))) -> FALSE
A173: VARIABLE 2 | F173: PROGRAMADO VARIABLE 2 | U173: =SUM(I173:T173) -> 0 | V173: =IF(SUM(I173:T173)=0,"",SUM(I173:T173)) -> 
A174: REALIZADO
A175: VARIABLES | C175: NOMBRE | E175: UNIDAD DE MEDIDA | F175: CALENDARIO - PROGRAMADO | V175: TOTAL | W175: RESULTADO ALCANZADO EN EL AÑO
F176: REALIZADO | I176: ENE | J176: FEB | K176: MAR | L176: ABR | M176: MAY | N176: JUN | O176: JUL | P176: AGO | Q176: SEP | R176: OCT | S176: NOV | T176: DIC
A177: VARIABLE 1 | C177: =IF(C172=0,"",C172) ->  | E177: =IF(E172=0,"",E172) ->  | F177: REALIZADO VARIABLE 1 | V177: =IF(SUM(I177:T177)=0,"",SUM(I177:T177)) ->  | W177: =IF($G$163="porcentaje",FIXED(V177/V178*100,2)&"%",IF($G$163="Promedio",V177/V178,IF($G$163="variación porcentual",FIXED(((V177/V178)-1)*100,2)&"%",IF($G$163="OTRAS","CAPTURAR EL RESULTADO DEL INDICADOR")))) -> FALSE
A178: VARIABLE 2 | C178: =IF(C173=0,"",C173) ->  | E178: =IF(E173=0,"",E173) ->  | F178: REALIZADO VARIABLE 2 | U178: =SUM(I178:T178) -> 0 | V178: =IF(SUM(I178:T178)=0,"",SUM(I178:T178)) -> 
A180: CUMPLIMIENTO FINAL | W180: =IF(ISERROR(W177/W172)=TRUE,"",(W177/W172)) -> 
A182: Explicaciones y causas de las variaciones al cumplimiento de la programación, ¿ Por qué no se cumplio o por que se supero considerablemente lo programado?
A184: COMPONENTE 4 RESUMEN NARRATIVO
A186: Indicador
A188: NOMBRE
A190: DIMENSIÓN A MEDIR | E190: FRECUENCIA DE MEDICIÓN | M190: MÉTODO DE CALCULO
A192: TIPO DE INDICADOR | E192: TIPO DE FÓRMULA | M192: COMPORTAMIENTO DEL INDICADOR HACIA LA META
C194: LINEA BASE | O194: META DEL INDICADOR
C196: VALOR | E196: AÑO
A198: PROGRAMADO
A199: VARIABLES | C199: NOMBRE | E199: UNIDAD DE MEDIDA | F199: CALENDARIO - PROGRAMADO | V199: TOTAL | W199: META PROGRAMADA EN EL AÑO
F200: PROGRAMADO | I200: ENE | J200: FEB | K200: MAR | L200: ABR | M200: MAY | N200: JUN | O200: JUL | P200: AGO | Q200: SEP | R200: OCT | S200: NOV | T200: DIC
A201: VARIABLE 1 | F201: PROGRAMADO VARIABLE 1 | V201: =IF(SUM(I201:T201)=0,"",SUM(I201:T201)) ->  | W201: =IF($G$192="porcentaje",FIXED(V201/V202*100,2)&"%",IF($G$192="Promedio",V201/V202,IF($G$192="variación porcentual",FIXED(((V201/V202)-1)*100,2)&"%",IF($G$192="OTRAS","CAPTURAR EL RESULTADO DEL INDICADOR")))) -> FALSE
A202: VARIABLE 2 | F202: PROGRAMADO VARIABLE 2 | U202: =SUM(I202:T202) -> 0 | V202: =IF(SUM(I202:T202)=0,"",SUM(I202:T202)) -> 
A203: REALIZADO
A204: VARIABLES | C204: NOMBRE | E204: UNIDAD DE MEDIDA | F204: CALENDARIO - PROGRAMADO | V204: TOTAL | W204: PROCENTAJE PROGRAMADO EN EL AÑO
F205: REALIZADO | I205: ENE | J205: FEB | K205: MAR | L205: ABR | M205: MAY | N205: JUN | O205: JUL | P205: AGO | Q205: SEP | R205: OCT | S205: NOV | T205: DIC
A206: VARIABLE 1 | C206: =IF(C201=0,"",C201) ->  | E206: =IF(E201=0,"",E201) ->  | F206: REALIZADO VARIABLE 1 | V206: =IF(SUM(I206:T206)=0,"",SUM(I206:T206)) ->  | W206: =IF($G$192="porcentaje",FIXED(V206/V207*100,2)&"%",IF($G$192="Promedio",V206/V207,IF($G$192="variación porcentual",FIXED(((V206/V207)-1)*100,2)&"%",IF($G$192="OTRAS","CAPTURAR EL RESULTADO DEL INDICADOR")))) -> FALSE
A207: VARIABLE 2 | C207: =IF(C202=0,"",C202) ->  | E207: =IF(E202=0,"",E202) ->  | F207: REALIZADO VARIABLE 2 | U207: =SUM(I207:T207) -> 0 | V207: =IF(SUM(I207:T207)=0,"",SUM(I207:T207)) -> 
A209: CUMPLIMIENTO FINAL | W209: =IF(ISERROR(W206/W201)=TRUE,"",(W206/W201)) -> 
A211: Explicaciones y causas de las variaciones al cumplimiento de la programación, ¿ Por qué no se cumplio o por que se supero considerablemente lo programado?
A213: COMPONENTE 5 RESUMEN NARRATIVO
A215: Indicador
A217: NOMBRE
A219: DIMENSIÓN A MEDIR | E219: FRECUENCIA DE MEDICIÓN | M219: MÉTODO DE CALCULO
A221: TIPO DE INDICADOR | E221: TIPO DE FÓRMULA | M221: COMPORTAMIENTO DEL INDICADOR HACIA LA META
C223: LINEA BASE | O223: META DEL INDICADOR
C225: VALOR | E225: AÑO
A227: PROGRAMADO
A228: VARIABLES | C228: NOMBRE | E228: UNIDAD DE MEDIDA | F228: CALENDARIO - PROGRAMADO | V228: TOTAL | W228: META PROGRAMADA EN EL AÑO
F229: PROGRAMADO | I229: ENE | J229: FEB | K229: MAR | L229: ABR | M229: MAY | N229: JUN | O229: JUL | P229: AGO | Q229: SEP | R229: OCT | S229: NOV | T229: DIC
A230: VARIABLE 1 | F230: PROGRAMADO VARIABLE 1 | V230: =IF(SUM(I230:T230)=0,"",SUM(I230:T230)) ->  | W230: =IF($G$221="porcentaje",FIXED(V230/V231*100,2)&"%",IF($G$221="Promedio",V230/V231,IF($G$221="variación porcentual",FIXED(((V230/V231)-1)*100,2)&"%",IF($G$221="OTRAS","CAPTURAR EL RESULTADO DEL INDICADOR")))) -> FALSE
A231: VARIABLE 2 | F231: PROGRAMADO VARIABLE 2 | U231: =SUM(I231:T231) -> 0 | V231: =IF(SUM(I231:T231)=0,"",SUM(I231:T231)) -> 
A232: REALIZADO
A233: VARIABLES | C233: NOMBRE | E233: UNIDAD DE MEDIDA | F233: CALENDARIO - PROGRAMADO | V233: TOTAL | W233: PROCENTAJE PROGRAMADO EN EL AÑO
F234: REALIZADO | I234: ENE | J234: FEB | K234: MAR | L234: ABR | M234: MAY | N234: JUN | O234: JUL | P234: AGO | Q234: SEP | R234: OCT | S234: NOV | T234: DIC
A235: VARIABLE 1 | C235: =IF(C230=0,"",C230) ->  | E235: =IF(E230=0,"",E230) ->  | F235: REALIZADO VARIABLE 1 | V235: =IF(SUM(I235:T235)=0,"",SUM(I235:T235)) ->  | W235: =IF($G$221="porcentaje",FIXED(V235/V236*100,2)&"%",IF($G$221="Promedio",V235/V236,IF($G$221="variación porcentual",FIXED(((V235/V236)-1)*100,2)&"%",IF($G$221="OTRAS","CAPTURAR EL RESULTADO DEL INDICADOR")))) -> FALSE
A236: VARIABLE 2 | C236: =IF(C231=0,"",C231) ->  | E236: =IF(E231=0,"",E231) ->  | F236: REALIZADO VARIABLE 2 | U236: =SUM(I236:T236) -> 0 | V236: =IF(SUM(I236:T236)=0,"",SUM(I236:T236)) -> 
A238: CUMPLIMIENTO FINAL | W238: =IF(ISERROR(W235/W230)=TRUE,"",(W235/W230)) -> 
A240: Explicaciones y causas de las variaciones al cumplimiento de la programación, ¿ Por qué no se cumplio o por que se supero considerablemente lo programado?
A242: COMPONENTE 6 RESUMEN NARRATIVO
A244: Indicador
A246: NOMBRE
A248: DIMENSIÓN A MEDIR | E248: FRECUENCIA DE MEDICIÓN | M248: MÉTODO DE CALCULO
A250: TIPO DE INDICADOR | E250: TIPO DE FÓRMULA | M250: COMPORTAMIENTO DEL INDICADOR HACIA LA META
C252: LINEA BASE | O252: META DEL INDICADOR
C254: VALOR | E254: AÑO
A256: PROGRAMADO
A257: VARIABLES | C257: NOMBRE | E257: UNIDAD DE MEDIDA | F257: CALENDARIO - PROGRAMADO | V257: TOTAL | W257: META PROGRAMADA EN EL AÑO
F258: PROGRAMADO | I258: ENE | J258: FEB | K258: MAR | L258: ABR | M258: MAY | N258: JUN | O258: JUL | P258: AGO | Q258: SEP | R258: OCT | S258: NOV | T258: DIC
A259: VARIABLE 1 | F259: PROGRAMADO VARIABLE 1 | V259: =IF(SUM(I259:T259)=0,"",SUM(I259:T259)) ->  | W259: =IF($G$221="porcentaje",FIXED(V259/V260*100,2)&"%",IF($G$221="Promedio",V259/V260,IF($G$221="variación porcentual",FIXED(((V259/V260)-1)*100,2)&"%",IF($G$221="OTRAS","CAPTURAR EL RESULTADO DEL INDICADOR")))) -> FALSE
A260: VARIABLE 2 | F260: PROGRAMADO VARIABLE 2 | U260: =SUM(I260:T260) -> 0 | V260: =IF(SUM(I260:T260)=0,"",SUM(I260:T260)) -> 
A261: REALIZADO
A262: VARIABLES | C262: NOMBRE | E262: UNIDAD DE MEDIDA | F262: CALENDARIO - PROGRAMADO | V262: TOTAL | W262: PROCENTAJE PROGRAMADO EN EL AÑO
F263: REALIZADO | I263: ENE | J263: FEB | K263: MAR | L263: ABR | M263: MAY | N263: JUN | O263: JUL | P263: AGO | Q263: SEP | R263: OCT | S263: NOV | T263: DIC
A264: VARIABLE 1 | C264: =IF(C259=0,"",C259) ->  | E264: =IF(E259=0,"",E259) ->  | F264: REALIZADO VARIABLE 1 | V264: =IF(SUM(I264:T264)=0,"",SUM(I264:T264)) ->  | W264: =IF($G$221="porcentaje",FIXED(V264/V265*100,2)&"%",IF($G$221="Promedio",V264/V265,IF($G$221="variación porcentual",FIXED(((V264/V265)-1)*100,2)&"%",IF($G$221="OTRAS","CAPTURAR EL RESULTADO DEL INDICADOR")))) -> FALSE
A265: VARIABLE 2 | C265: =IF(C260=0,"",C260) ->  | E265: =IF(E260=0,"",E260) ->  | F265: REALIZADO VARIABLE 2 | U265: =SUM(I265:T265) -> 0 | V265: =IF(SUM(I265:T265)=0,"",SUM(I265:T265)) -> 
A267: CUMPLIMIENTO FINAL | W267: =IF(ISERROR(W264/W259)=TRUE,"",(W264/W259)) -> 
A269: Explicaciones y causas de las variaciones al cumplimiento de la programación, ¿ Por qué no se cumplio o por que se supero considerablemente lo programado?
A272: ACTIVIDADES
A274: COMPONENTE | B274: DESCRIPCIÓN | E274: UNIDAD DE MEDIDA | F274: CALENDARIO | V274: TOTAL | W274: PORCENTAJE DE CUMPLIMIENTO DE LA ACTIVIDAD
F275: PROGRAMADO / REALIZADO | I275: ENE | J275: FEB | K275: MAR | L275: ABR | M275: MAY | N275: JUN | O275: JUL | P275: AGO | Q275: SEP | R275: OCT | S275: NOV | T275: DIC
A276: C1 | B276: 1 | C276: Contar con padrón de productores ganaderos y agropecuarios | E276: padrón | F276: PROGRAMADO | M276: 1 | V276: =SUM(I276:T276) -> 1 | W276: =IF(V276=0,"-",V277/V276) -> 0%
F277: REALIZADO | V277: =SUM(I277:T277) -> 0
B278: 2 | C278: Llevar a cabo 6 proyectos en favor del campo y el sector ganadero | E278: proyecto | F278: PROGRAMADO | J278: 1 | L278: 1 | N278: 1 | P278: 1 | R278: 1 | T278: 1 | V278: =SUM(I278:T278) -> 6 | W278: =IF(V278=0,"-",V279/V278) -> 0%
F279: REALIZADO | V279: =SUM(I279:T279) -> 0
B280: 3 | C280: Llevar a cabo 2 ferias de emprendimientos | E280: feria | F280: PROGRAMADO | N280: 1 | R280: 1 | V280: =SUM(I280:T280) -> 2 | W280: =IF(V280=0,"-",V281/V280) -> 0%
F281: REALIZADO | V281: 0
B282: 4 | C282: Llevar a cabo la gestión de proyectos | E282: gestión | F282: PROGRAMADO | M282: 1 | Q282: 1 | T282: 1 | V282: 3 | W282: =IF(V282=0,"-",V283/V282) -> 0%
F283: REALIZADO | V283: 0
B284: 5 | F284: PROGRAMADO | V284: 0 | W284: =IF(V284=0,"-",V285/V284) -> -
F285: REALIZADO | V285: 0
A286: C2 | B286: 1 | C286: Promover ferias locales con artesanos y comercio local | E286: feria | F286: PROGRAMADO | K286: 1 | N286: 1 | Q286: 1 | T286: 1 | V286: 4 | W286: =IF(V286=0,"-",V287/V286) -> 0%
F287: REALIZADO | V287: =SUM(I287:T287) -> 0
... 215 more rows

Sheet Programa 4
C2: CLAVE: | F2: 11/04
C3: ENTIDAD FISCALIZADA: | F3: =IF(ISERROR(VLOOKUP(F2,general!$B:$C,2,FALSE))=TRUE,"",(VLOOKUP(F2,general!$B:$C,2,FALSE))) -> Chietla
D4: AÑO: | F4: 2025
A6: PROGRAMA PRESUPUESTARIO
A8: Nombre del Programa | D8: Inversión pública
A9: Unidad(es) Responsable(s) | D9: 08, Obras Públicas
A10: Costo Total del Programa
A11: Fuente de Financiamiento | D11: RECURSOS FISCALES | G11: PARTICIPACIONES | L11: FISM | P11: FORTAMUN | T11: OTROS
A12: Monto Específco | D12: $77,892,131.62
A14: CLASIFICACIÓN FUNCIONAL DEL GASTO
A15: CLASIFICACIÓN | D15: CONCEPTO
A16: Finalidad | D16: 2. Desarrollo social
A17: Función | D17: 2.2. Vivienda y servicios a la comunidad
A18: Subfunción | D18: 2.2.2 Desarrollo Comunitario
A19: Sub/Subfunción | D19: 2.2.2.1 nfraestructura básica municipal
A21: GASTO POR CATEGORÍA PROGRAMÁTICA
A22: CATEGORÍA | D22: Proyectos de Inversión
A23: PROGRAMA | D23: K Proyectos de Inversión
A25: DATOS DE VINCULACIÓN AL PLAN ESTATAL DE DESARROLLO
A26: Eje 2. Sustentabilidad Territorial y Desarrollo Integral
A27: DATOS DE VINCULACIÓN AL PLAN MUNICIPAL DE DESARROLLO (EJES, ESTRATEGIAS U OBJETIVOS GENERALES)
A28: Eje 1 Impulso y Mejora Municipal
A29: NIVEL INMEDIATO INFERIOR (OBJETIVO O LíNEA ESTRATÉGICA)
A30: Objetivo 2 Ampliar los proyectos de infraestructura, vialidad, obras y espacios públicos del municipio
A31: DATOS DE VINCULACIÓN A OBJETIVOS DE DESARROLLO SOSTENIBLE
A32: 9. Construir infraestructura resiliente, promover la industrialización inclusiva y sostenible y fomentar la innovación.
A33: FIN
A35: RESUMEN NARRATIVO | C35: Contribuir al desarrollo social en el municipio de Chietla a través de acciones de mejora, mantenimiento y ampliación de la infraestructura básica y del fortalecimiento municipal con enfoque de género
A37: Indicador
A39: NOMBRE | C39: Total de acciones de infraestructura básica y fortalecimiento municipal con enfoque de género
A41: DIMENSIÓN A MEDIR | C41: Eficacia | E41: FRECUENCIA DE MEDICIÓN | G41: anual | M41: MÉTODO DE CALCULO | Q41: Numero de acciones
A43: TIPO DE INDICADOR | C43: Estratégico | E43: TIPO DE FÓRMULA | G43: Otras | M43: COMPORTAMIENTO DEL INDICADOR HACIA LA META | Q43: Regular
C45: LINEA BASE | O45: META DEL INDICADOR
C46: 9 | E46: 2024 | O46: 42
C47: VALOR | E47: AÑO
A49: PROGRAMADO
A50: VARIABLES | C50: NOMBRE | E50: UNIDAD DE MEDIDA | F50: CALENDARIO - PROGRAMADO | V50: TOTAL | W50: META PROGRAMADA EN EL AÑO
F51: PROGRAMADO | I51: ENE | J51: FEB | K51: MAR | L51: ABR | M51: MAY | N51: JUN | O51: JUL | P51: AGO | Q51: SEP | R51: OCT | S51: NOV | T51: DIC
A52: VARIABLE 1 | C52: Número de acciones que se llevan a cabo de infraestrucutra básica | E52: acciones | F52: PROGRAMADO VARIABLE 1 | I52: 1 | J52: 1 | K52: 8 | L52: 1 | M52: 1 | N52: 7 | O52: 1 | P52: 2 | Q52: 8 | R52: 2 | S52: 2 | T52: 8 | V52: =IF(SUM(I52:T52)=0,"",SUM(I52:T52)) -> 42 | W52: =IF($G$43="porcentaje",FIXED(V52/V53*100,2)&"%",IF($G$43="Promedio",V52/V53,IF($G$43="variación porcentual",FIXED(((V52/V53)-1)*100,2)&"%",IF($G$43="OTRAS","CAPTURAR EL RESULTADO DEL INDICADOR")))) -> CAPTURAR EL RESULTADO DEL INDICADOR
A53: VARIABLE 2 | C53: Total de acciones | E53: acciones | F53: PROGRAMADO VARIABLE 2 | I53: 1 | J53: 1 | K53: 8 | L53: 1 | M53: 1 | N53: 7 | O53: 1 | P53: 2 | Q53: 8 | R53: 2 | S53: 2 | T53: 8 | U53: =SUM(I53:T53) -> 42 | V53: =IF(SUM(I53:T53)=0,"",SUM(I53:T53)) -> 42
A54: REALIZADO
A55: VARIABLES | C55: NOMBRE | E55: UNIDAD DE MEDIDA | F55: CALENDARIO - PROGRAMADO | V55: TOTAL | W55: RESULTADO ALCANZADO EN EL AÑO
F56: REALIZADO | I56: ENE | J56: FEB | K56: MAR | L56: ABR | M56: MAY | N56: JUN | O56: JUL | P56: AGO | Q56: SEP | R56: OCT | S56: NOV | T56: DIC
A57: VARIABLE 1 | C57: =IF(C52=0,"",C52) -> Número de acciones que se llevan a cabo de infraestrucutra básica | E57: =IF(E52=0,"",E52) -> acciones | F57: REALIZADO VARIABLE 1 | V57: =IF(SUM(I57:T57)=0,"",SUM(I57:T57)) ->  | W57: =IF($G$43="porcentaje",FIXED(V57/V58*100,2)&"%",IF($G$43="Promedio",V57/V58,IF($G$43="variación porcentual",FIXED(((V57/V58)-1)*100,2)&"%",IF($G$43="OTRAS","CAPTURAR EL RESULTADO DEL INDICADOR")))) -> CAPTURAR EL RESULTADO DEL INDICADOR
A58: VARIABLE 2 | C58: =IF(C53=0,"",C53) -> Total de acciones | E58: =IF(E53=0,"",E53) -> acciones | F58: REALIZADO VARIABLE 2 | U58: =SUM(I58:T58) -> 0 | V58: =IF(SUM(I58:T58)=0,"",SUM(I58:T58)) -> 
A60: CUMPLIMIENTO FINAL | W60: =IF(ISERROR(W57/W52)=TRUE,"",(W57/W52)) -> 
A62: Explicaciones y causas de las variaciones al cumplimiento de la programación, ¿ Por qué no se cumplio o por que se supero considerablemente lo programado?
A64: PROPÓSITO
A66: RESUMEN NARRATIVO | C66: El Municipio de Chietla lleva a cabo acciones de infraestrucutra básica con igualdad de oportunidades y equidad de género
A68: Indicador
A70: NOMBRE | C70: Porcentaje de la población beneficiada con acciones de infraestructura básica con igualdad de oportunidades y equidad de género
A72: DIMENSIÓN A MEDIR | C72: Eficacia | E72: FRECUENCIA DE MEDICIÓN | G72: anual | M72: MÉTODO DE CALCULO | Q72: (v1/v2)*100
A74: TIPO DE INDICADOR | C74: Gestión | E74: TIPO DE FÓRMULA | G74: Porcentaje | M74: COMPORTAMIENTO DEL INDICADOR HACIA LA META | Q74: Regular
C76: LINEA BASE | O76: META DEL INDICADOR
C77: 27773 | E77: 2024 | O77: 19000.0
C78: VALOR | E78: AÑO
A80: PROGRAMADO
A81: VARIABLES | C81: NOMBRE | E81: UNIDAD DE MEDIDA | F81: CALENDARIO - PROGRAMADO | V81: TOTAL | W81: META PROGRAMADA EN EL AÑO
F82: PROGRAMADO | I82: ENE | J82: FEB | K82: MAR | L82: ABR | M82: MAY | N82: JUN | O82: JUL | P82: AGO | Q82: SEP | R82: OCT | S82: NOV | T82: DIC
A83: VARIABLE 1 | C83: Numero de personas beneficadas con acciones de infraestructura básica | E83: habitantes | F83: PROGRAMADO VARIABLE 1 | T83: 19000 | V83: =IF(SUM(I83:T83)=0,"",SUM(I83:T83)) -> 19000 | W83: =IF($G$74="porcentaje",FIXED(V83/V84*100,2)&"%",IF($G$74="Promedio",V83/V84,IF($G$74="variación porcentual",FIXED(((V83/V84)-1)*100,2)&"%",IF($G$74="OTRAS","CAPTURAR EL RESULTADO DEL INDICADOR")))) -> 51.31%
A84: VARIABLE 2 | C84: Total de población | E84: habitantes | F84: PROGRAMADO VARIABLE 2 | T84: 37030 | U84: =SUM(I84:T84) -> 37030 | V84: =IF(SUM(I84:T84)=0,"",SUM(I84:T84)) -> 37030
A85: REALIZADO
A86: VARIABLES | C86: NOMBRE | E86: UNIDAD DE MEDIDA | F86: CALENDARIO - PROGRAMADO | V86: TOTAL | W86: RESULTADO ALCANZADO EN EL AÑO
F87: REALIZADO | I87: ENE | J87: FEB | K87: MAR | L87: ABR | M87: MAY | N87: JUN | O87: JUL | P87: AGO | Q87: SEP | R87: OCT | S87: NOV | T87: DIC
A88: VARIABLE 1 | C88: =IF(C83=0,"",C83) -> Numero de personas beneficadas con acciones de infraestructura básica | E88: =IF(E83=0,"",E83) -> habitantes | F88: REALIZADO VARIABLE 1 | V88: =IF(SUM(I88:T88)=0,"",SUM(I88:T88)) ->  | W88: =IF($G$74="porcentaje",FIXED(V88/V89*100,2)&"%",IF($G$74="Promedio",V88/V89,IF($G$74="variación porcentual",FIXED(((V88/V89)-1)*100,2)&"%",IF($G$74="OTRAS","CAPTURAR EL RESULTADO DEL INDICADOR")))) -> 
A89: VARIABLE 2 | C89: =IF(C84=0,"",C84) -> Total de población | E89: =IF(E84=0,"",E84) -> habitantes | F89: REALIZADO VARIABLE 2 | U89: =SUM(I89:T89) -> 0 | V89: =IF(SUM(I89:T89)=0,"",SUM(I89:T89)) -> 
A91: CUMPLIMIENTO FINAL | W91: =IF(ISERROR(W88/W83)=TRUE,"",(W88/W83)) -> 
A93: Explicaciones y causas de las variaciones al cumplimiento de la programación, ¿ Por qué no se cumplio o por que se supero considerablemente lo programado?
A95: COMPONENTES
A97: COMPONENTE 1 RESUMEN NARRATIVO | C97: Acciones de rezago social con priorización de recursos FISM, con enfoque de género implementados
A99: Indicador
A101: NOMBRE | C101: Porcentaje de acciones de combate al rezago social con priorización de recursos FISM con enfoque de género
A103: DIMENSIÓN A MEDIR | C103: Eficacia | E103: FRECUENCIA DE MEDICIÓN | G103: semestral | M103: MÉTODO DE CALCULO | Q103: (v1/v2)*100
A105: TIPO DE INDICADOR | C105: Gestión | E105: TIPO DE FÓRMULA | G105: Porcentaje | M105: COMPORTAMIENTO DEL INDICADOR HACIA LA META | Q105: Regular
C107: LINEA BASE | O107: META DEL INDICADOR
C108: 20 | E108: 2024 | O108: 18.00
C109: VALOR | E109: AÑO
A111: PROGRAMADO
A112: VARIABLES | C112: NOMBRE | E112: UNIDAD DE MEDIDA | F112: CALENDARIO - PROGRAMADO | V112: TOTAL | W112: META PROGRAMADA EN EL AÑO
F113: PROGRAMADO | I113: ENE | J113: FEB | K113: MAR | L113: ABR | M113: MAY | N113: JUN | O113: JUL | P113: AGO | Q113: SEP | R113: OCT | S113: NOV | T113: DIC
A114: VARIABLE 1 | C114: Porcentaje de acciones de combate al rezago social con priorización de recursos FISM con enfoque de género | E114: acciones | F114: PROGRAMADO VARIABLE 1 | K114: 9.53 | N114: 7.15 | P114: 2.39 | Q114: 9.53 | R114: 2.39 | S114: 2.39 | T114: 9.52 | V114: =IF(SUM(I114:T114)=0,"",SUM(I114:T114)) -> 43 | W114: =IF($G$105="porcentaje",FIXED(V114/V115*100,2)&"%",IF($G$105="Promedio",V114/V115,IF($G$105="variación porcentual",FIXED(((V114/V115)-1)*100,2)&"%",IF($G$105="OTRAS","CAPTURAR EL RESULTADO DEL INDICADOR")))) -> 42.90%
A115: VARIABLE 2 | C115: Total de acciones de infraestruutra básica | E115: acciones | F115: PROGRAMADO VARIABLE 2 | I115: 2.39 | J115: 2.39 | K115: 19.04 | L115: 2.39 | M115: 2.39 | N115: 16.65 | O115: 2.39 | P115: 4.76 | Q115: 19.04 | R115: 4.76 | S115: 4.76 | T115: 19.04 | U115: =SUM(I115:T115) -> 100 | V115: =IF(SUM(I115:T115)=0,"",SUM(I115:T115)) -> 100
A116: REALIZADO
A117: VARIABLES | C117: NOMBRE | E117: UNIDAD DE MEDIDA | F117: CALENDARIO - PROGRAMADO | V117: TOTAL | W117: RESULTADO ALCANZADO EN EL AÑO
F118: REALIZADO | I118: ENE | J118: FEB | K118: MAR | L118: ABR | M118: MAY | N118: JUN | O118: JUL | P118: AGO | Q118: SEP | R118: OCT | S118: NOV | T118: DIC
A119: VARIABLE 1 | C119: =IF(C114=0,"",C114) -> Porcentaje de acciones de combate al rezago social con priorización de recursos FISM con enfoque de género | E119: =IF(E114=0,"",E114) -> acciones | F119: REALIZADO VARIABLE 1 | V119: =IF(SUM(I119:T119)=0,"",SUM(I119:T119)) ->  | W119: =IF($G$105="porcentaje",FIXED(V119/V120*100,2)&"%",IF($G$105="Promedio",V119/V120,IF($G$105="variación porcentual",FIXED(((V119/V120)-1)*100,2)&"%",IF($G$105="OTRAS","CAPTURAR EL RESULTADO DEL INDICADOR")))) -> 
A120: VARIABLE 2 | C120: =IF(C115=0,"",C115) -> Total de acciones de infraestruutra básica | E120: =IF(E115=0,"",E115) -> acciones | F120: REALIZADO VARIABLE 2 | U120: =SUM(I120:T120) -> 0 | V120: =IF(SUM(I120:T120)=0,"",SUM(I120:T120)) -> 
A122: CUMPLIMIENTO FINAL | W122: =IF(ISERROR(W119/W114)=TRUE,"",(W119/W114)) -> 
A124: Explicaciones y causas de las variaciones al cumplimiento de la programación, ¿ Por qué no se cumplio o por que se supero considerablemente lo programado?
A126: COMPONENTE 2 RESUMEN NARRATIVO | C126: Porcentaje de acciones de fortalecimiento municipal con priorización de recursos FORTAMUN, con enfoque de géenero
A128: Indicador
A130: NOMBRE | C130: Porcentaje de acciones de fortalecimiento municipal con priorización de recursos FORTAMUN, con enfoque de géenero
A132: DIMENSIÓN A MEDIR | C132: Eficacia | E132: FRECUENCIA DE MEDICIÓN | G132: trmestral | M132: MÉTODO DE CALCULO | Q132: (v1/v2)*100
A134: TIPO DE INDICADOR | C134: Gestión | E134: TIPO DE FÓRMULA | G134: Porcentaje | M134: COMPORTAMIENTO DEL INDICADOR HACIA LA META | Q134: Regular
C136: LINEA BASE | O136: META DEL INDICADOR
C137: 32 | E137: 2024 | O137: 24
C138: VALOR | E138: AÑO
A140: PROGRAMADO
A141: VARIABLES | C141: NOMBRE | E141: UNIDAD DE MEDIDA | F141: CALENDARIO - PROGRAMADO | V141: TOTAL | W141: META PROGRAMADA EN EL AÑO
F142: PROGRAMADO | I142: ENE | J142: FEB | K142: MAR | L142: ABR | M142: MAY | N142: JUN | O142: JUL | P142: AGO | Q142: SEP | R142: OCT | S142: NOV | T142: DIC
A143: VARIABLE 1 | C143: Porcentaje de acciones de combate al rezago social con priorización de recursos FORTAMUN con enfoque de género | E143: acciones | F143: PROGRAMADO VARIABLE 1 | I143: 1 | J143: 1 | K143: 4 | L143: 1 | M143: 1 | N143: 4 | O143: 1 | P143: 1 | Q143: 4 | R143: 1 | S143: 1 | T143: 4 | V143: =IF(SUM(I143:T143)=0,"",SUM(I143:T143)) -> 24 | W143: =IF($G$134="porcentaje",FIXED(V143/V144*100,2)&"%",IF($G$134="Promedio",V143/V144,IF($G$134="variación porcentual",FIXED(((V143/V144)-1)*100,2)&"%",IF($G$134="OTRAS","CAPTURAR EL RESULTADO DEL INDICADOR")))) -> 100.00%
A144: VARIABLE 2 | C144: Total de acciones de infraestructura | E144: acciones | F144: PROGRAMADO VARIABLE 2 | I144: 1 | J144: 1 | K144: 4 | L144: 1 | M144: 1 | N144: 4 | O144: 1 | P144: 1 | Q144: 4 | R144: 1 | S144: 1 | T144: 4 | U144: =SUM(I144:T144) -> 24 | V144: =IF(SUM(I144:T144)=0,"",SUM(I144:T144)) -> 24
A145: REALIZADO
A146: VARIABLES | C146: NOMBRE | E146: UNIDAD DE MEDIDA | F146: CALENDARIO - PROGRAMADO | V146: TOTAL | W146: RESULTADO ALCANZADO EN EL AÑO
F147: REALIZADO | I147: ENE | J147: FEB | K147: MAR | L147: ABR | M147: MAY | N147: JUN | O147: JUL | P147: AGO | Q147: SEP | R147: OCT | S147: NOV | T147: DIC
A148: VARIABLE 1 | C148: =IF(C143=0,"",C143) -> Porcentaje de acciones de combate al rezago social con priorización de recursos FORTAMUN con enfoque de género | E148: =IF(E143=0,"",E143) -> acciones | F148: REALIZADO VARIABLE 1 | V148: =IF(SUM(I148:T148)=0,"",SUM(I148:T148)) ->  | W148: =IF($G$134="porcentaje",FIXED(V148/V149*100,2)&"%",IF($G$134="Promedio",V148/V149,IF($G$134="variación porcentual",FIXED(((V148/V149)-1)*100,2)&"%",IF($G$134="OTRAS","CAPTURAR EL RESULTADO DEL INDICADOR")))) -> 
A149: VARIABLE 2 | C149: =IF(C144=0,"",C144) -> Total de acciones de infraestructura | E149: =IF(E144=0,"",E144) -> acciones | F149: REALIZADO VARIABLE 2 | U149: =SUM(I149:T149) -> 0 | V149: =IF(SUM(I149:T149)=0,"",SUM(I149:T149)) -> 
A151: CUMPLIMIENTO FINAL | W151: =IF(ISERROR(W148/W143)=TRUE,"",(W148/W143)) -> 
A153: Explicaciones y causas de las variaciones al cumplimiento de la programación, ¿ Por qué no se cumplio o por que se supero considerablemente lo programado?
A155: COMPONENTE 3 RESUMEN NARRATIVO
A157: Indicador
A159: NOMBRE
A161: DIMENSIÓN A MEDIR | E161: FRECUENCIA DE MEDICIÓN | M161: MÉTODO DE CALCULO
A163: TIPO DE INDICADOR | E163: TIPO DE FÓRMULA | M163: COMPORTAMIENTO DEL INDICADOR HACIA LA META
C165: LINEA BASE | O165: META DEL INDICADOR
C167: VALOR | E167: AÑO
A169: PROGRAMADO
A170: VARIABLES | C170: NOMBRE | E170: UNIDAD DE MEDIDA | F170: CALENDARIO - PROGRAMADO | V170: TOTAL | W170: META PROGRAMADA EN EL AÑO
F171: PROGRAMADO | I171: ENE | J171: FEB | K171: MAR | L171: ABR | M171: MAY | N171: JUN | O171: JUL | P171: AGO | Q171: SEP | R171: OCT | S171: NOV | T171: DIC
A172: VARIABLE 1 | F172: PROGRAMADO VARIABLE 1 | V172: =IF(SUM(I172:T172)=0,"",SUM(I172:T172)) ->  | W172: =IF($G$163="porcentaje",FIXED(V172/V173*100,2)&"%",IF($G$163="Promedio",V172/V173,IF($G$163="variación porcentual",FIXED(((V172/V173)-1)*100,2)&"%",IF($G$163="OTRAS","CAPTURAR EL RESULTADO DEL INDICADOR")))) -> FALSE
A173: VARIABLE 2 | F173: PROGRAMADO VARIABLE 2 | U173: =SUM(I173:T173) -> 0 | V173: =IF(SUM(I173:T173)=0,"",SUM(I173:T173)) -> 
A174: REALIZADO
A175: VARIABLES | C175: NOMBRE | E175: UNIDAD DE MEDIDA | F175: CALENDARIO - PROGRAMADO | V175: TOTAL | W175: RESULTADO ALCANZADO EN EL AÑO
F176: REALIZADO | I176: ENE | J176: FEB | K176: MAR | L176: ABR | M176: MAY | N176: JUN | O176: JUL | P176: AGO | Q176: SEP | R176: OCT | S176: NOV | T176: DIC
A177: VARIABLE 1 | C177: =IF(C172=0,"",C172) ->  | E177: =IF(E172=0,"",E172) ->  | F177: REALIZADO VARIABLE 1 | V177: =IF(SUM(I177:T177)=0,"",SUM(I177:T177)) ->  | W177: =IF($G$163="porcentaje",FIXED(V177/V178*100,2)&"%",IF($G$163="Promedio",V177/V178,IF($G$163="variación porcentual",FIXED(((V177/V178)-1)*100,2)&"%",IF($G$163="OTRAS","CAPTURAR EL RESULTADO DEL INDICADOR")))) -> FALSE
A178: VARIABLE 2 | C178: =IF(C173=0,"",C173) ->  | E178: =IF(E173=0,"",E173) ->  | F178: REALIZADO VARIABLE 2 | U178: =SUM(I178:T178) -> 0 | V178: =IF(SUM(I178:T178)=0,"",SUM(I178:T178)) -> 
A180: CUMPLIMIENTO FINAL | W180: =IF(ISERROR(W177/W172)=TRUE,"",(W177/W172)) -> 
A182: Explicaciones y causas de las variaciones al cumplimiento de la programación, ¿ Por qué no se cumplio o por que se supero considerablemente lo programado?
A184: COMPONENTE 4 RESUMEN NARRATIVO
A186: Indicador
A188: NOMBRE
A190: DIMENSIÓN A MEDIR | E190: FRECUENCIA DE MEDICIÓN | M190: MÉTODO DE CALCULO
A192: TIPO DE INDICADOR | E192: TIPO DE FÓRMULA | M192: COMPORTAMIENTO DEL INDICADOR HACIA LA META
C194: LINEA BASE | O194: META DEL INDICADOR
C196: VALOR | E196: AÑO
A198: PROGRAMADO
A199: VARIABLES | C199: NOMBRE | E199: UNIDAD DE MEDIDA | F199: CALENDARIO - PROGRAMADO | V199: TOTAL | W199: META PROGRAMADA EN EL AÑO
F200: PROGRAMADO | I200: ENE | J200: FEB | K200: MAR | L200: ABR | M200: MAY | N200: JUN | O200: JUL | P200: AGO | Q200: SEP | R200: OCT | S200: NOV | T200: DIC
A201: VARIABLE 1 | F201: PROGRAMADO VARIABLE 1 | V201: =IF(SUM(I201:T201)=0,"",SUM(I201:T201)) ->  | W201: =IF($G$192="porcentaje",FIXED(V201/V202*100,2)&"%",IF($G$192="Promedio",V201/V202,IF($G$192="variación porcentual",FIXED(((V201/V202)-1)*100,2)&"%",IF($G$192="OTRAS","CAPTURAR EL RESULTADO DEL INDICADOR")))) -> FALSE
A202: VARIABLE 2 | F202: PROGRAMADO VARIABLE 2 | U202: =SUM(I202:T202) -> 0 | V202: =IF(SUM(I202:T202)=0,"",SUM(I202:T202)) -> 
A203: REALIZADO
A204: VARIABLES | C204: NOMBRE | E204: UNIDAD DE MEDIDA | F204: CALENDARIO - PROGRAMADO | V204: TOTAL | W204: PROCENTAJE PROGRAMADO EN EL AÑO
F205: REALIZADO | I205: ENE | J205: FEB | K205: MAR | L205: ABR | M205: MAY | N205: JUN | O205: JUL | P205: AGO | Q205: SEP | R205: OCT | S205: NOV | T205: DIC
A206: VARIABLE 1 | C206: =IF(C201=0,"",C201) ->  | E206: =IF(E201=0,"",E201) ->  | F206: REALIZADO VARIABLE 1 | V206: =IF(SUM(I206:T206)=0,"",SUM(I206:T206)) ->  | W206: =IF($G$192="porcentaje",FIXED(V206/V207*100,2)&"%",IF($G$192="Promedio",V206/V207,IF($G$192="variación porcentual",FIXED(((V206/V207)-1)*100,2)&"%",IF($G$192="OTRAS","CAPTURAR EL RESULTADO DEL INDICADOR")))) -> FALSE
A207: VARIABLE 2 | C207: =IF(C202=0,"",C202) ->  | E207: =IF(E202=0,"",E202) ->  | F207: REALIZADO VARIABLE 2 | U207: =SUM(I207:T207) -> 0 | V207: =IF(SUM(I207:T207)=0,"",SUM(I207:T207)) -> 
A209: CUMPLIMIENTO FINAL | W209: =IF(ISERROR(W206/W201)=TRUE,"",(W206/W201)) -> 
A211: Explicaciones y causas de las variaciones al cumplimiento de la programación, ¿ Por qué no se cumplio o por que se supero considerablemente lo programado?
A213: COMPONENTE 5 RESUMEN NARRATIVO
A215: Indicador
A217: NOMBRE
A219: DIMENSIÓN A MEDIR | E219: FRECUENCIA DE MEDICIÓN | M219: MÉTODO DE CALCULO
A221: TIPO DE INDICADOR | E221: TIPO DE FÓRMULA | M221: COMPORTAMIENTO DEL INDICADOR HACIA LA META
C223: LINEA BASE | O223: META DEL INDICADOR
C225: VALOR | E225: AÑO
A227: PROGRAMADO
A228: VARIABLES | C228: NOMBRE | E228: UNIDAD DE MEDIDA | F228: CALENDARIO - PROGRAMADO | V228: TOTAL | W228: META PROGRAMADA EN EL AÑO
F229: PROGRAMADO | I229: ENE | J229: FEB | K229: MAR | L229: ABR | M229: MAY | N229: JUN | O229: JUL | P229: AGO | Q229: SEP | R229: OCT | S229: NOV | T229: DIC
A230: VARIABLE 1 | F230: PROGRAMADO VARIABLE 1 | V230: =IF(SUM(I230:T230)=0,"",SUM(I230:T230)) ->  | W230: =IF($G$221="porcentaje",FIXED(V230/V231*100,2)&"%",IF($G$221="Promedio",V230/V231,IF($G$221="variación porcentual",FIXED(((V230/V231)-1)*100,2)&"%",IF($G$221="OTRAS","CAPTURAR EL RESULTADO DEL INDICADOR")))) -> FALSE
A231: VARIABLE 2 | F231: PROGRAMADO VARIABLE 2 | U231: =SUM(I231:T231) -> 0 | V231: =IF(SUM(I231:T231)=0,"",SUM(I231:T231)) -> 
A232: REALIZADO
A233: VARIABLES | C233: NOMBRE | E233: UNIDAD DE MEDIDA | F233: CALENDARIO - PROGRAMADO | V233: TOTAL | W233: PROCENTAJE PROGRAMADO EN EL AÑO
F234: REALIZADO | I234: ENE | J234: FEB | K234: MAR | L234: ABR | M234: MAY | N234: JUN | O234: JUL | P234: AGO | Q234: SEP | R234: OCT | S234: NOV | T234: DIC
A235: VARIABLE 1 | C235: =IF(C230=0,"",C230) ->  | E235: =IF(E230=0,"",E230) ->  | F235: REALIZADO VARIABLE 1 | V235: =IF(SUM(I235:T235)=0,"",SUM(I235:T235)) ->  | W235: =IF($G$221="porcentaje",FIXED(V235/V236*100,2)&"%",IF($G$221="Promedio",V235/V236,IF($G$221="variación porcentual",FIXED(((V235/V236)-1)*100,2)&"%",IF($G$221="OTRAS","CAPTURAR EL RESULTADO DEL INDICADOR")))) -> FALSE
A236: VARIABLE 2 | C236: =IF(C231=0,"",C231) ->  | E236: =IF(E231=0,"",E231) ->  | F236: REALIZADO VARIABLE 2 | U236: =SUM(I236:T236) -> 0 | V236: =IF(SUM(I236:T236)=0,"",SUM(I236:T236)) -> 
A238: CUMPLIMIENTO FINAL | W238: =IF(ISERROR(W235/W230)=TRUE,"",(W235/W230)) -> 
A240: Explicaciones y causas de las variaciones al cumplimiento de la programación, ¿ Por qué no se cumplio o por que se supero considerablemente lo programado?
A242: COMPONENTE 6 RESUMEN NARRATIVO
A244: Indicador
A246: NOMBRE
A248: DIMENSIÓN A MEDIR | E248: FRECUENCIA DE MEDICIÓN | M248: MÉTODO DE CALCULO
A250: TIPO DE INDICADOR | E250: TIPO DE FÓRMULA | M250: COMPORTAMIENTO DEL INDICADOR HACIA LA META
C252: LINEA BASE | O252: META DEL INDICADOR
C254: VALOR | E254: AÑO
A256: PROGRAMADO
A257: VARIABLES | C257: NOMBRE | E257: UNIDAD DE MEDIDA | F257: CALENDARIO - PROGRAMADO | V257: TOTAL | W257: META PROGRAMADA EN EL AÑO
F258: PROGRAMADO | I258: ENE | J258: FEB | K258: MAR | L258: ABR | M258: MAY | N258: JUN | O258: JUL | P258: AGO | Q258: SEP | R258: OCT | S258: NOV | T258: DIC
A259: VARIABLE 1 | F259: PROGRAMADO VARIABLE 1 | V259: =IF(SUM(I259:T259)=0,"",SUM(I259:T259)) ->  | W259: =IF($G$221="porcentaje",FIXED(V259/V260*100,2)&"%",IF($G$221="Promedio",V259/V260,IF($G$221="variación porcentual",FIXED(((V259/V260)-1)*100,2)&"%",IF($G$221="OTRAS","CAPTURAR EL RESULTADO DEL INDICADOR")))) -> FALSE
A260: VARIABLE 2 | F260: PROGRAMADO VARIABLE 2 | U260: =SUM(I260:T260) -> 0 | V260: =IF(SUM(I260:T260)=0,"",SUM(I260:T260)) -> 
A261: REALIZADO
A262: VARIABLES | C262: NOMBRE | E262: UNIDAD DE MEDIDA | F262: CALENDARIO - PROGRAMADO | V262: TOTAL | W262: PROCENTAJE PROGRAMADO EN EL AÑO
F263: REALIZADO | I263: ENE | J263: FEB | K263: MAR | L263: ABR | M263: MAY | N263: JUN | O263: JUL | P263: AGO | Q263: SEP | R263: OCT | S263: NOV | T263: DIC
A264: VARIABLE 1 | C264: =IF(C259=0,"",C259) ->  | E264: =IF(E259=0,"",E259) ->  | F264: REALIZADO VARIABLE 1 | V264: =IF(SUM(I264:T264)=0,"",SUM(I264:T264)) ->  | W264: =IF($G$221="porcentaje",FIXED(V264/V265*100,2)&"%",IF($G$221="Promedio",V264/V265,IF($G$221="variación porcentual",FIXED(((V264/V265)-1)*100,2)&"%",IF($G$221="OTRAS","CAPTURAR EL RESULTADO DEL INDICADOR")))) -> FALSE
A265: VARIABLE 2 | C265: =IF(C260=0,"",C260) ->  | E265: =IF(E260=0,"",E260) ->  | F265: REALIZADO VARIABLE 2 | U265: =SUM(I265:T265) -> 0 | V265: =IF(SUM(I265:T265)=0,"",SUM(I265:T265)) -> 
A267: CUMPLIMIENTO FINAL | W267: =IF(ISERROR(W264/W259)=TRUE,"",(W264/W259)) -> 
A269: Explicaciones y causas de las variaciones al cumplimiento de la programación, ¿ Por qué no se cumplio o por que se supero considerablemente lo programado?
A272: ACTIVIDADES
A274: COMPONENTE | B274: DESCRIPCIÓN | E274: UNIDAD DE MEDIDA | F274: CALENDARIO | V274: TOTAL | W274: PORCENTAJE DE CUMPLIMIENTO DE LA ACTIVIDAD
F275: PROGRAMADO / REALIZADO | I275: ENE | J275: FEB | K275: MAR | L275: ABR | M275: MAY | N275: JUN | O275: JUL | P275: AGO | Q275: SEP | R275: OCT | S275: NOV | T275: DIC
A276: C1 | B276: 1 | C276: Llevar a cabo el plan anual de obra pública | E276: plan | F276: PROGRAMADO | K276: 1 | V276: =SUM(I276:T276) -> 1 | W276: =IF(V276=0,"-",V277/V276) -> 0%
F277: REALIZADO | V277: =SUM(I277:T277) -> 0
B278: 2 | C278: Dar seguimiento trimestral a la priorización de obra de infraestructura pública | E278: actividad | F278: PROGRAMADO | K278: 1 | N278: 1 | Q278: 1 | T278: 1 | V278: =SUM(I278:T278) -> 4 | W278: =IF(V278=0,"-",V279/V278) -> 0%
F279: REALIZADO | V279: =SUM(I279:T279) -> 0
B280: 3 | C280: Dar seguimiento trimestral a la priorización de obras de agua potable, drenaje y alcantarillado | E280: actividad | F280: PROGRAMADO | K280: 1 | N280: 1 | Q280: 1 | T280: 1 | V280: =SUM(I280:T280) -> 4 | W280: =IF(V280=0,"-",V281/V280) -> 0%
F281: REALIZADO | V281: 0
B282: 4 | C282: Dar seguimiento trimestral a la priorización de obra de alumbrado y electrificación | E282: actividad | F282: PROGRAMADO | K282: 1 | N282: 1 | Q282: 1 | T282: 1 | V282: 4 | W282: =IF(V282=0,"-",V283/V282) -> 0%
F283: REALIZADO | V283: 0
B284: 5 | C284: Dar seguimiento al cierre de las obras realizadas | E284: actividad | F284: PROGRAMADO | P284: 1 | Q284: 1 | R284: 1 | S284: 1 | T284: 1 | V284: 5 | W284: =IF(V284=0,"-",V285/V284) -> 0%
F285: REALIZADO | V285: 0
A286: C2 | B286: 1 | C286: Llevar a cabo 12 seguimientos del pago de obligaciones financieras | E286: pago | F286: PROGRAMADO | I286: 1 | J286: 1 | K286: 1 | L286: 1 | M286: 1 | N286: 1 | O286: 1 | P286: 1 | Q286: 1 | R286: 1 | S286: 1 | T286: 1 | V286: 12 | W286: =IF(V286=0,"-",V287/V286) -> 0%
F287: REALIZADO | V287: 0
... 215 more rows

Sheet Programa 5
C2: CLAVE: | F2: 11/04
C3: ENTIDAD FISCALIZADA: | F3: =IF(ISERROR(VLOOKUP(F2,general!$B:$C,2,FALSE))=TRUE,"",(VLOOKUP(F2,general!$B:$C,2,FALSE))) -> Chietla
D4: AÑO: | F4: 2025
A6: PROGRAMA PRESUPUESTARIO
A8: Nombre del Programa | D8: Bienestar social
A9: Unidad(es) Responsable(s) | D9: 07 DIF Municipal - 15 Salud
A10: Costo Total del Programa
A11: Fuente de Financiamiento | D11: RECURSOS FISCALES | G11: PARTICIPACIONES | L11: FISM | P11: FORTAMUN | T11: OTROS
A12: Monto Específco | D12: $1,297,979.27
A14: CLASIFICACIÓN FUNCIONAL DEL GASTO
A15: CLASIFICACIÓN | D15: CONCEPTO
A16: Finalidad | D16: 2. Desarrollo social
A17: Función | D17: 2.6. Protección social
A18: Subfunción | D18: 2.6.8 Otros Grupos Vulnerables
A19: Sub/Subfunción | D19: 2.6.8.1 Salud y Asistencia Pública
A21: GASTO POR CATEGORÍA PROGRAMÁTICA
A22: CATEGORÍA | D22: Desempeño de las Funciones
A23: PROGRAMA | D23: E. Prestación de Servicios Publicos
A25: DATOS DE VINCULACIÓN AL PLAN ESTATAL DE DESARROLLO
A26: Eje 4 Desarrollo Integral, Educación y Diversidad Cultural
A27: DATOS DE VINCULACIÓN AL PLAN MUNICIPAL DE DESARROLLO (EJES, ESTRATEGIAS U OBJETIVOS GENERALES)
A28: Eje 3 Gobernanza Muicipal, Eje 4 Identidad Municipall. Oportunidades para todos
A29: NIVEL INMEDIATO INFERIOR (OBJETIVO O LíNEA ESTRATÉGICA)
A30: Eje 3. Objetivo 2 Mejorar el bienestar social y el desarrollo integral de los habitantes del municipio de Chietla. Eje 4. Objetivo 1 Reconoer e integrar la salud como herramienta para mejorar el estilo de vida de las personas que habitan el municipio de Chietla
A31: DATOS DE VINCULACIÓN A OBJETIVOS DE DESARROLLO SOSTENIBLE
A32: 5. Lograr la igualdad entre los géneros y el empoderamiento de todas las mujeres y niñas
A33: FIN
A35: RESUMEN NARRATIVO | C35: Contribuir a fortalecer la inclusión social dentro del Municipio de Chietla a través de acciones que permitan el desarrollo integral de la sociedad
A37: Indicador
A39: NOMBRE | C39: Porcentaje de acciones de inclusión social dentro del municipio con enfoque de género
A41: DIMENSIÓN A MEDIR | C41: Eficacia | E41: FRECUENCIA DE MEDICIÓN | G41: anual | M41: MÉTODO DE CALCULO | Q41: (v1/v2)*100
A43: TIPO DE INDICADOR | C43: Estratégico | E43: TIPO DE FÓRMULA | G43: Porcentaje | M43: COMPORTAMIENTO DEL INDICADOR HACIA LA META | Q43: Regular
C45: LINEA BASE | O45: META DEL INDICADOR
C46: 96 | E46: 2024 | O46: 110
C47: VALOR | E47: AÑO
A49: PROGRAMADO
A50: VARIABLES | C50: NOMBRE | E50: UNIDAD DE MEDIDA | F50: CALENDARIO - PROGRAMADO | V50: TOTAL | W50: META PROGRAMADA EN EL AÑO
F51: PROGRAMADO | I51: ENE | J51: FEB | K51: MAR | L51: ABR | M51: MAY | N51: JUN | O51: JUL | P51: AGO | Q51: SEP | R51: OCT | S51: NOV | T51: DIC
A52: VARIABLE 1 | C52: Número de acciones de inclusión social con enfoque de género | E52: acciones | F52: PROGRAMADO VARIABLE 1 | I52: 9 | J52: 9 | K52: 9 | L52: 10 | M52: 9 | N52: 9 | O52: 9 | P52: 9 | Q52: 10 | R52: 9 | S52: 9 | T52: 9 | V52: =IF(SUM(I52:T52)=0,"",SUM(I52:T52)) -> 110 | W52: =IF($G$43="porcentaje",FIXED(V52/V53*100,2)&"%",IF($G$43="Promedio",V52/V53,IF($G$43="variación porcentual",FIXED(((V52/V53)-1)*100,2)&"%",IF($G$43="OTRAS","CAPTURAR EL RESULTADO DEL INDICADOR")))) -> 100.00%
A53: VARIABLE 2 | C53: Total de acciones de inclusión social | E53: acciones | F53: PROGRAMADO VARIABLE 2 | I53: 9 | J53: 9 | K53: 9 | L53: 10 | M53: 9 | N53: 9 | O53: 9 | P53: 9 | Q53: 10 | R53: 9 | S53: 9 | T53: 9 | U53: =SUM(I53:T53) -> 110 | V53: =IF(SUM(I53:T53)=0,"",SUM(I53:T53)) -> 110
A54: REALIZADO
A55: VARIABLES | C55: NOMBRE | E55: UNIDAD DE MEDIDA | F55: CALENDARIO - PROGRAMADO | V55: TOTAL | W55: RESULTADO ALCANZADO EN EL AÑO
F56: REALIZADO | I56: ENE | J56: FEB | K56: MAR | L56: ABR | M56: MAY | N56: JUN | O56: JUL | P56: AGO | Q56: SEP | R56: OCT | S56: NOV | T56: DIC
A57: VARIABLE 1 | C57: =IF(C52=0,"",C52) -> Número de acciones de inclusión social con enfoque de género | E57: =IF(E52=0,"",E52) -> acciones | F57: REALIZADO VARIABLE 1 | V57: =IF(SUM(I57:T57)=0,"",SUM(I57:T57)) ->  | W57: =IF($G$43="porcentaje",FIXED(V57/V58*100,2)&"%",IF($G$43="Promedio",V57/V58,IF($G$43="variación porcentual",FIXED(((V57/V58)-1)*100,2)&"%",IF($G$43="OTRAS","CAPTURAR EL RESULTADO DEL INDICADOR")))) -> 
A58: VARIABLE 2 | C58: =IF(C53=0,"",C53) -> Total de acciones de inclusión social | E58: =IF(E53=0,"",E53) -> acciones | F58: REALIZADO VARIABLE 2 | U58: =SUM(I58:T58) -> 0 | V58: =IF(SUM(I58:T58)=0,"",SUM(I58:T58)) -> 
A60: CUMPLIMIENTO FINAL | W60: =IF(ISERROR(W57/W52)=TRUE,"",(W57/W52)) -> 
A62: Explicaciones y causas de las variaciones al cumplimiento de la programación, ¿ Por qué no se cumplio o por que se supero considerablemente lo programado?
A64: PROPÓSITO
A66: RESUMEN NARRATIVO | C66: El Municipio de Chietla promueve acciones de inclusión social en las zonas con mayor rezago con enfoque de género
A68: Indicador
A70: NOMBRE | C70: Porcentaje de población beneficiada con acciones que cuentan con mayor rezago social, con equidad de género
A72: DIMENSIÓN A MEDIR | C72: Eficacia | E72: FRECUENCIA DE MEDICIÓN | G72: anual | M72: MÉTODO DE CALCULO | Q72: (v1/v2)*100
A74: TIPO DE INDICADOR | C74: Estratégico | E74: TIPO DE FÓRMULA | G74: Porcentaje | M74: COMPORTAMIENTO DEL INDICADOR HACIA LA META | Q74: Regular
C76: LINEA BASE | O76: META DEL INDICADOR
C77: 37030 | E77: 2020 | O77: 11270.0
C78: VALOR | E78: AÑO
A80: PROGRAMADO
A81: VARIABLES | C81: NOMBRE | E81: UNIDAD DE MEDIDA | F81: CALENDARIO - PROGRAMADO | V81: TOTAL | W81: META PROGRAMADA EN EL AÑO
F82: PROGRAMADO | I82: ENE | J82: FEB | K82: MAR | L82: ABR | M82: MAY | N82: JUN | O82: JUL | P82: AGO | Q82: SEP | R82: OCT | S82: NOV | T82: DIC
A83: VARIABLE 1 | C83: Número de personas beneficiadas con acciones de inclusión social | E83: habitantes | F83: PROGRAMADO VARIABLE 1 | T83: 11270 | V83: =IF(SUM(I83:T83)=0,"",SUM(I83:T83)) -> 11270 | W83: =IF($G$74="porcentaje",FIXED(V83/V84*100,2)&"%",IF($G$74="Promedio",V83/V84,IF($G$74="variación porcentual",FIXED(((V83/V84)-1)*100,2)&"%",IF($G$74="OTRAS","CAPTURAR EL RESULTADO DEL INDICADOR")))) -> 30.40%
A84: VARIABLE 2 | C84: Total de población | E84: habitantes | F84: PROGRAMADO VARIABLE 2 | T84: 37070 | U84: =SUM(I84:T84) -> 37070 | V84: =IF(SUM(I84:T84)=0,"",SUM(I84:T84)) -> 37070
A85: REALIZADO
A86: VARIABLES | C86: NOMBRE | E86: UNIDAD DE MEDIDA | F86: CALENDARIO - PROGRAMADO | V86: TOTAL | W86: RESULTADO ALCANZADO EN EL AÑO
F87: REALIZADO | I87: ENE | J87: FEB | K87: MAR | L87: ABR | M87: MAY | N87: JUN | O87: JUL | P87: AGO | Q87: SEP | R87: OCT | S87: NOV | T87: DIC
A88: VARIABLE 1 | C88: =IF(C83=0,"",C83) -> Número de personas beneficiadas con acciones de inclusión social | E88: =IF(E83=0,"",E83) -> habitantes | F88: REALIZADO VARIABLE 1 | V88: =IF(SUM(I88:T88)=0,"",SUM(I88:T88)) ->  | W88: =IF($G$74="porcentaje",FIXED(V88/V89*100,2)&"%",IF($G$74="Promedio",V88/V89,IF($G$74="variación porcentual",FIXED(((V88/V89)-1)*100,2)&"%",IF($G$74="OTRAS","CAPTURAR EL RESULTADO DEL INDICADOR")))) -> 
A89: VARIABLE 2 | C89: =IF(C84=0,"",C84) -> Total de población | E89: =IF(E84=0,"",E84) -> habitantes | F89: REALIZADO VARIABLE 2 | U89: =SUM(I89:T89) -> 0 | V89: =IF(SUM(I89:T89)=0,"",SUM(I89:T89)) -> 
A91: CUMPLIMIENTO FINAL | W91: =IF(ISERROR(W88/W83)=TRUE,"",(W88/W83)) -> 
A93: Explicaciones y causas de las variaciones al cumplimiento de la programación, ¿ Por qué no se cumplio o por que se supero considerablemente lo programado?
A95: COMPONENTES
A97: COMPONENTE 1 RESUMEN NARRATIVO | C97: Acciones encaminadas a la preservación de la salud en la población realizadas
A99: Indicador
A101: NOMBRE | C101: Porcentaje de acciones de salud realizadas
A103: DIMENSIÓN A MEDIR | C103: Eficiencia | E103: FRECUENCIA DE MEDICIÓN | G103: Trimestral | M103: MÉTODO DE CALCULO | Q103: (v1/v2)*100
A105: TIPO DE INDICADOR | C105: Gestión | E105: TIPO DE FÓRMULA | G105: Porcentaje | M105: COMPORTAMIENTO DEL INDICADOR HACIA LA META | Q105: Regular
C107: LINEA BASE | O107: META DEL INDICADOR
C108: 48 | E108: 2024 | O108: 48.00
C109: VALOR | E109: AÑO
A111: PROGRAMADO
A112: VARIABLES | C112: NOMBRE | E112: UNIDAD DE MEDIDA | F112: CALENDARIO - PROGRAMADO | V112: TOTAL | W112: META PROGRAMADA EN EL AÑO
F113: PROGRAMADO | I113: ENE | J113: FEB | K113: MAR | L113: ABR | M113: MAY | N113: JUN | O113: JUL | P113: AGO | Q113: SEP | R113: OCT | S113: NOV | T113: DIC
A114: VARIABLE 1 | C114: Número de acciones en materia de salud realizadas | E114: acciones | F114: PROGRAMADO VARIABLE 1 | I114: 4 | J114: 4 | K114: 4 | L114: 4 | M114: 4 | N114: 4 | O114: 4 | P114: 4 | Q114: 4 | R114: 4 | S114: 4 | T114: 4 | V114: =IF(SUM(I114:T114)=0,"",SUM(I114:T114)) -> 48 | W114: =IF($G$105="porcentaje",FIXED(V114/V115*100,2)&"%",IF($G$105="Promedio",V114/V115,IF($G$105="variación porcentual",FIXED(((V114/V115)-1)*100,2)&"%",IF($G$105="OTRAS","CAPTURAR EL RESULTADO DEL INDICADOR")))) -> 43.64%
A115: VARIABLE 2 | C115: Total de acciones de inclusión social con enfoque de género realizadas | E115: acciones | F115: PROGRAMADO VARIABLE 2 | I115: 9 | J115: 9 | K115: 9 | L115: 10 | M115: 9 | N115: 9 | O115: 9 | P115: 9 | Q115: 10 | R115: 9 | S115: 9 | T115: 9 | U115: =SUM(I115:T115) -> 110 | V115: =IF(SUM(I115:T115)=0,"",SUM(I115:T115)) -> 110
A116: REALIZADO
A117: VARIABLES | C117: NOMBRE | E117: UNIDAD DE MEDIDA | F117: CALENDARIO - PROGRAMADO | V117: TOTAL | W117: RESULTADO ALCANZADO EN EL AÑO
F118: REALIZADO | I118: ENE | J118: FEB | K118: MAR | L118: ABR | M118: MAY | N118: JUN | O118: JUL | P118: AGO | Q118: SEP | R118: OCT | S118: NOV | T118: DIC
A119: VARIABLE 1 | C119: =IF(C114=0,"",C114) -> Número de acciones en materia de salud realizadas | E119: =IF(E114=0,"",E114) -> acciones | F119: REALIZADO VARIABLE 1 | V119: =IF(SUM(I119:T119)=0,"",SUM(I119:T119)) ->  | W119: =IF($G$105="porcentaje",FIXED(V119/V120*100,2)&"%",IF($G$105="Promedio",V119/V120,IF($G$105="variación porcentual",FIXED(((V119/V120)-1)*100,2)&"%",IF($G$105="OTRAS","CAPTURAR EL RESULTADO DEL INDICADOR")))) -> 
A120: VARIABLE 2 | C120: =IF(C115=0,"",C115) -> Total de acciones de inclusión social con enfoque de género realizadas | E120: =IF(E115=0,"",E115) -> acciones | F120: REALIZADO VARIABLE 2 | U120: =SUM(I120:T120) -> 0 | V120: =IF(SUM(I120:T120)=0,"",SUM(I120:T120)) -> 
A122: CUMPLIMIENTO FINAL | W122: =IF(ISERROR(W119/W114)=TRUE,"",(W119/W114)) -> 
A124: Explicaciones y causas de las variaciones al cumplimiento de la programación, ¿ Por qué no se cumplio o por que se supero considerablemente lo programado?
A126: COMPONENTE 2 RESUMEN NARRATIVO | C126: Acciones de atención a población vulnerable del municipio
A128: Indicador
A130: NOMBRE | C130: Porcentaje de acciones de atención a la población vulnerable
A132: DIMENSIÓN A MEDIR | C132: Eficacia | E132: FRECUENCIA DE MEDICIÓN | G132: trimestral | M132: MÉTODO DE CALCULO | Q132: (v1/v2)*100
A134: TIPO DE INDICADOR | C134: Gestión | E134: TIPO DE FÓRMULA | G134: Porcentaje | M134: COMPORTAMIENTO DEL INDICADOR HACIA LA META | Q134: Regular
C136: LINEA BASE | O136: META DEL INDICADOR
C137: 24 | E137: 2024 | O137: 26
C138: VALOR | E138: AÑO
A140: PROGRAMADO
A141: VARIABLES | C141: NOMBRE | E141: UNIDAD DE MEDIDA | F141: CALENDARIO - PROGRAMADO | V141: TOTAL | W141: META PROGRAMADA EN EL AÑO
F142: PROGRAMADO | I142: ENE | J142: FEB | K142: MAR | L142: ABR | M142: MAY | N142: JUN | O142: JUL | P142: AGO | Q142: SEP | R142: OCT | S142: NOV | T142: DIC
A143: VARIABLE 1 | C143: Acciones de atención a población vulnerable | E143: acciones | F143: PROGRAMADO VARIABLE 1 | I143: 2 | J143: 2 | K143: 2 | L143: 3 | M143: 2 | N143: 2 | O143: 2 | P143: 2 | Q143: 3 | R143: 2 | S143: 2 | T143: 2 | V143: =IF(SUM(I143:T143)=0,"",SUM(I143:T143)) -> 26 | W143: =IF($G$134="porcentaje",FIXED(V143/V144*100,2)&"%",IF($G$134="Promedio",V143/V144,IF($G$134="variación porcentual",FIXED(((V143/V144)-1)*100,2)&"%",IF($G$134="OTRAS","CAPTURAR EL RESULTADO DEL INDICADOR")))) -> 23.64%
A144: VARIABLE 2 | C144: Total de acciones de inclusión social con enfoque de género | E144: acciones | F144: PROGRAMADO VARIABLE 2 | I144: 9 | J144: 9 | K144: 9 | L144: 10 | M144: 9 | N144: 9 | O144: 9 | P144: 9 | Q144: 10 | R144: 9 | S144: 9 | T144: 9 | U144: =SUM(I144:T144) -> 110 | V144: =IF(SUM(I144:T144)=0,"",SUM(I144:T144)) -> 110
A145: REALIZADO
A146: VARIABLES | C146: NOMBRE | E146: UNIDAD DE MEDIDA | F146: CALENDARIO - PROGRAMADO | V146: TOTAL | W146: RESULTADO ALCANZADO EN EL AÑO
F147: REALIZADO | I147: ENE | J147: FEB | K147: MAR | L147: ABR | M147: MAY | N147: JUN | O147: JUL | P147: AGO | Q147: SEP | R147: OCT | S147: NOV | T147: DIC
A148: VARIABLE 1 | C148: =IF(C143=0,"",C143) -> Acciones de atención a población vulnerable | E148: =IF(E143=0,"",E143) -> acciones | F148: REALIZADO VARIABLE 1 | V148: =IF(SUM(I148:T148)=0,"",SUM(I148:T148)) ->  | W148: =IF($G$134="porcentaje",FIXED(V148/V149*100,2)&"%",IF($G$134="Promedio",V148/V149,IF($G$134="variación porcentual",FIXED(((V148/V149)-1)*100,2)&"%",IF($G$134="OTRAS","CAPTURAR EL RESULTADO DEL INDICADOR")))) -> 
A149: VARIABLE 2 | C149: =IF(C144=0,"",C144) -> Total de acciones de inclusión social con enfoque de género | E149: =IF(E144=0,"",E144) -> acciones | F149: REALIZADO VARIABLE 2 | U149: =SUM(I149:T149) -> 0 | V149: =IF(SUM(I149:T149)=0,"",SUM(I149:T149)) -> 
A151: CUMPLIMIENTO FINAL | W151: =IF(ISERROR(W148/W143)=TRUE,"",(W148/W143)) -> 
A153: Explicaciones y causas de las variaciones al cumplimiento de la programación, ¿ Por qué no se cumplio o por que se supero considerablemente lo programado?
A155: COMPONENTE 3 RESUMEN NARRATIVO | C155: Acciones de fortalecimiento para el desarrollo de las mujeres en el municipio
A157: Indicador
A159: NOMBRE | C159: Porcentaje de acciones de fotalecimiento para el desarrollo de la mujer en el municipio
A161: DIMENSIÓN A MEDIR | C161: Eficiencia | E161: FRECUENCIA DE MEDICIÓN | G161: semestral | M161: MÉTODO DE CALCULO | Q161: (v1/v2)*100
A163: TIPO DE INDICADOR | C163: Gestión | E163: TIPO DE FÓRMULA | G163: Porcentaje | M163: COMPORTAMIENTO DEL INDICADOR HACIA LA META | Q163: Regular
C165: LINEA BASE | O165: META DEL INDICADOR
C166: 12 | E166: 2024 | O166: 24
C167: VALOR | E167: AÑO
A169: PROGRAMADO
A170: VARIABLES | C170: NOMBRE | E170: UNIDAD DE MEDIDA | F170: CALENDARIO - PROGRAMADO | V170: TOTAL | W170: META PROGRAMADA EN EL AÑO
F171: PROGRAMADO | I171: ENE | J171: FEB | K171: MAR | L171: ABR | M171: MAY | N171: JUN | O171: JUL | P171: AGO | Q171: SEP | R171: OCT | S171: NOV | T171: DIC
A172: VARIABLE 1 | C172: Número de acciones de fortalecimiento para el desarrollo de las mujeres en el municipio | E172: acciones | F172: PROGRAMADO VARIABLE 1 | I172: 2 | J172: 2 | K172: 2 | L172: 2 | M172: 2 | N172: 2 | O172: 2 | P172: 2 | Q172: 2 | R172: 2 | S172: 2 | T172: 2 | V172: =IF(SUM(I172:T172)=0,"",SUM(I172:T172)) -> 24 | W172: =IF($G$163="porcentaje",FIXED(V172/V173*100,2)&"%",IF($G$163="Promedio",V172/V173,IF($G$163="variación porcentual",FIXED(((V172/V173)-1)*100,2)&"%",IF($G$163="OTRAS","CAPTURAR EL RESULTADO DEL INDICADOR")))) -> 21.82%
A173: VARIABLE 2 | C173: Total de acciones de inclusión social con enfoque de género | E173: acciones | F173: PROGRAMADO VARIABLE 2 | I173: 9 | J173: 9 | K173: 9 | L173: 10 | M173: 9 | N173: 9 | O173: 9 | P173: 9 | Q173: 10 | R173: 9 | S173: 9 | T173: 9 | U173: =SUM(I173:T173) -> 110 | V173: =IF(SUM(I173:T173)=0,"",SUM(I173:T173)) -> 110
A174: REALIZADO
A175: VARIABLES | C175: NOMBRE | E175: UNIDAD DE MEDIDA | F175: CALENDARIO - PROGRAMADO | V175: TOTAL | W175: RESULTADO ALCANZADO EN EL AÑO
F176: REALIZADO | I176: ENE | J176: FEB | K176: MAR | L176: ABR | M176: MAY | N176: JUN | O176: JUL | P176: AGO | Q176: SEP | R176: OCT | S176: NOV | T176: DIC
A177: VARIABLE 1 | C177: =IF(C172=0,"",C172) -> Número de acciones de fortalecimiento para el desarrollo de las mujeres en el municipio | E177: =IF(E172=0,"",E172) -> acciones | F177: REALIZADO VARIABLE 1 | V177: =IF(SUM(I177:T177)=0,"",SUM(I177:T177)) ->  | W177: =IF($G$163="porcentaje",FIXED(V177/V178*100,2)&"%",IF($G$163="Promedio",V177/V178,IF($G$163="variación porcentual",FIXED(((V177/V178)-1)*100,2)&"%",IF($G$163="OTRAS","CAPTURAR EL RESULTADO DEL INDICADOR")))) -> 
A178: VARIABLE 2 | C178: =IF(C173=0,"",C173) -> Total de acciones de inclusión social con enfoque de género | E178: =IF(E173=0,"",E173) -> acciones | F178: REALIZADO VARIABLE 2 | U178: =SUM(I178:T178) -> 0 | V178: =IF(SUM(I178:T178)=0,"",SUM(I178:T178)) -> 
A180: CUMPLIMIENTO FINAL | W180: =IF(ISERROR(W177/W172)=TRUE,"",(W177/W172)) -> 
A182: Explicaciones y causas de las variaciones al cumplimiento de la programación, ¿ Por qué no se cumplio o por que se supero considerablemente lo programado?
A184: COMPONENTE 4 RESUMEN NARRATIVO | C184: Acciones de mejora para la población indígena y afrodescendiente realizadas
A186: Indicador
A188: NOMBRE | C188: Porcentaje de acciones para el beneficio de la población indígena y afrodescendientes realizadas
A190: DIMENSIÓN A MEDIR | C190: Eficacia | E190: FRECUENCIA DE MEDICIÓN | G190: anual | M190: MÉTODO DE CALCULO | Q190: (vi/v2)*100
A192: TIPO DE INDICADOR | C192: Estratégico | E192: TIPO DE FÓRMULA | G192: Porcentaje | M192: COMPORTAMIENTO DEL INDICADOR HACIA LA META | Q192: Regular
C194: LINEA BASE | O194: META DEL INDICADOR
C195: 12 | E195: 2024 | O195: 24
C196: VALOR | E196: AÑO
A198: PROGRAMADO
A199: VARIABLES | C199: NOMBRE | E199: UNIDAD DE MEDIDA | F199: CALENDARIO - PROGRAMADO | V199: TOTAL | W199: META PROGRAMADA EN EL AÑO
F200: PROGRAMADO | I200: ENE | J200: FEB | K200: MAR | L200: ABR | M200: MAY | N200: JUN | O200: JUL | P200: AGO | Q200: SEP | R200: OCT | S200: NOV | T200: DIC
A201: VARIABLE 1 | C201: Número de aciones en beneficio de la población indígena y afrodescendientes realizadas | E201: acción | F201: PROGRAMADO VARIABLE 1 | I201: 2 | J201: 2 | K201: 2 | L201: 2 | M201: 2 | N201: 2 | O201: 2 | P201: 2 | Q201: 2 | R201: 2 | S201: 2 | T201: 2 | V201: =IF(SUM(I201:T201)=0,"",SUM(I201:T201)) -> 24 | W201: =IF($G$192="porcentaje",FIXED(V201/V202*100,2)&"%",IF($G$192="Promedio",V201/V202,IF($G$192="variación porcentual",FIXED(((V201/V202)-1)*100,2)&"%",IF($G$192="OTRAS","CAPTURAR EL RESULTADO DEL INDICADOR")))) -> 21.82%
A202: VARIABLE 2 | C202: Total de acciones de inclusión social con enfoque de género | E202: acción | F202: PROGRAMADO VARIABLE 2 | I202: 9 | J202: 9 | K202: 9 | L202: 10 | M202: 9 | N202: 9 | O202: 9 | P202: 9 | Q202: 10 | R202: 9 | S202: 9 | T202: 9 | U202: =SUM(I202:T202) -> 110 | V202: =IF(SUM(I202:T202)=0,"",SUM(I202:T202)) -> 110
A203: REALIZADO
A204: VARIABLES | C204: NOMBRE | E204: UNIDAD DE MEDIDA | F204: CALENDARIO - PROGRAMADO | V204: TOTAL | W204: PROCENTAJE PROGRAMADO EN EL AÑO
F205: REALIZADO | I205: ENE | J205: FEB | K205: MAR | L205: ABR | M205: MAY | N205: JUN | O205: JUL | P205: AGO | Q205: SEP | R205: OCT | S205: NOV | T205: DIC
A206: VARIABLE 1 | C206: =IF(C201=0,"",C201) -> Número de aciones en beneficio de la población indígena y afrodescendientes realizadas | E206: =IF(E201=0,"",E201) -> acción | F206: REALIZADO VARIABLE 1 | V206: =IF(SUM(I206:T206)=0,"",SUM(I206:T206)) ->  | W206: =IF($G$192="porcentaje",FIXED(V206/V207*100,2)&"%",IF($G$192="Promedio",V206/V207,IF($G$192="variación porcentual",FIXED(((V206/V207)-1)*100,2)&"%",IF($G$192="OTRAS","CAPTURAR EL RESULTADO DEL INDICADOR")))) -> 
A207: VARIABLE 2 | C207: =IF(C202=0,"",C202) -> Total de acciones de inclusión social con enfoque de género | E207: =IF(E202=0,"",E202) -> acción | F207: REALIZADO VARIABLE 2 | U207: =SUM(I207:T207) -> 0 | V207: =IF(SUM(I207:T207)=0,"",SUM(I207:T207)) -> 
A209: CUMPLIMIENTO FINAL | W209: =IF(ISERROR(W206/W201)=TRUE,"",(W206/W201)) -> 
A211: Explicaciones y causas de las variaciones al cumplimiento de la programación, ¿ Por qué no se cumplio o por que se supero considerablemente lo programado?
A213: COMPONENTE 5 RESUMEN NARRATIVO
A215: Indicador
A217: NOMBRE
A219: DIMENSIÓN A MEDIR | E219: FRECUENCIA DE MEDICIÓN | M219: MÉTODO DE CALCULO
A221: TIPO DE INDICADOR | E221: TIPO DE FÓRMULA | M221: COMPORTAMIENTO DEL INDICADOR HACIA LA META
C223: LINEA BASE | O223: META DEL INDICADOR
C225: VALOR | E225: AÑO
A227: PROGRAMADO
A228: VARIABLES | C228: NOMBRE | E228: UNIDAD DE MEDIDA | F228: CALENDARIO - PROGRAMADO | V228: TOTAL | W228: META PROGRAMADA EN EL AÑO
F229: PROGRAMADO | I229: ENE | J229: FEB | K229: MAR | L229: ABR | M229: MAY | N229: JUN | O229: JUL | P229: AGO | Q229: SEP | R229: OCT | S229: NOV | T229: DIC
A230: VARIABLE 1 | F230: PROGRAMADO VARIABLE 1 | V230: =IF(SUM(I230:T230)=0,"",SUM(I230:T230)) ->  | W230: =IF($G$221="porcentaje",FIXED(V230/V231*100,2)&"%",IF($G$221="Promedio",V230/V231,IF($G$221="variación porcentual",FIXED(((V230/V231)-1)*100,2)&"%",IF($G$221="OTRAS","CAPTURAR EL RESULTADO DEL INDICADOR")))) -> FALSE
A231: VARIABLE 2 | F231: PROGRAMADO VARIABLE 2 | U231: =SUM(I231:T231) -> 0 | V231: =IF(SUM(I231:T231)=0,"",SUM(I231:T231)) -> 
A232: REALIZADO
A233: VARIABLES | C233: NOMBRE | E233: UNIDAD DE MEDIDA | F233: CALENDARIO - PROGRAMADO | V233: TOTAL | W233: PROCENTAJE PROGRAMADO EN EL AÑO
F234: REALIZADO | I234: ENE | J234: FEB | K234: MAR | L234: ABR | M234: MAY | N234: JUN | O234: JUL | P234: AGO | Q234: SEP | R234: OCT | S234: NOV | T234: DIC
A235: VARIABLE 1 | C235: =IF(C230=0,"",C230) ->  | E235: =IF(E230=0,"",E230) ->  | F235: REALIZADO VARIABLE 1 | V235: =IF(SUM(I235:T235)=0,"",SUM(I235:T235)) ->  | W235: =IF($G$221="porcentaje",FIXED(V235/V236*100,2)&"%",IF($G$221="Promedio",V235/V236,IF($G$221="variación porcentual",FIXED(((V235/V236)-1)*100,2)&"%",IF($G$221="OTRAS","CAPTURAR EL RESULTADO DEL INDICADOR")))) -> FALSE
A236: VARIABLE 2 | C236: =IF(C231=0,"",C231) ->  | E236: =IF(E231=0,"",E231) ->  | F236: REALIZADO VARIABLE 2 | U236: =SUM(I236:T236) -> 0 | V236: =IF(SUM(I236:T236)=0,"",SUM(I236:T236)) -> 
A238: CUMPLIMIENTO FINAL | W238: =IF(ISERROR(W235/W230)=TRUE,"",(W235/W230)) -> 
A240: Explicaciones y causas de las variaciones al cumplimiento de la programación, ¿ Por qué no se cumplio o por que se supero considerablemente lo programado?
A242: COMPONENTE 6 RESUMEN NARRATIVO
A244: Indicador
A246: NOMBRE
A248: DIMENSIÓN A MEDIR | E248: FRECUENCIA DE MEDICIÓN | M248: MÉTODO DE CALCULO
A250: TIPO DE INDICADOR | E250: TIPO DE FÓRMULA | M250: COMPORTAMIENTO DEL INDICADOR HACIA LA META
C252: LINEA BASE | O252: META DEL INDICADOR
C254: VALOR | E254: AÑO
A256: PROGRAMADO
A257: VARIABLES | C257: NOMBRE | E257: UNIDAD DE MEDIDA | F257: CALENDARIO - PROGRAMADO | V257: TOTAL | W257: META PROGRAMADA EN EL AÑO
F258: PROGRAMADO | I258: ENE | J258: FEB | K258: MAR | L258: ABR | M258: MAY | N258: JUN | O258: JUL | P258: AGO | Q258: SEP | R258: OCT | S258: NOV | T258: DIC
A259: VARIABLE 1 | F259: PROGRAMADO VARIABLE 1 | V259: =IF(SUM(I259:T259)=0,"",SUM(I259:T259)) ->  | W259: =IF($G$221="porcentaje",FIXED(V259/V260*100,2)&"%",IF($G$221="Promedio",V259/V260,IF($G$221="variación porcentual",FIXED(((V259/V260)-1)*100,2)&"%",IF($G$221="OTRAS","CAPTURAR EL RESULTADO DEL INDICADOR")))) -> FALSE
A260: VARIABLE 2 | F260: PROGRAMADO VARIABLE 2 | U260: =SUM(I260:T260) -> 0 | V260: =IF(SUM(I260:T260)=0,"",SUM(I260:T260)) -> 
A261: REALIZADO
A262: VARIABLES | C262: NOMBRE | E262: UNIDAD DE MEDIDA | F262: CALENDARIO - PROGRAMADO | V262: TOTAL | W262: PROCENTAJE PROGRAMADO EN EL AÑO
F263: REALIZADO | I263: ENE | J263: FEB | K263: MAR | L263: ABR | M263: MAY | N263: JUN | O263: JUL | P263: AGO | Q263: SEP | R263: OCT | S263: NOV | T263: DIC
A264: VARIABLE 1 | C264: =IF(C259=0,"",C259) ->  | E264: =IF(E259=0,"",E259) ->  | F264: REALIZADO VARIABLE 1 | V264: =IF(SUM(I264:T264)=0,"",SUM(I264:T264)) ->  | W264: =IF($G$221="porcentaje",FIXED(V264/V265*100,2)&"%",IF($G$221="Promedio",V264/V265,IF($G$221="variación porcentual",FIXED(((V264/V265)-1)*100,2)&"%",IF($G$221="OTRAS","CAPTURAR EL RESULTADO DEL INDICADOR")))) -> FALSE
A265: VARIABLE 2 | C265: =IF(C260=0,"",C260) ->  | E265: =IF(E260=0,"",E260) ->  | F265: REALIZADO VARIABLE 2 | U265: =SUM(I265:T265) -> 0 | V265: =IF(SUM(I265:T265)=0,"",SUM(I265:T265)) -> 
A267: CUMPLIMIENTO FINAL | W267: =IF(ISERROR(W264/W259)=TRUE,"",(W264/W259)) -> 
A269: Explicaciones y causas de las variaciones al cumplimiento de la programación, ¿ Por qué no se cumplio o por que se supero considerablemente lo programado?
A272: ACTIVIDADES
A274: COMPONENTE | B274: DESCRIPCIÓN | E274: UNIDAD DE MEDIDA | F274: CALENDARIO | V274: TOTAL | W274: PORCENTAJE DE CUMPLIMIENTO DE LA ACTIVIDAD
F275: PROGRAMADO / REALIZADO | I275: ENE | J275: FEB | K275: MAR | L275: ABR | M275: MAY | N275: JUN | O275: JUL | P275: AGO | Q275: SEP | R275: OCT | S275: NOV | T275: DIC
A276: C1 | B276: 1 | C276: Realizar 1 seguimiento mensual a las acciones de prevención de enfermedades crónico degenerativas | E276: actividad | F276: PROGRAMADO | I276: 1 | J276: 1 | K276: 1 | L276: 1 | M276: 1 | N276: 1 | O276: 1 | P276: 1 | Q276: 1 | R276: 1 | S276: 1 | T276: 1 | V276: =SUM(I276:T276) -> 12 | W276: =IF(V276=0,"-",V277/V276) -> 0%
F277: REALIZADO | V277: =SUM(I277:T277) -> 0
B278: 2 | C278: Realizar 1 seguimiento mensual a las acciones de prevención de enfermedades por vector dentro del municipio. | E278: actividad | F278: PROGRAMADO | I278: 1 | J278: 1 | K278: 1 | L278: 1 | M278: 1 | N278: 1 | O278: 1 | P278: 1 | Q278: 1 | R278: 1 | S278: 1 | T278: 1 | V278: =SUM(I278:T278) -> 12 | W278: =IF(V278=0,"-",V279/V278) -> 0%
F279: REALIZADO | V279: =SUM(I279:T279) -> 0
B280: 3 | C280: Realizar 1 seguimiento mensual a las acciones de atención a la salud a la población en general | E280: actividad | F280: PROGRAMADO | I280: 1 | J280: 1 | K280: 1 | L280: 1 | M280: 1 | N280: 1 | O280: 1 | P280: 1 | Q280: 1 | R280: 1 | S280: 1 | T280: 1 | V280: =SUM(I280:T280) -> 12 | W280: =IF(V280=0,"-",V281/V280) -> 0%
F281: REALIZADO | V281: 0
B282: 4 | C282: Realizar 1 seguimiento mensual a las actividades de difusión y campañas de salud | E282: actividad | F282: PROGRAMADO | I282: 1 | J282: 1 | K282: 1 | L282: 1 | M282: 1 | N282: 1 | O282: 1 | P282: 1 | Q282: 1 | R282: 1 | S282: 1 | T282: 1 | V282: 12 | W282: =IF(V282=0,"-",V283/V282) -> 0%
F283: REALIZADO | V283: 0
B284: 5 | F284: PROGRAMADO | V284: 0 | W284: =IF(V284=0,"-",V285/V284) -> -
F285: REALIZADO | V285: 0
... 217 more rows

Sheet Porgrama 6
C2: CLAVE: | F2: 11/04
C3: ENTIDAD FISCALIZADA: | F3: =IF(ISERROR(VLOOKUP(F2,general!$B:$C,2,FALSE))=TRUE,"",(VLOOKUP(F2,general!$B:$C,2,FALSE))) -> Chietla
D4: AÑO: | F4: 2025
A6: PROGRAMA PRESUPUESTARIO
A8: Nombre del Programa | D8: Educación, Cultura y Deporte
A9: Unidad(es) Responsable(s) | D9: 16 Educación
A10: Costo Total del Programa
A11: Fuente de Financiamiento | D11: RECURSOS FISCALES | G11: PARTICIPACIONES | L11: FISM | P11: FORTAMUN | T11: OTROS
A12: Monto Específco | D12: $1,062,981.09
A14: CLASIFICACIÓN FUNCIONAL DEL GASTO
A15: CLASIFICACIÓN | D15: CONCEPTO
A16: Finalidad | D16: 2. Desarrollo social
A17: Función | D17: 2.5. Educación
A18: Subfunción | D18: 2.5.1 Educación Básica
A19: Sub/Subfunción | D19: 2.5.1.1 Educación, cultura y deporte
A21: GASTO POR CATEGORÍA PROGRAMÁTICA
A22: CATEGORÍA | D22: Desempeño de las funciones
A23: PROGRAMA | D23: E Prestación de Servicios Públicos
A25: DATOS DE VINCULACIÓN AL PLAN ESTATAL DE DESARROLLO
A26: Eje 4 Desarrollo Integral Educación y Diversidad Cultural
A27: DATOS DE VINCULACIÓN AL PLAN MUNICIPAL DE DESARROLLO (EJES, ESTRATEGIAS U OBJETIVOS GENERALES)
A28: Eje 4 Identidad Municipal, Oportunidades para todos
A29: NIVEL INMEDIATO INFERIOR (OBJETIVO O LíNEA ESTRATÉGICA)
A30: Objetivo 2 Gestionar y fomentar beneficios para toda la comunidad estudantil en todo el municipio de Chietla, a su vez proporcionar a la sociedad igualdad, aprovechamiento y equidad, así como optimización y racionalidad de los recursos con los que cuentan, para que los intereses del pueblo y los recursos ecoómicos en materia educativa, de cultura y deporte sean potencializados al máximo
A31: DATOS DE VINCULACIÓN A OBJETIVOS DE DESARROLLO SOSTENIBLE
A32: 4. Garantizar una educación inclusiva, equitativa y de calidad y promover oportunidades de aprendizaje durante toda la vida para todos.
A33: FIN
A35: RESUMEN NARRATIVO | C35: Contribuir al desarrollo integral de los habitantes del municipio de Chietla a través de acciones de educación, cultura y deporte con enfoque de género
A37: Indicador
A39: NOMBRE | C39: Porcentaje de acciones en materia educativa, cultural y deportiva con enfoque de género realizadas
A41: DIMENSIÓN A MEDIR | C41: Eficiencia | E41: FRECUENCIA DE MEDICIÓN | G41: anual | M41: MÉTODO DE CALCULO | Q41: (v1/v2)*100
A43: TIPO DE INDICADOR | C43: Estratégico | E43: TIPO DE FÓRMULA | G43: Porcentaje | M43: COMPORTAMIENTO DEL INDICADOR HACIA LA META
C45: LINEA BASE | O45: META DEL INDICADOR
C46: 24 | E46: 2024 | O46: 42
C47: VALOR | E47: AÑO
A49: PROGRAMADO
A50: VARIABLES | C50: NOMBRE | E50: UNIDAD DE MEDIDA | F50: CALENDARIO - PROGRAMADO | V50: TOTAL | W50: META PROGRAMADA EN EL AÑO
F51: PROGRAMADO | I51: ENE | J51: FEB | K51: MAR | L51: ABR | M51: MAY | N51: JUN | O51: JUL | P51: AGO | Q51: SEP | R51: OCT | S51: NOV | T51: DIC
A52: VARIABLE 1 | C52: Número de acciones en materia educativa con enfoque de género | E52: acciones | F52: PROGRAMADO VARIABLE 1 | I52: 1 | J52: 3 | K52: 5 | L52: 3 | M52: 3 | N52: 5 | O52: 3 | P52: 3 | Q52: 5 | R52: 3 | S52: 3 | T52: 5 | V52: =IF(SUM(I52:T52)=0,"",SUM(I52:T52)) -> 42 | W52: =IF($G$43="porcentaje",FIXED(V52/V53*100,2)&"%",IF($G$43="Promedio",V52/V53,IF($G$43="variación porcentual",FIXED(((V52/V53)-1)*100,2)&"%",IF($G$43="OTRAS","CAPTURAR EL RESULTADO DEL INDICADOR")))) -> 100.00%
A53: VARIABLE 2 | C53: Total de acciones | E53: acciones | F53: PROGRAMADO VARIABLE 2 | I53: 1 | J53: 3 | K53: 5 | L53: 3 | M53: 3 | N53: 5 | O53: 3 | P53: 3 | Q53: 5 | R53: 3 | S53: 3 | T53: 5 | U53: =SUM(I53:T53) -> 42 | V53: =IF(SUM(I53:T53)=0,"",SUM(I53:T53)) -> 42
A54: REALIZADO
A55: VARIABLES | C55: NOMBRE | E55: UNIDAD DE MEDIDA | F55: CALENDARIO - PROGRAMADO | V55: TOTAL | W55: RESULTADO ALCANZADO EN EL AÑO
F56: REALIZADO | I56: ENE | J56: FEB | K56: MAR | L56: ABR | M56: MAY | N56: JUN | O56: JUL | P56: AGO | Q56: SEP | R56: OCT | S56: NOV | T56: DIC
A57: VARIABLE 1 | C57: =IF(C52=0,"",C52) -> Número de acciones en materia educativa con enfoque de género | E57: =IF(E52=0,"",E52) -> acciones | F57: REALIZADO VARIABLE 1 | V57: =IF(SUM(I57:T57)=0,"",SUM(I57:T57)) ->  | W57: =IF($G$43="porcentaje",FIXED(V57/V58*100,2)&"%",IF($G$43="Promedio",V57/V58,IF($G$43="variación porcentual",FIXED(((V57/V58)-1)*100,2)&"%",IF($G$43="OTRAS","CAPTURAR EL RESULTADO DEL INDICADOR")))) -> 
A58: VARIABLE 2 | C58: =IF(C53=0,"",C53) -> Total de acciones | E58: =IF(E53=0,"",E53) -> acciones | F58: REALIZADO VARIABLE 2 | U58: =SUM(I58:T58) -> 0 | V58: =IF(SUM(I58:T58)=0,"",SUM(I58:T58)) -> 
A60: CUMPLIMIENTO FINAL | W60: =IF(ISERROR(W57/W52)=TRUE,"",(W57/W52)) -> 
A62: Explicaciones y causas de las variaciones al cumplimiento de la programación, ¿ Por qué no se cumplio o por que se supero considerablemente lo programado?
A64: PROPÓSITO
A66: RESUMEN NARRATIVO | C66: El municipio de Chietla impulsa acciones en materia de educación, cultura y deportes en igualdad de oportunidades
A68: Indicador
A70: NOMBRE | C70: Porcentaje de población beneficiada con acciones en materia de educación, cultura y deportes en igualdad de oportunidades
A72: DIMENSIÓN A MEDIR | C72: Eficacia | E72: FRECUENCIA DE MEDICIÓN | G72: Anual | M72: MÉTODO DE CALCULO | Q72: (v1/v2)*100
A74: TIPO DE INDICADOR | C74: Estratégico | E74: TIPO DE FÓRMULA | G74: Porcentaje | M74: COMPORTAMIENTO DEL INDICADOR HACIA LA META | Q74: Regular
C76: LINEA BASE | O76: META DEL INDICADOR
C77: 27773 | E77: 2024 | O77: 19000.0
C78: VALOR | E78: AÑO
A80: PROGRAMADO
A81: VARIABLES | C81: NOMBRE | E81: UNIDAD DE MEDIDA | F81: CALENDARIO - PROGRAMADO | V81: TOTAL | W81: META PROGRAMADA EN EL AÑO
F82: PROGRAMADO | I82: ENE | J82: FEB | K82: MAR | L82: ABR | M82: MAY | N82: JUN | O82: JUL | P82: AGO | Q82: SEP | R82: OCT | S82: NOV | T82: DIC
A83: VARIABLE 1 | C83: Número de personas beneficiadas en materia de educación, cultura y deportes | E83: habitantes | F83: PROGRAMADO VARIABLE 1 | T83: 19000 | V83: =IF(SUM(I83:T83)=0,"",SUM(I83:T83)) -> 19000 | W83: =IF($G$74="porcentaje",FIXED(V83/V84*100,2)&"%",IF($G$74="Promedio",V83/V84,IF($G$74="variación porcentual",FIXED(((V83/V84)-1)*100,2)&"%",IF($G$74="OTRAS","CAPTURAR EL RESULTADO DEL INDICADOR")))) -> 51.31%
A84: VARIABLE 2 | C84: Total de población en el municipio | E84: habitantes | F84: PROGRAMADO VARIABLE 2 | T84: 37030 | U84: =SUM(I84:T84) -> 37030 | V84: =IF(SUM(I84:T84)=0,"",SUM(I84:T84)) -> 37030
A85: REALIZADO
A86: VARIABLES | C86: NOMBRE | E86: UNIDAD DE MEDIDA | F86: CALENDARIO - PROGRAMADO | V86: TOTAL | W86: RESULTADO ALCANZADO EN EL AÑO
F87: REALIZADO | I87: ENE | J87: FEB | K87: MAR | L87: ABR | M87: MAY | N87: JUN | O87: JUL | P87: AGO | Q87: SEP | R87: OCT | S87: NOV | T87: DIC
A88: VARIABLE 1 | C88: =IF(C83=0,"",C83) -> Número de personas beneficiadas en materia de educación, cultura y deportes | E88: =IF(E83=0,"",E83) -> habitantes | F88: REALIZADO VARIABLE 1 | V88: =IF(SUM(I88:T88)=0,"",SUM(I88:T88)) ->  | W88: =IF($G$74="porcentaje",FIXED(V88/V89*100,2)&"%",IF($G$74="Promedio",V88/V89,IF($G$74="variación porcentual",FIXED(((V88/V89)-1)*100,2)&"%",IF($G$74="OTRAS","CAPTURAR EL RESULTADO DEL INDICADOR")))) -> 
A89: VARIABLE 2 | C89: =IF(C84=0,"",C84) -> Total de población en el municipio | E89: =IF(E84=0,"",E84) -> habitantes | F89: REALIZADO VARIABLE 2 | U89: =SUM(I89:T89) -> 0 | V89: =IF(SUM(I89:T89)=0,"",SUM(I89:T89)) -> 
A91: CUMPLIMIENTO FINAL | W91: =IF(ISERROR(W88/W83)=TRUE,"",(W88/W83)) -> 
A93: Explicaciones y causas de las variaciones al cumplimiento de la programación, ¿ Por qué no se cumplio o por que se supero considerablemente lo programado?
A95: COMPONENTES
A97: COMPONENTE 1 RESUMEN NARRATIVO | C97: Acciones para el acceso a la educación para la población implementados
A99: Indicador
A101: NOMBRE | C101: Porcentaje de acciones para el acceso a la educación a la población
A103: DIMENSIÓN A MEDIR | C103: Eficiencia | E103: FRECUENCIA DE MEDICIÓN | G103: semestral | M103: MÉTODO DE CALCULO | Q103: (v1/v2)*100
A105: TIPO DE INDICADOR | C105: Gestión | E105: TIPO DE FÓRMULA | G105: Porcentaje | M105: COMPORTAMIENTO DEL INDICADOR HACIA LA META | Q105: Ascendente
C107: LINEA BASE | O107: META DEL INDICADOR
C108: 24 | E108: 2024 | O108: 16.00
C109: VALOR | E109: AÑO
A111: PROGRAMADO
A112: VARIABLES | C112: NOMBRE | E112: UNIDAD DE MEDIDA | F112: CALENDARIO - PROGRAMADO | V112: TOTAL | W112: META PROGRAMADA EN EL AÑO
F113: PROGRAMADO | I113: ENE | J113: FEB | K113: MAR | L113: ABR | M113: MAY | N113: JUN | O113: JUL | P113: AGO | Q113: SEP | R113: OCT | S113: NOV | T113: DIC
A114: VARIABLE 1 | C114: Numero de acciones en favor del acceso a la educación para la población | E114: acciones | F114: PROGRAMADO VARIABLE 1 | I114: 1 | J114: 1 | K114: 2 | L114: 1 | M114: 1 | N114: 2 | O114: 1 | P114: 1 | Q114: 2 | R114: 1 | S114: 1 | T114: 2 | V114: =IF(SUM(I114:T114)=0,"",SUM(I114:T114)) -> 16 | W114: =IF($G$105="porcentaje",FIXED(V114/V115*100,2)&"%",IF($G$105="Promedio",V114/V115,IF($G$105="variación porcentual",FIXED(((V114/V115)-1)*100,2)&"%",IF($G$105="OTRAS","CAPTURAR EL RESULTADO DEL INDICADOR")))) -> 38.10%
A115: VARIABLE 2 | C115: Total de acciones de educación, cultura y deporte implementadas | E115: acciones | F115: PROGRAMADO VARIABLE 2 | I115: 1 | J115: 3 | K115: 5 | L115: 3 | M115: 3 | N115: 5 | O115: 3 | P115: 3 | Q115: 5 | R115: 3 | S115: 3 | T115: 5 | U115: =SUM(I115:T115) -> 42 | V115: =IF(SUM(I115:T115)=0,"",SUM(I115:T115)) -> 42
A116: REALIZADO
A117: VARIABLES | C117: NOMBRE | E117: UNIDAD DE MEDIDA | F117: CALENDARIO - PROGRAMADO | V117: TOTAL | W117: RESULTADO ALCANZADO EN EL AÑO
F118: REALIZADO | I118: ENE | J118: FEB | K118: MAR | L118: ABR | M118: MAY | N118: JUN | O118: JUL | P118: AGO | Q118: SEP | R118: OCT | S118: NOV | T118: DIC
A119: VARIABLE 1 | C119: =IF(C114=0,"",C114) -> Numero de acciones en favor del acceso a la educación para la población | E119: =IF(E114=0,"",E114) -> acciones | F119: REALIZADO VARIABLE 1 | V119: =IF(SUM(I119:T119)=0,"",SUM(I119:T119)) ->  | W119: =IF($G$105="porcentaje",FIXED(V119/V120*100,2)&"%",IF($G$105="Promedio",V119/V120,IF($G$105="variación porcentual",FIXED(((V119/V120)-1)*100,2)&"%",IF($G$105="OTRAS","CAPTURAR EL RESULTADO DEL INDICADOR")))) -> 
A120: VARIABLE 2 | C120: =IF(C115=0,"",C115) -> Total de acciones de educación, cultura y deporte implementadas | E120: =IF(E115=0,"",E115) -> acciones | F120: REALIZADO VARIABLE 2 | U120: =SUM(I120:T120) -> 0 | V120: =IF(SUM(I120:T120)=0,"",SUM(I120:T120)) -> 
A122: CUMPLIMIENTO FINAL | W122: =IF(ISERROR(W119/W114)=TRUE,"",(W119/W114)) -> 
A124: Explicaciones y causas de las variaciones al cumplimiento de la programación, ¿ Por qué no se cumplio o por que se supero considerablemente lo programado?
A126: COMPONENTE 2 RESUMEN NARRATIVO | C126: Acciones de fomento deportivo y cultural operando
A128: Indicador
A130: NOMBRE | C130: Porcentaje de acciones de fomento cultural y deportivo operando en el municipio
A132: DIMENSIÓN A MEDIR | C132: Eficiencia | E132: FRECUENCIA DE MEDICIÓN | G132: semestral | M132: MÉTODO DE CALCULO | Q132: (v1/v2)*100
A134: TIPO DE INDICADOR | C134: Gestión | E134: TIPO DE FÓRMULA | G134: Porcentaje | M134: COMPORTAMIENTO DEL INDICADOR HACIA LA META | Q134: Ascendente
C136: LINEA BASE | O136: META DEL INDICADOR
C137: 12 | E137: 2024 | O137: 26
C138: VALOR | E138: AÑO
A140: PROGRAMADO
A141: VARIABLES | C141: NOMBRE | E141: UNIDAD DE MEDIDA | F141: CALENDARIO - PROGRAMADO | V141: TOTAL | W141: META PROGRAMADA EN EL AÑO
F142: PROGRAMADO | I142: ENE | J142: FEB | K142: MAR | L142: ABR | M142: MAY | N142: JUN | O142: JUL | P142: AGO | Q142: SEP | R142: OCT | S142: NOV | T142: DIC
A143: VARIABLE 1 | C143: Número de acciones de fomento cultural y deportivo operando en el municipio | E143: acciones | F143: PROGRAMADO VARIABLE 1 | J143: 1 | K143: 2 | L143: 1 | M143: 1 | N143: 2 | O143: 1 | P143: 1 | Q143: 2 | R143: 1 | S143: 1 | T143: 2 | V143: =IF(SUM(I143:T143)=0,"",SUM(I143:T143)) -> 15 | W143: =IF($G$134="porcentaje",FIXED(V143/V144*100,2)&"%",IF($G$134="Promedio",V143/V144,IF($G$134="variación porcentual",FIXED(((V143/V144)-1)*100,2)&"%",IF($G$134="OTRAS","CAPTURAR EL RESULTADO DEL INDICADOR")))) -> 35.71%
A144: VARIABLE 2 | C144: Número de acciones de educación cultura y deporte implementados | E144: acciones | F144: PROGRAMADO VARIABLE 2 | I144: 1 | J144: 3 | K144: 5 | L144: 3 | M144: 3 | N144: 5 | O144: 3 | P144: 3 | Q144: 5 | R144: 3 | S144: 3 | T144: 5 | U144: =SUM(I144:T144) -> 42 | V144: =IF(SUM(I144:T144)=0,"",SUM(I144:T144)) -> 42
A145: REALIZADO
A146: VARIABLES | C146: NOMBRE | E146: UNIDAD DE MEDIDA | F146: CALENDARIO - PROGRAMADO | V146: TOTAL | W146: RESULTADO ALCANZADO EN EL AÑO
F147: REALIZADO | I147: ENE | J147: FEB | K147: MAR | L147: ABR | M147: MAY | N147: JUN | O147: JUL | P147: AGO | Q147: SEP | R147: OCT | S147: NOV | T147: DIC
A148: VARIABLE 1 | C148: =IF(C143=0,"",C143) -> Número de acciones de fomento cultural y deportivo operando en el municipio | E148: =IF(E143=0,"",E143) -> acciones | F148: REALIZADO VARIABLE 1 | V148: =IF(SUM(I148:T148)=0,"",SUM(I148:T148)) ->  | W148: =IF($G$134="porcentaje",FIXED(V148/V149*100,2)&"%",IF($G$134="Promedio",V148/V149,IF($G$134="variación porcentual",FIXED(((V148/V149)-1)*100,2)&"%",IF($G$134="OTRAS","CAPTURAR EL RESULTADO DEL INDICADOR")))) -> 
A149: VARIABLE 2 | C149: =IF(C144=0,"",C144) -> Número de acciones de educación cultura y deporte implementados | E149: =IF(E144=0,"",E144) -> acciones | F149: REALIZADO VARIABLE 2 | U149: =SUM(I149:T149) -> 0 | V149: =IF(SUM(I149:T149)=0,"",SUM(I149:T149)) -> 
A151: CUMPLIMIENTO FINAL | W151: =IF(ISERROR(W148/W143)=TRUE,"",(W148/W143)) -> 
A153: Explicaciones y causas de las variaciones al cumplimiento de la programación, ¿ Por qué no se cumplio o por que se supero considerablemente lo programado?
A155: COMPONENTE 3 RESUMEN NARRATIVO
A157: Indicador
A159: NOMBRE
A161: DIMENSIÓN A MEDIR | E161: FRECUENCIA DE MEDICIÓN | M161: MÉTODO DE CALCULO
A163: TIPO DE INDICADOR | E163: TIPO DE FÓRMULA | M163: COMPORTAMIENTO DEL INDICADOR HACIA LA META
C165: LINEA BASE | O165: META DEL INDICADOR
C167: VALOR | E167: AÑO
A169: PROGRAMADO
A170: VARIABLES | C170: NOMBRE | E170: UNIDAD DE MEDIDA | F170: CALENDARIO - PROGRAMADO | V170: TOTAL | W170: META PROGRAMADA EN EL AÑO
F171: PROGRAMADO | I171: ENE | J171: FEB | K171: MAR | L171: ABR | M171: MAY | N171: JUN | O171: JUL | P171: AGO | Q171: SEP | R171: OCT | S171: NOV | T171: DIC
A172: VARIABLE 1 | F172: PROGRAMADO VARIABLE 1 | V172: =IF(SUM(I172:T172)=0,"",SUM(I172:T172)) ->  | W172: =IF($G$163="porcentaje",FIXED(V172/V173*100,2)&"%",IF($G$163="Promedio",V172/V173,IF($G$163="variación porcentual",FIXED(((V172/V173)-1)*100,2)&"%",IF($G$163="OTRAS","CAPTURAR EL RESULTADO DEL INDICADOR")))) -> FALSE
A173: VARIABLE 2 | F173: PROGRAMADO VARIABLE 2 | U173: =SUM(I173:T173) -> 0 | V173: =IF(SUM(I173:T173)=0,"",SUM(I173:T173)) -> 
A174: REALIZADO
A175: VARIABLES | C175: NOMBRE | E175: UNIDAD DE MEDIDA | F175: CALENDARIO - PROGRAMADO | V175: TOTAL | W175: RESULTADO ALCANZADO EN EL AÑO
F176: REALIZADO | I176: ENE | J176: FEB | K176: MAR | L176: ABR | M176: MAY | N176: JUN | O176: JUL | P176: AGO | Q176: SEP | R176: OCT | S176: NOV | T176: DIC
A177: VARIABLE 1 | C177: =IF(C172=0,"",C172) ->  | E177: =IF(E172=0,"",E172) ->  | F177: REALIZADO VARIABLE 1 | V177: =IF(SUM(I177:T177)=0,"",SUM(I177:T177)) ->  | W177: =IF($G$163="porcentaje",FIXED(V177/V178*100,2)&"%",IF($G$163="Promedio",V177/V178,IF($G$163="variación porcentual",FIXED(((V177/V178)-1)*100,2)&"%",IF($G$163="OTRAS","CAPTURAR EL RESULTADO DEL INDICADOR")))) -> FALSE
A178: VARIABLE 2 | C178: =IF(C173=0,"",C173) ->  | E178: =IF(E173=0,"",E173) ->  | F178: REALIZADO VARIABLE 2 | U178: =SUM(I178:T178) -> 0 | V178: =IF(SUM(I178:T178)=0,"",SUM(I178:T178)) -> 
A180: CUMPLIMIENTO FINAL | W180: =IF(ISERROR(W177/W172)=TRUE,"",(W177/W172)) -> 
A182: Explicaciones y causas de las variaciones al cumplimiento de la programación, ¿ Por qué no se cumplio o por que se supero considerablemente lo programado?
A184: COMPONENTE 4 RESUMEN NARRATIVO
A186: Indicador
A188: NOMBRE
A190: DIMENSIÓN A MEDIR | E190: FRECUENCIA DE MEDICIÓN | M190: MÉTODO DE CALCULO
A192: TIPO DE INDICADOR | E192: TIPO DE FÓRMULA | M192: COMPORTAMIENTO DEL INDICADOR HACIA LA META
C194: LINEA BASE | O194: META DEL INDICADOR
C196: VALOR | E196: AÑO
A198: PROGRAMADO
A199: VARIABLES | C199: NOMBRE | E199: UNIDAD DE MEDIDA | F199: CALENDARIO - PROGRAMADO | V199: TOTAL | W199: META PROGRAMADA EN EL AÑO
F200: PROGRAMADO | I200: ENE | J200: FEB | K200: MAR | L200: ABR | M200: MAY | N200: JUN | O200: JUL | P200: AGO | Q200: SEP | R200: OCT | S200: NOV | T200: DIC
A201: VARIABLE 1 | F201: PROGRAMADO VARIABLE 1 | V201: =IF(SUM(I201:T201)=0,"",SUM(I201:T201)) ->  | W201: =IF($G$192="porcentaje",FIXED(V201/V202*100,2)&"%",IF($G$192="Promedio",V201/V202,IF($G$192="variación porcentual",FIXED(((V201/V202)-1)*100,2)&"%",IF($G$192="OTRAS","CAPTURAR EL RESULTADO DEL INDICADOR")))) -> FALSE
A202: VARIABLE 2 | F202: PROGRAMADO VARIABLE 2 | U202: =SUM(I202:T202) -> 0 | V202: =IF(SUM(I202:T202)=0,"",SUM(I202:T202)) -> 
A203: REALIZADO
A204: VARIABLES | C204: NOMBRE | E204: UNIDAD DE MEDIDA | F204: CALENDARIO - PROGRAMADO | V204: TOTAL | W204: PROCENTAJE PROGRAMADO EN EL AÑO
F205: REALIZADO | I205: ENE | J205: FEB | K205: MAR | L205: ABR | M205: MAY | N205: JUN | O205: JUL | P205: AGO | Q205: SEP | R205: OCT | S205: NOV | T205: DIC
A206: VARIABLE 1 | C206: =IF(C201=0,"",C201) ->  | E206: =IF(E201=0,"",E201) ->  | F206: REALIZADO VARIABLE 1 | V206: =IF(SUM(I206:T206)=0,"",SUM(I206:T206)) ->  | W206: =IF($G$192="porcentaje",FIXED(V206/V207*100,2)&"%",IF($G$192="Promedio",V206/V207,IF($G$192="variación porcentual",FIXED(((V206/V207)-1)*100,2)&"%",IF($G$192="OTRAS","CAPTURAR EL RESULTADO DEL INDICADOR")))) -> FALSE
A207: VARIABLE 2 | C207: =IF(C202=0,"",C202) ->  | E207: =IF(E202=0,"",E202) ->  | F207: REALIZADO VARIABLE 2 | U207: =SUM(I207:T207) -> 0 | V207: =IF(SUM(I207:T207)=0,"",SUM(I207:T207)) -> 
A209: CUMPLIMIENTO FINAL | W209: =IF(ISERROR(W206/W201)=TRUE,"",(W206/W201)) -> 
A211: Explicaciones y causas de las variaciones al cumplimiento de la programación, ¿ Por qué no se cumplio o por que se supero considerablemente lo programado?
A213: COMPONENTE 5 RESUMEN NARRATIVO
A215: Indicador
A217: NOMBRE
A219: DIMENSIÓN A MEDIR | E219: FRECUENCIA DE MEDICIÓN | M219: MÉTODO DE CALCULO
A221: TIPO DE INDICADOR | E221: TIPO DE FÓRMULA | M221: COMPORTAMIENTO DEL INDICADOR HACIA LA META
C223: LINEA BASE | O223: META DEL INDICADOR
C225: VALOR | E225: AÑO
A227: PROGRAMADO
A228: VARIABLES | C228: NOMBRE | E228: UNIDAD DE MEDIDA | F228: CALENDARIO - PROGRAMADO | V228: TOTAL | W228: META PROGRAMADA EN EL AÑO
F229: PROGRAMADO | I229: ENE | J229: FEB | K229: MAR | L229: ABR | M229: MAY | N229: JUN | O229: JUL | P229: AGO | Q229: SEP | R229: OCT | S229: NOV | T229: DIC
A230: VARIABLE 1 | F230: PROGRAMADO VARIABLE 1 | V230: =IF(SUM(I230:T230)=0,"",SUM(I230:T230)) ->  | W230: =IF($G$221="porcentaje",FIXED(V230/V231*100,2)&"%",IF($G$221="Promedio",V230/V231,IF($G$221="variación porcentual",FIXED(((V230/V231)-1)*100,2)&"%",IF($G$221="OTRAS","CAPTURAR EL RESULTADO DEL INDICADOR")))) -> FALSE
A231: VARIABLE 2 | F231: PROGRAMADO VARIABLE 2 | U231: =SUM(I231:T231) -> 0 | V231: =IF(SUM(I231:T231)=0,"",SUM(I231:T231)) -> 
A232: REALIZADO
A233: VARIABLES | C233: NOMBRE | E233: UNIDAD DE MEDIDA | F233: CALENDARIO - PROGRAMADO | V233: TOTAL | W233: PROCENTAJE PROGRAMADO EN EL AÑO
F234: REALIZADO | I234: ENE | J234: FEB | K234: MAR | L234: ABR | M234: MAY | N234: JUN | O234: JUL | P234: AGO | Q234: SEP | R234: OCT | S234: NOV | T234: DIC
A235: VARIABLE 1 | C235: =IF(C230=0,"",C230) ->  | E235: =IF(E230=0,"",E230) ->  | F235: REALIZADO VARIABLE 1 | V235: =IF(SUM(I235:T235)=0,"",SUM(I235:T235)) ->  | W235: =IF($G$221="porcentaje",FIXED(V235/V236*100,2)&"%",IF($G$221="Promedio",V235/V236,IF($G$221="variación porcentual",FIXED(((V235/V236)-1)*100,2)&"%",IF($G$221="OTRAS","CAPTURAR EL RESULTADO DEL INDICADOR")))) -> FALSE
A236: VARIABLE 2 | C236: =IF(C231=0,"",C231) ->  | E236: =IF(E231=0,"",E231) ->  | F236: REALIZADO VARIABLE 2 | U236: =SUM(I236:T236) -> 0 | V236: =IF(SUM(I236:T236)=0,"",SUM(I236:T236)) -> 
A238: CUMPLIMIENTO FINAL | W238: =IF(ISERROR(W235/W230)=TRUE,"",(W235/W230)) -> 
A240: Explicaciones y causas de las variaciones al cumplimiento de la programación, ¿ Por qué no se cumplio o por que se supero considerablemente lo programado?
A242: COMPONENTE 6 RESUMEN NARRATIVO
A244: Indicador
A246: NOMBRE
A248: DIMENSIÓN A MEDIR | E248: FRECUENCIA DE MEDICIÓN | M248: MÉTODO DE CALCULO
A250: TIPO DE INDICADOR | E250: TIPO DE FÓRMULA | M250: COMPORTAMIENTO DEL INDICADOR HACIA LA META
C252: LINEA BASE | O252: META DEL INDICADOR
C254: VALOR | E254: AÑO
A256: PROGRAMADO
A257: VARIABLES | C257: NOMBRE | E257: UNIDAD DE MEDIDA | F257: CALENDARIO - PROGRAMADO | V257: TOTAL | W257: META PROGRAMADA EN EL AÑO
F258: PROGRAMADO | I258: ENE | J258: FEB | K258: MAR | L258: ABR | M258: MAY | N258: JUN | O258: JUL | P258: AGO | Q258: SEP | R258: OCT | S258: NOV | T258: DIC
A259: VARIABLE 1 | F259: PROGRAMADO VARIABLE 1 | V259: =IF(SUM(I259:T259)=0,"",SUM(I259:T259)) ->  | W259: =IF($G$221="porcentaje",FIXED(V259/V260*100,2)&"%",IF($G$221="Promedio",V259/V260,IF($G$221="variación porcentual",FIXED(((V259/V260)-1)*100,2)&"%",IF($G$221="OTRAS","CAPTURAR EL RESULTADO DEL INDICADOR")))) -> FALSE
A260: VARIABLE 2 | F260: PROGRAMADO VARIABLE 2 | U260: =SUM(I260:T260) -> 0 | V260: =IF(SUM(I260:T260)=0,"",SUM(I260:T260)) -> 
A261: REALIZADO
A262: VARIABLES | C262: NOMBRE | E262: UNIDAD DE MEDIDA | F262: CALENDARIO - PROGRAMADO | V262: TOTAL | W262: PROCENTAJE PROGRAMADO EN EL AÑO
F263: REALIZADO | I263: ENE | J263: FEB | K263: MAR | L263: ABR | M263: MAY | N263: JUN | O263: JUL | P263: AGO | Q263: SEP | R263: OCT | S263: NOV | T263: DIC
A264: VARIABLE 1 | C264: =IF(C259=0,"",C259) ->  | E264: =IF(E259=0,"",E259) ->  | F264: REALIZADO VARIABLE 1 | V264: =IF(SUM(I264:T264)=0,"",SUM(I264:T264)) ->  | W264: =IF($G$221="porcentaje",FIXED(V264/V265*100,2)&"%",IF($G$221="Promedio",V264/V265,IF($G$221="variación porcentual",FIXED(((V264/V265)-1)*100,2)&"%",IF($G$221="OTRAS","CAPTURAR EL RESULTADO DEL INDICADOR")))) -> FALSE
A265: VARIABLE 2 | C265: =IF(C260=0,"",C260) ->  | E265: =IF(E260=0,"",E260) ->  | F265: REALIZADO VARIABLE 2 | U265: =SUM(I265:T265) -> 0 | V265: =IF(SUM(I265:T265)=0,"",SUM(I265:T265)) -> 
A267: CUMPLIMIENTO FINAL | W267: =IF(ISERROR(W264/W259)=TRUE,"",(W264/W259)) -> 
A269: Explicaciones y causas de las variaciones al cumplimiento de la programación, ¿ Por qué no se cumplio o por que se supero considerablemente lo programado?
A272: ACTIVIDADES
A274: COMPONENTE | B274: DESCRIPCIÓN | E274: UNIDAD DE MEDIDA | F274: CALENDARIO | V274: TOTAL | W274: PORCENTAJE DE CUMPLIMIENTO DE LA ACTIVIDAD
F275: PROGRAMADO / REALIZADO | I275: ENE | J275: FEB | K275: MAR | L275: ABR | M275: MAY | N275: JUN | O275: JUL | P275: AGO | Q275: SEP | R275: OCT | S275: NOV | T275: DIC
A276: C1 | B276: 1 | C276: Realizar 1 seguimiento mensual a las acciones en apoyo a la instituciones educativas del municipio | E276: acciones | F276: PROGRAMADO | I276: 1 | J276: 1 | K276: 1 | L276: 1 | M276: 1 | N276: 1 | O276: 1 | P276: 1 | Q276: 1 | R276: 1 | S276: 1 | T276: 1 | V276: =SUM(I276:T276) -> 12 | W276: =IF(V276=0,"-",V277/V276) -> 0%
F277: REALIZADO | V277: =SUM(I277:T277) -> 0
B278: 2 | C278: Realizar 1 seguimiento trimestral a las acciones de fomento a la educación | E278: acciones | F278: PROGRAMADO | K278: 1 | N278: 1 | Q278: 1 | T278: 1 | V278: =SUM(I278:T278) -> 4 | W278: =IF(V278=0,"-",V279/V278) -> 0%
F279: REALIZADO | V279: =SUM(I279:T279) -> 0
B280: 3 | F280: PROGRAMADO | V280: =SUM(I280:T280) -> 0 | W280: =IF(V280=0,"-",V281/V280) -> -
F281: REALIZADO | V281: 0
B282: 4 | F282: PROGRAMADO | V282: 0 | W282: =IF(V282=0,"-",V283/V282) -> -
F283: REALIZADO | V283: 0
B284: 5 | F284: PROGRAMADO | V284: 0 | W284: =IF(V284=0,"-",V285/V284) -> -
F285: REALIZADO | V285: 0
A286: C2 | B286: 1 | C286: Realizar 1 seguimeinto a las actividades deportivas impulsadas por el Ayuntamiento | E286: actividades | F286: PROGRAMADO | J286: 1 | K286: 1 | L286: 1 | M286: 1 | N286: 1 | O286: 1 | P286: 1 | Q286: 1 | R286: 1 | S286: 1 | T286: 1 | V286: 11 | W286: =IF(V286=0,"-",V287/V286) -> 0%
F287: REALIZADO | V287: 0
... 215 more rows

Sheet Programa 7
C2: CLAVE: | F2: 11/04
C3: ENTIDAD FISCALIZADA: | F3: =IF(ISERROR(VLOOKUP(F2,general!$B:$C,2,FALSE))=TRUE,"",(VLOOKUP(F2,general!$B:$C,2,FALSE))) -> Chietla
D4: AÑO: | F4: 2025
A6: PROGRAMA PRESUPUESTARIO
A8: Nombre del Programa | D8: Servicios Públicos y Sustentabilidad
A9: Unidad(es) Responsable(s) | D9: 12 Servicios Públicos
A10: Costo Total del Programa
A11: Fuente de Financiamiento | D11: RECURSOS FISCALES | G11: PARTICIPACIONES | L11: FISM | P11: FORTAMUN | T11: OTROS
A12: Monto Específco | D12: $10,014,215.63
A14: CLASIFICACIÓN FUNCIONAL DEL GASTO
A15: CLASIFICACIÓN | D15: CONCEPTO
A16: Finalidad | D16: 2. Desarrollo social
A17: Función | D17: 2.1. Protección ambiental
A18: Subfunción | D18: 2.1.6 Otros de Protección Ambiental
A19: Sub/Subfunción | D19: 2.1.6.1 Servicios públicos municipales
A21: GASTO POR CATEGORÍA PROGRAMÁTICA
A22: CATEGORÍA | D22: Despempeño de las Funciones
A23: PROGRAMA | D23: E. restación de Servicios Públicos
A25: DATOS DE VINCULACIÓN AL PLAN ESTATAL DE DESARROLLO
A26: Eje 2 Sustentabilidad Territorial y Desarrollo Integral
A28: Eje 3 Gobernanza Municipal Integral
A29: NIVEL INMEDIATO INFERIOR (OBJETIVO O LíNEA ESTRATÉGICA)
A30: Objetivo 3 Mejorar la prestación de los servicios públicos municipales en beneficio de la población
A31: DATOS DE VINCULACIÓN A OBJETIVOS DE DESARROLLO SOSTENIBLE
A32: 15. Proteger, restablecer y promover el uso sostenible de los ecosistemas terrestres, efectuar una ordenación sostenible de los bosques, luchar contra la desertificación, detener y revertir la degradación de las tierras y poner freno a la pérdida de la diversidad biológica.
A33: FIN
A35: RESUMEN NARRATIVO | C35: Contribuir a la mejora de la calidad de vida de los habitantes del municipio de Chietla mediante acciones de mejora de los servicios públicos
A37: Indicador
A39: NOMBRE | C39: Porcentaje de acciones de prestación de servicios públicos realizados con enfoque de género
A41: DIMENSIÓN A MEDIR | C41: Eficacia | E41: FRECUENCIA DE MEDICIÓN | G41: Anual | M41: MÉTODO DE CALCULO | Q41: (v1v2)*100
A43: TIPO DE INDICADOR | C43: Estratégico | E43: TIPO DE FÓRMULA | G43: Porcentaje | M43: COMPORTAMIENTO DEL INDICADOR HACIA LA META | Q43: Regular
C45: LINEA BASE | O45: META DEL INDICADOR
C46: 36 | E46: 2024 | O46: 84
C47: VALOR | E47: AÑO
A49: PROGRAMADO
A50: VARIABLES | C50: NOMBRE | E50: UNIDAD DE MEDIDA | F50: CALENDARIO - PROGRAMADO | V50: TOTAL | W50: META PROGRAMADA EN EL AÑO
F51: PROGRAMADO | I51: ENE | J51: FEB | K51: MAR | L51: ABR | M51: MAY | N51: JUN | O51: JUL | P51: AGO | Q51: SEP | R51: OCT | S51: NOV | T51: DIC
A52: VARIABLE 1 | C52: Número de acciones de prestación de los serviciso públicos realizados con enfoque de género | E52: accones | F52: PROGRAMADO VARIABLE 1 | I52: 7 | J52: 7 | K52: 7 | L52: 7 | M52: 7 | N52: 7 | O52: 7 | P52: 7 | Q52: 7 | R52: 7 | S52: 7 | T52: 7 | V52: =IF(SUM(I52:T52)=0,"",SUM(I52:T52)) -> 84 | W52: =IF($G$43="porcentaje",FIXED(V52/V53*100,2)&"%",IF($G$43="Promedio",V52/V53,IF($G$43="variación porcentual",FIXED(((V52/V53)-1)*100,2)&"%",IF($G$43="OTRAS","CAPTURAR EL RESULTADO DEL INDICADOR")))) -> 100.00%
A53: VARIABLE 2 | C53: Total de acciones de servicios públicos | E53: accones | F53: PROGRAMADO VARIABLE 2 | I53: 7 | J53: 7 | K53: 7 | L53: 7 | M53: 7 | N53: 7 | O53: 7 | P53: 7 | Q53: 7 | R53: 7 | S53: 7 | T53: 7 | U53: =SUM(I53:T53) -> 84 | V53: =IF(SUM(I53:T53)=0,"",SUM(I53:T53)) -> 84
A54: REALIZADO
A55: VARIABLES | C55: NOMBRE | E55: UNIDAD DE MEDIDA | F55: CALENDARIO - PROGRAMADO | V55: TOTAL | W55: RESULTADO ALCANZADO EN EL AÑO
F56: REALIZADO | I56: ENE | J56: FEB | K56: MAR | L56: ABR | M56: MAY | N56: JUN | O56: JUL | P56: AGO | Q56: SEP | R56: OCT | S56: NOV | T56: DIC
A57: VARIABLE 1 | C57: =IF(C52=0,"",C52) -> Número de acciones de prestación de los serviciso públicos realizados con enfoque de género | E57: =IF(E52=0,"",E52) -> accones | F57: REALIZADO VARIABLE 1 | V57: =IF(SUM(I57:T57)=0,"",SUM(I57:T57)) ->  | W57: =IF($G$43="porcentaje",FIXED(V57/V58*100,2)&"%",IF($G$43="Promedio",V57/V58,IF($G$43="variación porcentual",FIXED(((V57/V58)-1)*100,2)&"%",IF($G$43="OTRAS","CAPTURAR EL RESULTADO DEL INDICADOR")))) -> 
A58: VARIABLE 2 | C58: =IF(C53=0,"",C53) -> Total de acciones de servicios públicos | E58: =IF(E53=0,"",E53) -> accones | F58: REALIZADO VARIABLE 2 | U58: =SUM(I58:T58) -> 0 | V58: =IF(SUM(I58:T58)=0,"",SUM(I58:T58)) -> 
A60: CUMPLIMIENTO FINAL | W60: =IF(ISERROR(W57/W52)=TRUE,"",(W57/W52)) -> 
A62: Explicaciones y causas de las variaciones al cumplimiento de la programación, ¿ Por qué no se cumplio o por que se supero considerablemente lo programado?
A64: PROPÓSITO
A66: RESUMEN NARRATIVO | C66: El municipio de Chietla, lleva a cabo las acciones correspondientes a los servicios públicos municipales en total igualdad para la población en general
A68: Indicador
A70: NOMBRE | C70: Porcentaje de población beneficiada con acciones de prestación de servicios públicos
A72: DIMENSIÓN A MEDIR | C72: Eficiencia | E72: FRECUENCIA DE MEDICIÓN | G72: anual | M72: MÉTODO DE CALCULO | Q72: (v1/v2)*100
A74: TIPO DE INDICADOR | C74: Estratégico | E74: TIPO DE FÓRMULA | G74: Porcentaje | M74: COMPORTAMIENTO DEL INDICADOR HACIA LA META | Q74: Ascendente
C76: LINEA BASE | O76: META DEL INDICADOR
C77: 27773 | E77: 2024 | O77: 37030.0
C78: VALOR | E78: AÑO
A80: PROGRAMADO
A81: VARIABLES | C81: NOMBRE | E81: UNIDAD DE MEDIDA | F81: CALENDARIO - PROGRAMADO | V81: TOTAL | W81: META PROGRAMADA EN EL AÑO
F82: PROGRAMADO | I82: ENE | J82: FEB | K82: MAR | L82: ABR | M82: MAY | N82: JUN | O82: JUL | P82: AGO | Q82: SEP | R82: OCT | S82: NOV | T82: DIC
A83: VARIABLE 1 | C83: Numero de personas beneficiadas con acciones de prestación de servcios públicos | E83: habitantes | F83: PROGRAMADO VARIABLE 1 | T83: 37030 | V83: =IF(SUM(I83:T83)=0,"",SUM(I83:T83)) -> 37030 | W83: =IF($G$74="porcentaje",FIXED(V83/V84*100,2)&"%",IF($G$74="Promedio",V83/V84,IF($G$74="variación porcentual",FIXED(((V83/V84)-1)*100,2)&"%",IF($G$74="OTRAS","CAPTURAR EL RESULTADO DEL INDICADOR")))) -> 100.00%
A84: VARIABLE 2 | C84: Total de población del municiipio | E84: habitantes | F84: PROGRAMADO VARIABLE 2 | T84: 37030 | U84: =SUM(I84:T84) -> 37030 | V84: =IF(SUM(I84:T84)=0,"",SUM(I84:T84)) -> 37030
A85: REALIZADO
A86: VARIABLES | C86: NOMBRE | E86: UNIDAD DE MEDIDA | F86: CALENDARIO - PROGRAMADO | V86: TOTAL | W86: RESULTADO ALCANZADO EN EL AÑO
F87: REALIZADO | I87: ENE | J87: FEB | K87: MAR | L87: ABR | M87: MAY | N87: JUN | O87: JUL | P87: AGO | Q87: SEP | R87: OCT | S87: NOV | T87: DIC
A88: VARIABLE 1 | C88: =IF(C83=0,"",C83) -> Numero de personas beneficiadas con acciones de prestación de servcios públicos | E88: =IF(E83=0,"",E83) -> habitantes | F88: REALIZADO VARIABLE 1 | V88: =IF(SUM(I88:T88)=0,"",SUM(I88:T88)) ->  | W88: =IF($G$74="porcentaje",FIXED(V88/V89*100,2)&"%",IF($G$74="Promedio",V88/V89,IF($G$74="variación porcentual",FIXED(((V88/V89)-1)*100,2)&"%",IF($G$74="OTRAS","CAPTURAR EL RESULTADO DEL INDICADOR")))) -> 
A89: VARIABLE 2 | C89: =IF(C84=0,"",C84) -> Total de población del municiipio | E89: =IF(E84=0,"",E84) -> habitantes | F89: REALIZADO VARIABLE 2 | U89: =SUM(I89:T89) -> 0 | V89: =IF(SUM(I89:T89)=0,"",SUM(I89:T89)) -> 
A91: CUMPLIMIENTO FINAL | W91: =IF(ISERROR(W88/W83)=TRUE,"",(W88/W83)) -> 
A93: Explicaciones y causas de las variaciones al cumplimiento de la programación, ¿ Por qué no se cumplio o por que se supero considerablemente lo programado?
A95: COMPONENTES
A97: COMPONENTE 1 RESUMEN NARRATIVO | C97: Acciones para la mejora de la imagen de los espacios públicos implementados
A99: Indicador
A101: NOMBRE | C101: Porcentaje de acciones de mejora de la imagen municipal
A103: DIMENSIÓN A MEDIR | C103: Eficiencia | E103: FRECUENCIA DE MEDICIÓN | G103: trimestral | M103: MÉTODO DE CALCULO | Q103: (v1/v2)*100
A105: TIPO DE INDICADOR | C105: Gestión | E105: TIPO DE FÓRMULA | G105: Porcentaje | M105: COMPORTAMIENTO DEL INDICADOR HACIA LA META | Q105: Ascendente
C107: LINEA BASE | O107: META DEL INDICADOR
C108: 60 | E108: 2024 | O108: 60.00
C109: VALOR | E109: AÑO
A111: PROGRAMADO
A112: VARIABLES | C112: NOMBRE | E112: UNIDAD DE MEDIDA | F112: CALENDARIO - PROGRAMADO | V112: TOTAL | W112: META PROGRAMADA EN EL AÑO
F113: PROGRAMADO | I113: ENE | J113: FEB | K113: MAR | L113: ABR | M113: MAY | N113: JUN | O113: JUL | P113: AGO | Q113: SEP | R113: OCT | S113: NOV | T113: DIC
A114: VARIABLE 1 | C114: Acciones de mejora de la imagen municipal | E114: acciones | F114: PROGRAMADO VARIABLE 1 | I114: 5 | J114: 5 | K114: 5 | L114: 5 | M114: 5 | N114: 5 | O114: 5 | P114: 5 | Q114: 5 | R114: 5 | S114: 5 | T114: 5 | V114: =IF(SUM(I114:T114)=0,"",SUM(I114:T114)) -> 60 | W114: =IF($G$105="porcentaje",FIXED(V114/V115*100,2)&"%",IF($G$105="Promedio",V114/V115,IF($G$105="variación porcentual",FIXED(((V114/V115)-1)*100,2)&"%",IF($G$105="OTRAS","CAPTURAR EL RESULTADO DEL INDICADOR")))) -> 100.00%
A115: VARIABLE 2 | C115: Total de Acciones de prestación de servicios públicos municipales | E115: acciones | F115: PROGRAMADO VARIABLE 2 | I115: 5 | J115: 5 | K115: 5 | L115: 5 | M115: 5 | N115: 5 | O115: 5 | P115: 5 | Q115: 5 | R115: 5 | S115: 5 | T115: 5 | U115: =SUM(I115:T115) -> 60 | V115: =IF(SUM(I115:T115)=0,"",SUM(I115:T115)) -> 60
A116: REALIZADO
A117: VARIABLES | C117: NOMBRE | E117: UNIDAD DE MEDIDA | F117: CALENDARIO - PROGRAMADO | V117: TOTAL | W117: RESULTADO ALCANZADO EN EL AÑO
F118: REALIZADO | I118: ENE | J118: FEB | K118: MAR | L118: ABR | M118: MAY | N118: JUN | O118: JUL | P118: AGO | Q118: SEP | R118: OCT | S118: NOV | T118: DIC
A119: VARIABLE 1 | C119: =IF(C114=0,"",C114) -> Acciones de mejora de la imagen municipal | E119: =IF(E114=0,"",E114) -> acciones | F119: REALIZADO VARIABLE 1 | V119: =IF(SUM(I119:T119)=0,"",SUM(I119:T119)) ->  | W119: =IF($G$105="porcentaje",FIXED(V119/V120*100,2)&"%",IF($G$105="Promedio",V119/V120,IF($G$105="variación porcentual",FIXED(((V119/V120)-1)*100,2)&"%",IF($G$105="OTRAS","CAPTURAR EL RESULTADO DEL INDICADOR")))) -> 
A120: VARIABLE 2 | C120: =IF(C115=0,"",C115) -> Total de Acciones de prestación de servicios públicos municipales | E120: =IF(E115=0,"",E115) -> acciones | F120: REALIZADO VARIABLE 2 | U120: =SUM(I120:T120) -> 0 | V120: =IF(SUM(I120:T120)=0,"",SUM(I120:T120)) -> 
A122: CUMPLIMIENTO FINAL | W122: =IF(ISERROR(W119/W114)=TRUE,"",(W119/W114)) -> 
A124: Explicaciones y causas de las variaciones al cumplimiento de la programación, ¿ Por qué no se cumplio o por que se supero considerablemente lo programado?
A126: COMPONENTE 2 RESUMEN NARRATIVO | C126: Acciones en favor de la sustentabilidad y reducción de residuos realizadas
A128: Indicador
A130: NOMBRE | C130: Porcentaje de cumplimiento de acciones en materia de sustentabilidad y reducción de residuos
A132: DIMENSIÓN A MEDIR | C132: Eficiencia | E132: FRECUENCIA DE MEDICIÓN | G132: trimestral | M132: MÉTODO DE CALCULO | Q132: (v1/v2)*100
A134: TIPO DE INDICADOR | C134: Gestión | E134: TIPO DE FÓRMULA | G134: Porcentaje | M134: COMPORTAMIENTO DEL INDICADOR HACIA LA META | Q134: Regular
C136: LINEA BASE | O136: META DEL INDICADOR
C137: 12 | E137: 2024 | O137: 24
C138: VALOR | E138: AÑO
A140: PROGRAMADO
A141: VARIABLES | C141: NOMBRE | E141: UNIDAD DE MEDIDA | F141: CALENDARIO - PROGRAMADO | V141: TOTAL | W141: META PROGRAMADA EN EL AÑO
F142: PROGRAMADO | I142: ENE | J142: FEB | K142: MAR | L142: ABR | M142: MAY | N142: JUN | O142: JUL | P142: AGO | Q142: SEP | R142: OCT | S142: NOV | T142: DIC
A143: VARIABLE 1 | C143: Número de acciones en materia de sustentabilidad y reducción de residuos | E143: acciones | F143: PROGRAMADO VARIABLE 1 | I143: 2 | J143: 2 | K143: 2 | L143: 2 | M143: 2 | N143: 2 | O143: 2 | P143: 2 | Q143: 2 | R143: 2 | S143: 2 | T143: 2 | V143: =IF(SUM(I143:T143)=0,"",SUM(I143:T143)) -> 24 | W143: =IF($G$134="porcentaje",FIXED(V143/V144*100,2)&"%",IF($G$134="Promedio",V143/V144,IF($G$134="variación porcentual",FIXED(((V143/V144)-1)*100,2)&"%",IF($G$134="OTRAS","CAPTURAR EL RESULTADO DEL INDICADOR")))) -> 100.00%
A144: VARIABLE 2 | C144: Total de acciones de prestación de servicios públicos municipales | E144: acciones | F144: PROGRAMADO VARIABLE 2 | I144: 2 | J144: 2 | K144: 2 | L144: 2 | M144: 2 | N144: 2 | O144: 2 | P144: 2 | Q144: 2 | R144: 2 | S144: 2 | T144: 2 | U144: =SUM(I144:T144) -> 24 | V144: =IF(SUM(I144:T144)=0,"",SUM(I144:T144)) -> 24
A145: REALIZADO
A146: VARIABLES | C146: NOMBRE | E146: UNIDAD DE MEDIDA | F146: CALENDARIO - PROGRAMADO | V146: TOTAL | W146: RESULTADO ALCANZADO EN EL AÑO
F147: REALIZADO | I147: ENE | J147: FEB | K147: MAR | L147: ABR | M147: MAY | N147: JUN | O147: JUL | P147: AGO | Q147: SEP | R147: OCT | S147: NOV | T147: DIC
A148: VARIABLE 1 | C148: =IF(C143=0,"",C143) -> Número de acciones en materia de sustentabilidad y reducción de residuos | E148: =IF(E143=0,"",E143) -> acciones | F148: REALIZADO VARIABLE 1 | V148: =IF(SUM(I148:T148)=0,"",SUM(I148:T148)) ->  | W148: =IF($G$134="porcentaje",FIXED(V148/V149*100,2)&"%",IF($G$134="Promedio",V148/V149,IF($G$134="variación porcentual",FIXED(((V148/V149)-1)*100,2)&"%",IF($G$134="OTRAS","CAPTURAR EL RESULTADO DEL INDICADOR")))) -> 
A149: VARIABLE 2 | C149: =IF(C144=0,"",C144) -> Total de acciones de prestación de servicios públicos municipales | E149: =IF(E144=0,"",E144) -> acciones | F149: REALIZADO VARIABLE 2 | U149: =SUM(I149:T149) -> 0 | V149: =IF(SUM(I149:T149)=0,"",SUM(I149:T149)) -> 
A151: CUMPLIMIENTO FINAL | W151: =IF(ISERROR(W148/W143)=TRUE,"",(W148/W143)) -> 
A153: Explicaciones y causas de las variaciones al cumplimiento de la programación, ¿ Por qué no se cumplio o por que se supero considerablemente lo programado?
A155: COMPONENTE 3 RESUMEN NARRATIVO
A157: Indicador
A159: NOMBRE
A161: DIMENSIÓN A MEDIR | E161: FRECUENCIA DE MEDICIÓN | M161: MÉTODO DE CALCULO
A163: TIPO DE INDICADOR | E163: TIPO DE FÓRMULA | M163: COMPORTAMIENTO DEL INDICADOR HACIA LA META
C165: LINEA BASE | O165: META DEL INDICADOR
C167: VALOR | E167: AÑO
A169: PROGRAMADO
A170: VARIABLES | C170: NOMBRE | E170: UNIDAD DE MEDIDA | F170: CALENDARIO - PROGRAMADO | V170: TOTAL | W170: META PROGRAMADA EN EL AÑO
F171: PROGRAMADO | I171: ENE | J171: FEB | K171: MAR | L171: ABR | M171: MAY | N171: JUN | O171: JUL | P171: AGO | Q171: SEP | R171: OCT | S171: NOV | T171: DIC
A172: VARIABLE 1 | F172: PROGRAMADO VARIABLE 1 | V172: =IF(SUM(I172:T172)=0,"",SUM(I172:T172)) ->  | W172: =IF($G$163="porcentaje",FIXED(V172/V173*100,2)&"%",IF($G$163="Promedio",V172/V173,IF($G$163="variación porcentual",FIXED(((V172/V173)-1)*100,2)&"%",IF($G$163="OTRAS","CAPTURAR EL RESULTADO DEL INDICADOR")))) -> FALSE
A173: VARIABLE 2 | F173: PROGRAMADO VARIABLE 2 | U173: =SUM(I173:T173) -> 0 | V173: =IF(SUM(I173:T173)=0,"",SUM(I173:T173)) -> 
A174: REALIZADO
A175: VARIABLES | C175: NOMBRE | E175: UNIDAD DE MEDIDA | F175: CALENDARIO - PROGRAMADO | V175: TOTAL | W175: RESULTADO ALCANZADO EN EL AÑO
F176: REALIZADO | I176: ENE | J176: FEB | K176: MAR | L176: ABR | M176: MAY | N176: JUN | O176: JUL | P176: AGO | Q176: SEP | R176: OCT | S176: NOV | T176: DIC
A177: VARIABLE 1 | C177: =IF(C172=0,"",C172) ->  | E177: =IF(E172=0,"",E172) ->  | F177: REALIZADO VARIABLE 1 | V177: =IF(SUM(I177:T177)=0,"",SUM(I177:T177)) ->  | W177: =IF($G$163="porcentaje",FIXED(V177/V178*100,2)&"%",IF($G$163="Promedio",V177/V178,IF($G$163="variación porcentual",FIXED(((V177/V178)-1)*100,2)&"%",IF($G$163="OTRAS","CAPTURAR EL RESULTADO DEL INDICADOR")))) -> FALSE
A178: VARIABLE 2 | C178: =IF(C173=0,"",C173) ->  | E178: =IF(E173=0,"",E173) ->  | F178: REALIZADO VARIABLE 2 | U178: =SUM(I178:T178) -> 0 | V178: =IF(SUM(I178:T178)=0,"",SUM(I178:T178)) -> 
A180: CUMPLIMIENTO FINAL | W180: =IF(ISERROR(W177/W172)=TRUE,"",(W177/W172)) -> 
A182: Explicaciones y causas de las variaciones al cumplimiento de la programación, ¿ Por qué no se cumplio o por que se supero considerablemente lo programado?
A184: COMPONENTE 4 RESUMEN NARRATIVO
A186: Indicador
A188: NOMBRE
A190: DIMENSIÓN A MEDIR | E190: FRECUENCIA DE MEDICIÓN | M190: MÉTODO DE CALCULO
A192: TIPO DE INDICADOR | E192: TIPO DE FÓRMULA | M192: COMPORTAMIENTO DEL INDICADOR HACIA LA META
C194: LINEA BASE | O194: META DEL INDICADOR
C196: VALOR | E196: AÑO
A198: PROGRAMADO
A199: VARIABLES | C199: NOMBRE | E199: UNIDAD DE MEDIDA | F199: CALENDARIO - PROGRAMADO | V199: TOTAL | W199: META PROGRAMADA EN EL AÑO
F200: PROGRAMADO | I200: ENE | J200: FEB | K200: MAR | L200: ABR | M200: MAY | N200: JUN | O200: JUL | P200: AGO | Q200: SEP | R200: OCT | S200: NOV | T200: DIC
A201: VARIABLE 1 | F201: PROGRAMADO VARIABLE 1 | V201: =IF(SUM(I201:T201)=0,"",SUM(I201:T201)) ->  | W201: =IF($G$192="porcentaje",FIXED(V201/V202*100,2)&"%",IF($G$192="Promedio",V201/V202,IF($G$192="variación porcentual",FIXED(((V201/V202)-1)*100,2)&"%",IF($G$192="OTRAS","CAPTURAR EL RESULTADO DEL INDICADOR")))) -> FALSE
A202: VARIABLE 2 | F202: PROGRAMADO VARIABLE 2 | U202: =SUM(I202:T202) -> 0 | V202: =IF(SUM(I202:T202)=0,"",SUM(I202:T202)) -> 
A203: REALIZADO
A204: VARIABLES | C204: NOMBRE | E204: UNIDAD DE MEDIDA | F204: CALENDARIO - PROGRAMADO | V204: TOTAL | W204: PROCENTAJE PROGRAMADO EN EL AÑO
F205: REALIZADO | I205: ENE | J205: FEB | K205: MAR | L205: ABR | M205: MAY | N205: JUN | O205: JUL | P205: AGO | Q205: SEP | R205: OCT | S205: NOV | T205: DIC
A206: VARIABLE 1 | C206: =IF(C201=0,"",C201) ->  | E206: =IF(E201=0,"",E201) ->  | F206: REALIZADO VARIABLE 1 | V206: =IF(SUM(I206:T206)=0,"",SUM(I206:T206)) ->  | W206: =IF($G$192="porcentaje",FIXED(V206/V207*100,2)&"%",IF($G$192="Promedio",V206/V207,IF($G$192="variación porcentual",FIXED(((V206/V207)-1)*100,2)&"%",IF($G$192="OTRAS","CAPTURAR EL RESULTADO DEL INDICADOR")))) -> FALSE
A207: VARIABLE 2 | C207: =IF(C202=0,"",C202) ->  | E207: =IF(E202=0,"",E202) ->  | F207: REALIZADO VARIABLE 2 | U207: =SUM(I207:T207) -> 0 | V207: =IF(SUM(I207:T207)=0,"",SUM(I207:T207)) -> 
A209: CUMPLIMIENTO FINAL | W209: =IF(ISERROR(W206/W201)=TRUE,"",(W206/W201)) -> 
A211: Explicaciones y causas de las variaciones al cumplimiento de la programación, ¿ Por qué no se cumplio o por que se supero considerablemente lo programado?
A213: COMPONENTE 5 RESUMEN NARRATIVO
A215: Indicador
A217: NOMBRE
A219: DIMENSIÓN A MEDIR | E219: FRECUENCIA DE MEDICIÓN | M219: MÉTODO DE CALCULO
A221: TIPO DE INDICADOR | E221: TIPO DE FÓRMULA | M221: COMPORTAMIENTO DEL INDICADOR HACIA LA META
C223: LINEA BASE | O223: META DEL INDICADOR
C225: VALOR | E225: AÑO
A227: PROGRAMADO
A228: VARIABLES | C228: NOMBRE | E228: UNIDAD DE MEDIDA | F228: CALENDARIO - PROGRAMADO | V228: TOTAL | W228: META PROGRAMADA EN EL AÑO
F229: PROGRAMADO | I229: ENE | J229: FEB | K229: MAR | L229: ABR | M229: MAY | N229: JUN | O229: JUL | P229: AGO | Q229: SEP | R229: OCT | S229: NOV | T229: DIC
A230: VARIABLE 1 | F230: PROGRAMADO VARIABLE 1 | V230: =IF(SUM(I230:T230)=0,"",SUM(I230:T230)) ->  | W230: =IF($G$221="porcentaje",FIXED(V230/V231*100,2)&"%",IF($G$221="Promedio",V230/V231,IF($G$221="variación porcentual",FIXED(((V230/V231)-1)*100,2)&"%",IF($G$221="OTRAS","CAPTURAR EL RESULTADO DEL INDICADOR")))) -> FALSE
A231: VARIABLE 2 | F231: PROGRAMADO VARIABLE 2 | U231: =SUM(I231:T231) -> 0 | V231: =IF(SUM(I231:T231)=0,"",SUM(I231:T231)) -> 
A232: REALIZADO
A233: VARIABLES | C233: NOMBRE | E233: UNIDAD DE MEDIDA | F233: CALENDARIO - PROGRAMADO | V233: TOTAL | W233: PROCENTAJE PROGRAMADO EN EL AÑO
F234: REALIZADO | I234: ENE | J234: FEB | K234: MAR | L234: ABR | M234: MAY | N234: JUN | O234: JUL | P234: AGO | Q234: SEP | R234: OCT | S234: NOV | T234: DIC
A235: VARIABLE 1 | C235: =IF(C230=0,"",C230) ->  | E235: =IF(E230=0,"",E230) ->  | F235: REALIZADO VARIABLE 1 | V235: =IF(SUM(I235:T235)=0,"",SUM(I235:T235)) ->  | W235: =IF($G$221="porcentaje",FIXED(V235/V236*100,2)&"%",IF($G$221="Promedio",V235/V236,IF($G$221="variación porcentual",FIXED(((V235/V236)-1)*100,2)&"%",IF($G$221="OTRAS","CAPTURAR EL RESULTADO DEL INDICADOR")))) -> FALSE
A236: VARIABLE 2 | C236: =IF(C231=0,"",C231) ->  | E236: =IF(E231=0,"",E231) ->  | F236: REALIZADO VARIABLE 2 | U236: =SUM(I236:T236) -> 0 | V236: =IF(SUM(I236:T236)=0,"",SUM(I236:T236)) -> 
A238: CUMPLIMIENTO FINAL | W238: =IF(ISERROR(W235/W230)=TRUE,"",(W235/W230)) -> 
A240: Explicaciones y causas de las variaciones al cumplimiento de la programación, ¿ Por qué no se cumplio o por que se supero considerablemente lo programado?
A242: COMPONENTE 6 RESUMEN NARRATIVO
A244: Indicador
A246: NOMBRE
A248: DIMENSIÓN A MEDIR | E248: FRECUENCIA DE MEDICIÓN | M248: MÉTODO DE CALCULO
A250: TIPO DE INDICADOR | E250: TIPO DE FÓRMULA | M250: COMPORTAMIENTO DEL INDICADOR HACIA LA META
C252: LINEA BASE | O252: META DEL INDICADOR
C254: VALOR | E254: AÑO
A256: PROGRAMADO
A257: VARIABLES | C257: NOMBRE | E257: UNIDAD DE MEDIDA | F257: CALENDARIO - PROGRAMADO | V257: TOTAL | W257: META PROGRAMADA EN EL AÑO
F258: PROGRAMADO | I258: ENE | J258: FEB | K258: MAR | L258: ABR | M258: MAY | N258: JUN | O258: JUL | P258: AGO | Q258: SEP | R258: OCT | S258: NOV | T258: DIC
A259: VARIABLE 1 | F259: PROGRAMADO VARIABLE 1 | V259: =IF(SUM(I259:T259)=0,"",SUM(I259:T259)) ->  | W259: =IF($G$221="porcentaje",FIXED(V259/V260*100,2)&"%",IF($G$221="Promedio",V259/V260,IF($G$221="variación porcentual",FIXED(((V259/V260)-1)*100,2)&"%",IF($G$221="OTRAS","CAPTURAR EL RESULTADO DEL INDICADOR")))) -> FALSE
A260: VARIABLE 2 | F260: PROGRAMADO VARIABLE 2 | U260: =SUM(I260:T260) -> 0 | V260: =IF(SUM(I260:T260)=0,"",SUM(I260:T260)) -> 
A261: REALIZADO
A262: VARIABLES | C262: NOMBRE | E262: UNIDAD DE MEDIDA | F262: CALENDARIO - PROGRAMADO | V262: TOTAL | W262: PROCENTAJE PROGRAMADO EN EL AÑO
F263: REALIZADO | I263: ENE | J263: FEB | K263: MAR | L263: ABR | M263: MAY | N263: JUN | O263: JUL | P263: AGO | Q263: SEP | R263: OCT | S263: NOV | T263: DIC
A264: VARIABLE 1 | C264: =IF(C259=0,"",C259) ->  | E264: =IF(E259=0,"",E259) ->  | F264: REALIZADO VARIABLE 1 | V264: =IF(SUM(I264:T264)=0,"",SUM(I264:T264)) ->  | W264: =IF($G$221="porcentaje",FIXED(V264/V265*100,2)&"%",IF($G$221="Promedio",V264/V265,IF($G$221="variación porcentual",FIXED(((V264/V265)-1)*100,2)&"%",IF($G$221="OTRAS","CAPTURAR EL RESULTADO DEL INDICADOR")))) -> FALSE
A265: VARIABLE 2 | C265: =IF(C260=0,"",C260) ->  | E265: =IF(E260=0,"",E260) ->  | F265: REALIZADO VARIABLE 2 | U265: =SUM(I265:T265) -> 0 | V265: =IF(SUM(I265:T265)=0,"",SUM(I265:T265)) -> 
A267: CUMPLIMIENTO FINAL | W267: =IF(ISERROR(W264/W259)=TRUE,"",(W264/W259)) -> 
A269: Explicaciones y causas de las variaciones al cumplimiento de la programación, ¿ Por qué no se cumplio o por que se supero considerablemente lo programado?
A272: ACTIVIDADES
A274: COMPONENTE | B274: DESCRIPCIÓN | E274: UNIDAD DE MEDIDA | F274: CALENDARIO | V274: TOTAL | W274: PORCENTAJE DE CUMPLIMIENTO DE LA ACTIVIDAD
F275: PROGRAMADO / REALIZADO | I275: ENE | J275: FEB | K275: MAR | L275: ABR | M275: MAY | N275: JUN | O275: JUL | P275: AGO | Q275: SEP | R275: OCT | S275: NOV | T275: DIC
A276: C1 | B276: 1 | C276: Realizar 1 seguimiento mensual a las acciones de limpia pública | E276: seguimiento | F276: PROGRAMADO | I276: 1 | J276: 1 | K276: 1 | L276: 1 | M276: 1 | N276: 1 | O276: 1 | P276: 1 | Q276: 1 | R276: 1 | S276: 1 | T276: 1 | V276: =SUM(I276:T276) -> 12 | W276: =IF(V276=0,"-",V277/V276) -> 0%
F277: REALIZADO | V277: =SUM(I277:T277) -> 0
B278: 2 | C278: Realizar 1 seguimiento mensual a las acciones de panteones | E278: seguimiento | F278: PROGRAMADO | I278: 1 | J278: 1 | K278: 1 | L278: 1 | M278: 1 | N278: 1 | O278: 1 | P278: 1 | Q278: 1 | R278: 1 | S278: 1 | T278: 1 | V278: =SUM(I278:T278) -> 12 | W278: =IF(V278=0,"-",V279/V278) -> 0%
F279: REALIZADO | V279: =SUM(I279:T279) -> 0
B280: 3 | C280: Realizar 1 seguimiento a las acciones de alumbrado público | E280: seguimiento | F280: PROGRAMADO | I280: 1 | J280: 1 | K280: 1 | L280: 1 | M280: 1 | N280: 1 | O280: 1 | P280: 1 | Q280: 1 | R280: 1 | S280: 1 | T280: 1 | V280: =SUM(I280:T280) -> 12 | W280: =IF(V280=0,"-",V281/V280) -> 0%
F281: REALIZADO | V281: 0
B282: 4 | C282: Realizar 1 seguimiento a las acciones de parques y jardines | E282: seguimiento | F282: PROGRAMADO | I282: 1 | J282: 1 | K282: 1 | L282: 1 | M282: 1 | N282: 1 | O282: 1 | P282: 1 | Q282: 1 | R282: 1 | S282: 1 | T282: 1 | V282: 12 | W282: =IF(V282=0,"-",V283/V282) -> 0%
F283: REALIZADO | V283: 0
B284: 5 | C284: Realizar 1 seguimiento a las actividades de mercados municipales | E284: seguimiento | F284: PROGRAMADO | I284: 1 | J284: 1 | K284: 1 | L284: 1 | M284: 1 | N284: 1 | O284: 1 | P284: 1 | Q284: 1 | R284: 1 | S284: 1 | T284: 1 | V284: 12 | W284: =IF(V284=0,"-",V285/V284) -> 0%
F285: REALIZADO | V285: 0
A286: C2 | B286: 1 | C286: Dar 1 seguimiento mensual a las actividades correspondientes a reciclado | E286: seguimiento | F286: PROGRAMADO | I286: 1 | J286: 1 | K286: 1 | L286: 1 | M286: 1 | N286: 1 | O286: 1 | P286: 1 | Q286: 1 | R286: 1 | S286: 1 | T286: 1 | V286: 12 | W286: =IF(V286=0,"-",V287/V286) -> 0%
F287: REALIZADO | V287: 0
B288: 2 | C288: Dar 1 seguimiento mensual a las actividades correspondientes a cultura del agua | E288: seguimiento | F288: PROGRAMADO | I288: 1 | J288: 1 | K288: 1 | L288: 1 | M288: 1 | N288: 1 | O288: 1 | P288: 1 | Q288: 1 | R288: 1 | S288: 1 | T288: 1 | V288: 12 | W288: =IF(V288=0,"-",V289/V288) -> 0%
... 214 more rows

Sheet Hoja2 (hidden)
A1: RECURSOS PROPIOS | C1: INGRESOS
A2: FONDO DE APORTACIONES | C2: PARTICIPACIONES
A3: INGRESOS EXTRAORDINARIOS (ESPECIFICAR) | C3: FISM
C4: FORTAMUN
